Body Name,Body,Service Label,Service Code,Service Division Label,Service Division Code,Expenditure Category,Expenditure Code,CIPFA Detailed Expenditure Type,CIPFA Detailed Expenditure Code,Date,Transaction Number,CC 43 TBM Section,CCN 43 TBM Section,Net Amount,Capital and Revenue,Creditor Name
Brighton & Hove City Council,http://statistics.data.gov.uk/id/local-authority/00ML,Cultural and Related Serv,BVACUL,Culture and Heritage,CHG,Supplies and Services,E,Goods for Resale,EG,24/10/2018,PAY01109614,RPMU,Royal Pavilion and Museums,240,Revenue,1790 Cards
Brighton & Hove City Council,http://statistics.data.gov.uk/id/local-authority/00ML,Children`s & Education Serv,BVAEDU,Ed Mgmt and Support Services,EMG,Supplies and Services,E,Miscellaneous Expenses,EM,03/10/2018,PAY01103454,GOVS,Governor Support,400,Revenue,20Q Ltd
Brighton & Hove City Council,http://statistics.data.gov.uk/id/local-authority/00ML,Environment & Regulatory Serv,BVAERS,Management Services (DEC),MGT,Third Party Payments,F,Private Contractors,FJ,26/10/2018,PAY01110707,CICL,City Clean,1320,Revenue,3 GS UK LTD
Brighton & Hove City Council,http://statistics.data.gov.uk/id/local-authority/00ML,Children`s & Education Serv,BVAEDU,Child Srvcs - Fostering,FLF,Supplies and Services,E,Services,EF,24/10/2018,PAY01109511,CHIC,Fostering and Adoption,912,Revenue,A G Family Support Ltd.
Brighton & Hove City Council,http://statistics.data.gov.uk/id/local-authority/00ML,Central Support and Overheads,BVACEN,Support Services (SSC),PPT,Premises Related,C,Repair Maint n Alterations,CA,05/10/2018,PAY01103640,PROP,Property and Design,700,Revenue,A J Taylor Electrical Contractors Ltd
Brighton & Hove City Council,http://statistics.data.gov.uk/id/local-authority/00ML,Non I&E,BVANON,CAP Education Services,4ED,New Construction n Conversion,PB,New Construction n Conversion,PBL5,12/10/2018,PAY01105417,EYRS,Early Years,11563.61,Capital,A J Taylor Electrical Contractors Ltd
Brighton & Hove City Council,http://statistics.data.gov.uk/id/local-authority/00ML,Non I&E,BVANON,CAP Education Services,4ED,New Construction n Conversion,PB,New Construction n Conversion,PBL5,12/10/2018,PAY01105417,OEDS,Other Education Support,25646,Capital,A J Taylor Electrical Contractors Ltd
Brighton & Hove City Council,http://statistics.data.gov.uk/id/local-authority/00ML,Central Support and Overheads,BVACEN,Holding Accounts,PPH,Premises Related,C,Repair Maint n Alterations,CA,19/10/2018,PAY01108021,PROP,Property and Design,585,Revenue,A1 Glass & Glazing (Brighton) Ltd
Brighton & Hove City Council,http://statistics.data.gov.uk/id/local-authority/00ML,Adult Social Care,BVASOC,ASC Learning Disabilities,ALD,Customer n Client Receipts,M,Fees n Charges,MB,19/10/2018,PAY01108185,LDIS,Adults LD Community Care,-327,Revenue,Abbey Care Group Ltd-Saxon Court
Brighton & Hove City Council,http://statistics.data.gov.uk/id/local-authority/00ML,Adult Social Care,BVASOC,ASC Learning Disabilities,ALD,Third Party Payments,F,Other Establishments,FH,19/10/2018,PAY01108185,LDIS,Adults LD Community Care,6296.6,Revenue,Abbey Care Group Ltd-Saxon Court
Brighton & Hove City Council,http://statistics.data.gov.uk/id/local-authority/00ML,Adult Social Care,BVASOC,ASC Memory Cognition Support,MEM,Customer n Client Receipts,M,Fees n Charges,MB,19/10/2018,PAY01108769,COGN,Memory Cognition Support,-947.08,Revenue,Abbey Retirement Home
Brighton & Hove City Council,http://statistics.data.gov.uk/id/local-authority/00ML,Adult Social Care,BVASOC,ASC Memory Cognition Support,MEM,Third Party Payments,F,Other Establishments,FH,19/10/2018,PAY01108769,COGN,Memory Cognition Support,2180,Revenue,Abbey Retirement Home
Brighton & Hove City Council,http://statistics.data.gov.uk/id/local-authority/00ML,Children`s & Education Serv,BVAEDU,Child Srvcs - Fostering,FLF,Supplies and Services,E,Miscellaneous Expenses,EM,03/10/2018,PAY01102753,CHIC,Fostering and Adoption,250,Revenue,ABC Magazine Sussex
Brighton & Hove City Council,http://statistics.data.gov.uk/id/local-authority/00ML,Highways and Transportation,BVAHRT,Traffic Mgmnt and Road Safety,TMR,Supplies and Services,E,Miscellaneous Expenses,EM,17/10/2018,PAY01107023,TPRS,Transport Projects and Eng,250,Revenue,ABC Magazine Sussex
Brighton & Hove City Council,http://statistics.data.gov.uk/id/local-authority/00ML,Adult Social Care,BVASOC,ASC Learning Disabilities,ALD,Customer n Client Receipts,M,Fees n Charges,MB,19/10/2018,PAY01108299,LDIS,Adults LD Community Care,-409,Revenue,Abi House
Brighton & Hove City Council,http://statistics.data.gov.uk/id/local-authority/00ML,Adult Social Care,BVASOC,ASC Learning Disabilities,ALD,Third Party Payments,F,Other Establishments,FH,19/10/2018,PAY01108299,LDIS,Adults LD Community Care,5220.2,Revenue,Abi House
Brighton & Hove City Council,http://statistics.data.gov.uk/id/local-authority/00ML,Non I&E,BVANON,Cap - Housing Services - HRA,4HR,New Construction n Conversion,PB,New Construction n Conversion,PBL5,12/10/2018,PAY01105840,HPAI,Property & Investment,666.66,Capital,ABIR Architects Ltd
Brighton & Hove City Council,http://statistics.data.gov.uk/id/local-authority/00ML,Non I&E,BVANON,Cap - Housing Services - HRA,4HR,New Construction n Conversion,PB,New Construction n Conversion,PBL5,17/10/2018,PAY01107228,HPAI,Property & Investment,596.25,Capital,ABIR Architects Ltd
Brighton & Hove City Council,http://statistics.data.gov.uk/id/local-authority/00ML,Non I&E,BVANON,Cap - Housing Services - HRA,4HR,New Construction n Conversion,PB,New Construction n Conversion,PBL5,31/10/2018,PAY01111218,HPAI,Property & Investment,1220,Capital,ABIR Architects Ltd
Brighton & Hove City Council,http://statistics.data.gov.uk/id/local-authority/00ML,Housing Revenue Account,BVAHOU,Hsing Management - HRA,HGM,Supplies and Services,E,Equip't Furniture n Materials,EA,12/10/2018,PAY01106469,HPAI,Property & Investment,258.95,Revenue,Abmec Ltd T/A Abbamechatronics
Brighton & Hove City Council,http://statistics.data.gov.uk/id/local-authority/00ML,Children`s & Education Serv,BVAEDU,Management Services (DEC),MGT,Supplies and Services,E,Miscellaneous Expenses,EM,03/10/2018,PAY01103159,SOCK,Social Work,7361.9,Revenue,Absolute Translations Ltd
Brighton & Hove City Council,http://statistics.data.gov.uk/id/local-authority/00ML,Non I&E,BVANON,CAP Housing Services GF,4HG,Capital Grants,PF,Capital Grants,PFL5,10/10/2018,PAY01104866,PSHG,Private Sector Housing,5070,Capital,Access Automation Ltd
Brighton & Hove City Council,http://statistics.data.gov.uk/id/local-authority/00ML,Non I&E,BVANON,CAP Housing Services GF,4HG,Capital Grants,PF,Capital Grants,PFL5,03/10/2018,PAY01103101,PSHG,Private Sector Housing,3819.95,Capital,Ace Glass (Southern) Ltd
Brighton & Hove City Council,http://statistics.data.gov.uk/id/local-authority/00ML,Children`s & Education Serv,BVAEDU,Ed Ed Other LA Attrib Sch,ELA,Transport Related,D,Other Transport Costs,DG,17/10/2018,PAY01107089,SCOR,School Organisation,480,Revenue,Ace Travel Ltd
Brighton & Hove City Council,http://statistics.data.gov.uk/id/local-authority/00ML,Public Health,BVAPHE,Public Health,PHE,Third Party Payments,F,Other Establishments,FH,26/10/2018,PAY01110484,PHCM,PH Commissioning,713.56,Revenue,Ackers Chemists Ltd
Brighton & Hove City Council,http://statistics.data.gov.uk/id/local-authority/00ML,Adult Social Care,BVASOC,ASC Learning Disabilities,ALD,Customer n Client Receipts,M,Fees n Charges,MB,19/10/2018,PAY01108143,LDIS,Adults LD Community Care,-1513.8,Revenue,Acorn (Watford) Ltd
Brighton & Hove City Council,http://statistics.data.gov.uk/id/local-authority/00ML,Adult Social Care,BVASOC,ASC Learning Disabilities,ALD,Third Party Payments,F,Other Establishments,FH,19/10/2018,PAY01108143,LDIS,Adults LD Community Care,11136.28,Revenue,Acorn (Watford) Ltd
Brighton & Hove City Council,http://statistics.data.gov.uk/id/local-authority/00ML,Central Support and Overheads,BVACEN,Support Services (SSC),PPT,Premises Related,C,Cleaning n Domestic Supps,CH,31/10/2018,PAY01111266,PROP,Property and Design,1312.21,Revenue,Acorn Environmental
Brighton & Hove City Council,http://statistics.data.gov.uk/id/local-authority/00ML,Children`s & Education Serv,BVAEDU,Child Srvcs - Othr LAC Svcs,FLX,Third Party Payments,F,Other Establishments,FH,05/10/2018,PAY01104198,AVFM,Agency Placements\VFM,-4914.25,Revenue,Acorn Homes Uk Ltd
Brighton & Hove City Council,http://statistics.data.gov.uk/id/local-authority/00ML,Children`s & Education Serv,BVAEDU,Child Srvcs - Residential Svcs,FLR,Third Party Payments,F,Other Establishments,FH,05/10/2018,PAY01104198,AVFM,Agency Placements\VFM,20785.8,Revenue,Acorn Homes Uk Ltd
Brighton & Hove City Council,http://statistics.data.gov.uk/id/local-authority/00ML,Children`s & Education Serv,BVAEDU,Ed Special Ed,EKE,Third Party Payments,F,Other Agencies,FL,12/10/2018,PAY01106403,SENS,Special Educational Needs,18815.84,Revenue,Acorn Homes Uk Ltd
Brighton & Hove City Council,http://statistics.data.gov.uk/id/local-authority/00ML,Children`s & Education Serv,BVAEDU,Child Srvcs - Othr LAC Svcs,FLX,Third Party Payments,F,Other Establishments,FH,31/10/2018,PAY01111416,AVFM,Agency Placements\VFM,4534.99,Revenue,Acorn Homes Uk Ltd
Brighton & Hove City Council,http://statistics.data.gov.uk/id/local-authority/00ML,Children`s & Education Serv,BVAEDU,Child Srvcs - Residential Svcs,FLR,Third Party Payments,F,Other Establishments,FH,31/10/2018,PAY01111416,AVFM,Agency Placements\VFM,10850,Revenue,Acorn Homes Uk Ltd
Brighton & Hove City Council,http://statistics.data.gov.uk/id/local-authority/00ML,Central Support and Overheads,BVACEN,Support Services (SSC),PPT,Supplies and Services,E,Communications n Computing,EH,26/10/2018,PAY01110926,DIGF,Digital First,643.54,Revenue,Acquia Inc
Brighton & Hove City Council,http://statistics.data.gov.uk/id/local-authority/00ML,Adult Social Care,BVASOC,Social Care Activities,ACM,Supplies and Services,E,Services,EF,05/10/2018,PAY01104176,ASIT,Assessment and SIT,2179,Revenue,Action First iPeople Ltd
Brighton & Hove City Council,http://statistics.data.gov.uk/id/local-authority/00ML,Adult Social Care,BVASOC,Social Care Activities,ACM,Supplies and Services,E,Services,EF,24/10/2018,PAY01109460,ASIT,Assessment and SIT,3578,Revenue,Action First iPeople Ltd
Brighton & Hove City Council,http://statistics.data.gov.uk/id/local-authority/00ML,Adult Social Care,BVASOC,ASC Mental Health Support,MHP,Third Party Payments,F,Other Establishments,FH,03/10/2018,PAY01103356,MENH,Mental Health Support,2926.56,Revenue,Active Prospects
Brighton & Hove City Council,http://statistics.data.gov.uk/id/local-authority/00ML,Adult Social Care,BVASOC,ASC Mental Health Support,MHP,Third Party Payments,F,Other Establishments,FH,31/10/2018,PAY01111493,MENH,Mental Health Support,2926.56,Revenue,Active Prospects
Brighton & Hove City Council,http://statistics.data.gov.uk/id/local-authority/00ML,Highways and Transportation,BVAHRT,Parking Services,PRK,Supplies and Services,E,Equip't Furniture n Materials,EA,12/10/2018,PAY01105543,PARK,Parking Services,740,Revenue,Active Pump Services Limited
Brighton & Hove City Council,http://statistics.data.gov.uk/id/local-authority/00ML,Children`s & Education Serv,BVAEDU,Ed EY PVI,ENP,Supplies and Services,E,Grants n Subscriptions,EK,26/10/2018,PAY01110499,EYRS,Early Years,1496.25,Revenue,ActiveKids Nursery
Brighton & Hove City Council,http://statistics.data.gov.uk/id/local-authority/00ML,Adult Social Care,BVASOC,ASC Learning Disabilities,ALD,Supplies and Services,E,Equip't Furniture n Materials,EA,17/10/2018,PAY01107299,LDSU,Supported Employment,267.3,Revenue,AD Colour Ltd
Brighton & Hove City Council,http://statistics.data.gov.uk/id/local-authority/00ML,Environment & Regulatory Serv,BVAERS,Street Cleansing,CLE,Transport Related,D,Contract Hire n Operating Leas,DB,05/10/2018,PAY01104118,CICL,City Clean,1100,Revenue,Addex Trading
Brighton & Hove City Council,http://statistics.data.gov.uk/id/local-authority/00ML,Adult Social Care,BVASOC,ASC Memory Cognition Support,MEM,Third Party Payments,F,Other Establishments,FH,19/10/2018,PAY01108254,COGN,Memory Cognition Support,7379.64,Revenue,Adelaide Healthcare Ltd
Brighton & Hove City Council,http://statistics.data.gov.uk/id/local-authority/00ML,Adult Social Care,BVASOC,ASC Physical Support,PHY,Third Party Payments,F,Other Establishments,FH,19/10/2018,PAY01108254,PHYS,Physical Support,2430.56,Revenue,Adelaide Healthcare Ltd
Brighton & Hove City Council,http://statistics.data.gov.uk/id/local-authority/00ML,Adult Social Care,BVASOC,ASC Physical Support,PHY,Customer n Client Receipts,M,Fees n Charges,MB,05/10/2018,PAY01103833,PHYS,Physical Support,6043.23,Revenue,Adelaide Nursing Home
Brighton & Hove City Council,http://statistics.data.gov.uk/id/local-authority/00ML,Adult Social Care,BVASOC,ASC Physical Support,PHY,Third Party Payments,F,Other Establishments,FH,05/10/2018,PAY01103833,PHYS,Physical Support,-3368.79,Revenue,Adelaide Nursing Home
Brighton & Hove City Council,http://statistics.data.gov.uk/id/local-authority/00ML,Adult Social Care,BVASOC,ASC Learning Disabilities,ALD,Customer n Client Receipts,M,Fees n Charges,MB,19/10/2018,PAY01108144,LDIS,Adults LD Community Care,-539,Revenue,Adelaide Nursing Home
Brighton & Hove City Council,http://statistics.data.gov.uk/id/local-authority/00ML,Adult Social Care,BVASOC,ASC Learning Disabilities,ALD,Third Party Payments,F,Other Establishments,FH,19/10/2018,PAY01108144,LDIS,Adults LD Community Care,3640.04,Revenue,Adelaide Nursing Home
Brighton & Hove City Council,http://statistics.data.gov.uk/id/local-authority/00ML,Adult Social Care,BVASOC,ASC Physical Support,PHY,Customer n Client Receipts,M,Fees n Charges,MB,19/10/2018,PAY01108144,PHYS,Physical Support,-8094.96,Revenue,Adelaide Nursing Home
Brighton & Hove City Council,http://statistics.data.gov.uk/id/local-authority/00ML,Adult Social Care,BVASOC,ASC Physical Support,PHY,Third Party Payments,F,Other Establishments,FH,19/10/2018,PAY01108144,PHYS,Physical Support,40619.02,Revenue,Adelaide Nursing Home
Brighton & Hove City Council,http://statistics.data.gov.uk/id/local-authority/00ML,Central Support and Overheads,BVACEN,Support Services (SSC),PPT,Premises Related,C,Repair Maint n Alterations,CA,24/10/2018,PAY01109194,PROP,Property and Design,-116.52,Revenue,ADT Fire & Security Plc
Brighton & Hove City Council,http://statistics.data.gov.uk/id/local-authority/00ML,Cultural and Related Serv,BVACUL,Culture and Heritage,CHG,Premises Related,C,Repair Maint n Alterations,CA,24/10/2018,PAY01109194,RPMU,Royal Pavilion and Museums,4930.79,Revenue,ADT Fire & Security Plc
Brighton & Hove City Council,http://statistics.data.gov.uk/id/local-authority/00ML,Highways and Transportation,BVAHRT,Parking Services,PRK,Supplies and Services,E,Services,EF,24/10/2018,PAY01109194,PARK,Parking Services,-258.19,Revenue,ADT Fire & Security Plc
Brighton & Hove City Council,http://statistics.data.gov.uk/id/local-authority/00ML,Children`s & Education Serv,BVAEDU,Ed Srvcs YP Youth Srvcs,ENY,Premises Related,C,Rents Payable,CC,31/10/2018,PAY01111578,YOTS,Youth Service,215,Revenue,Adventure Lifesigns Training Ltd t/a Adur Cente
Brighton & Hove City Council,http://statistics.data.gov.uk/id/local-authority/00ML,Planning and Development,BVAPLA,Planning Policy,PLP,Supplies and Services,E,Services,EF,26/10/2018,PAY01110264,PPMP,Planning Policy Major Projects,9400,Revenue,AECOM Infrastructure & Environment UK Ltd
Brighton & Hove City Council,http://statistics.data.gov.uk/id/local-authority/00ML,Corporate Income & Expenditure,BVAOEX,Non Service Costs,NVC,Premises Related,C,Departmental Administration,CHA,05/10/2018,PAY01104430,FINS,Financial Services,1500,Revenue,AEF Property Consulting Limited
Brighton & Hove City Council,http://statistics.data.gov.uk/id/local-authority/00ML,Corporate Income & Expenditure,BVAOEX,Non Service Costs,NVC,Premises Related,C,Departmental Administration,CHA,19/10/2018,PAY01108882,FINS,Financial Services,750,Revenue,AEF Property Consulting Limited
Brighton & Hove City Council,http://statistics.data.gov.uk/id/local-authority/00ML,Public Health,BVAPHE,Public Health,PHE,Third Party Payments,F,Other Establishments,FH,19/10/2018,PAY01108034,PHCM,PH Commissioning,19489.25,Revenue,AgeUK Brighton & Hove
Brighton & Hove City Council,http://statistics.data.gov.uk/id/local-authority/00ML,Central Services to the Public,BVACEN,Local Tax Collection,LTC,Supplies and Services,E,Services,EF,24/10/2018,PAY01109467,REVS,Revenues and Benefits,643.32,Revenue,Agilisys Contact Services Ltd
Brighton & Hove City Council,http://statistics.data.gov.uk/id/local-authority/00ML,Adult Social Care,BVASOC,ASC Physical Support,PHY,Third Party Payments,F,Other Establishments,FH,31/10/2018,PAY01111455,PHYS,Physical Support,1750,Revenue,Agincare Live in Care Ltd
Brighton & Hove City Council,http://statistics.data.gov.uk/id/local-authority/00ML,Adult Social Care,BVASOC,ASC Learning Disabilities,ALD,Third Party Payments,F,Other Establishments,FH,05/10/2018,PAY01103704,LDIS,Adults LD Community Care,394.46,Revenue,Agincare UK Ltd
Brighton & Hove City Council,http://statistics.data.gov.uk/id/local-authority/00ML,Adult Social Care,BVASOC,ASC Memory Cognition Support,MEM,Third Party Payments,F,Other Establishments,FH,05/10/2018,PAY01103704,COGN,Memory Cognition Support,1698.56,Revenue,Agincare UK Ltd
Brighton & Hove City Council,http://statistics.data.gov.uk/id/local-authority/00ML,Adult Social Care,BVASOC,ASC Mental Health Support,MHP,Third Party Payments,F,Other Establishments,FH,05/10/2018,PAY01103704,MENH,Mental Health Support,1322.5,Revenue,Agincare UK Ltd
Brighton & Hove City Council,http://statistics.data.gov.uk/id/local-authority/00ML,Adult Social Care,BVASOC,ASC Physical Support,PHY,Third Party Payments,F,Other Establishments,FH,05/10/2018,PAY01103704,PHYS,Physical Support,20697.83,Revenue,Agincare UK Ltd
Brighton & Hove City Council,http://statistics.data.gov.uk/id/local-authority/00ML,Adult Social Care,BVASOC,ASC Sensory Support,AHV,Third Party Payments,F,Other Establishments,FH,05/10/2018,PAY01103704,SORY,Sensory Support,296.46,Revenue,Agincare UK Ltd
Brighton & Hove City Council,http://statistics.data.gov.uk/id/local-authority/00ML,Adult Social Care,BVASOC,ASC Physical Support,PHY,Third Party Payments,F,Other Establishments,FH,17/10/2018,PAY01107083,PHYS,Physical Support,9146.68,Revenue,Agincare UK Ltd
Brighton & Hove City Council,http://statistics.data.gov.uk/id/local-authority/00ML,Adult Social Care,BVASOC,ASC Learning Disabilities,ALD,Third Party Payments,F,Other Establishments,FH,19/10/2018,PAY01108010,LDIS,Adults LD Community Care,425.38,Revenue,Agincare UK Ltd
Brighton & Hove City Council,http://statistics.data.gov.uk/id/local-authority/00ML,Adult Social Care,BVASOC,ASC Memory Cognition Support,MEM,Third Party Payments,F,Other Establishments,FH,19/10/2018,PAY01108010,COGN,Memory Cognition Support,1543.85,Revenue,Agincare UK Ltd
Brighton & Hove City Council,http://statistics.data.gov.uk/id/local-authority/00ML,Adult Social Care,BVASOC,ASC Mental Health Support,MHP,Third Party Payments,F,Other Establishments,FH,19/10/2018,PAY01108010,MENH,Mental Health Support,1335.48,Revenue,Agincare UK Ltd
Brighton & Hove City Council,http://statistics.data.gov.uk/id/local-authority/00ML,Adult Social Care,BVASOC,ASC Physical Support,PHY,Third Party Payments,F,Other Establishments,FH,19/10/2018,PAY01108010,PHYS,Physical Support,19263.4,Revenue,Agincare UK Ltd
Brighton & Hove City Council,http://statistics.data.gov.uk/id/local-authority/00ML,Adult Social Care,BVASOC,ASC Sensory Support,AHV,Third Party Payments,F,Other Establishments,FH,19/10/2018,PAY01108010,SORY,Sensory Support,218.44,Revenue,Agincare UK Ltd
Brighton & Hove City Council,http://statistics.data.gov.uk/id/local-authority/00ML,Adult Social Care,BVASOC,ASC Learning Disabilities,ALD,Third Party Payments,F,Other Establishments,FH,26/10/2018,PAY01110039,LDIS,Adults LD Community Care,4111.09,Revenue,Agincare UK Ltd
Brighton & Hove City Council,http://statistics.data.gov.uk/id/local-authority/00ML,Adult Social Care,BVASOC,ASC Memory Cognition Support,MEM,Third Party Payments,F,Other Establishments,FH,26/10/2018,PAY01110039,COGN,Memory Cognition Support,22194.7,Revenue,Agincare UK Ltd
Brighton & Hove City Council,http://statistics.data.gov.uk/id/local-authority/00ML,Adult Social Care,BVASOC,ASC Mental Health Support,MHP,Third Party Payments,F,Other Establishments,FH,26/10/2018,PAY01110039,MENH,Mental Health Support,20237.76,Revenue,Agincare UK Ltd
Brighton & Hove City Council,http://statistics.data.gov.uk/id/local-authority/00ML,Adult Social Care,BVASOC,ASC Physical Support,PHY,Third Party Payments,F,Other Establishments,FH,26/10/2018,PAY01110039,PHYS,Physical Support,82.23,Revenue,Agincare UK Ltd
Brighton & Hove City Council,http://statistics.data.gov.uk/id/local-authority/00ML,Adult Social Care,BVASOC,ASC Sensory Support,AHV,Third Party Payments,F,Other Establishments,FH,26/10/2018,PAY01110039,SORY,Sensory Support,4742.33,Revenue,Agincare UK Ltd
Brighton & Hove City Council,http://statistics.data.gov.uk/id/local-authority/00ML,Adult Social Care,BVASOC,ASC Substance Misuse,ADM,Third Party Payments,F,Other Establishments,FH,26/10/2018,PAY01110039,SUBM,Substance Misuse Support,1599.17,Revenue,Agincare UK Ltd
Brighton & Hove City Council,http://statistics.data.gov.uk/id/local-authority/00ML,Housing General Fund,BVAHOG,Homelessness,HML,Premises Related,C,Rents Payable,CC,12/10/2018,PAY01106458,TAAS,Temp Accom and Allocations,650,Revenue,AHJ Holdings Ltd
Brighton & Hove City Council,http://statistics.data.gov.uk/id/local-authority/00ML,Adult Social Care,BVASOC,ASC Learning Disabilities,ALD,Customer n Client Receipts,M,Fees n Charges,MB,19/10/2018,PAY01108019,LDIS,Adults LD Community Care,-3528,Revenue,Aitch Care Homes (London) Ltd
Brighton & Hove City Council,http://statistics.data.gov.uk/id/local-authority/00ML,Adult Social Care,BVASOC,ASC Learning Disabilities,ALD,Third Party Payments,F,Other Establishments,FH,19/10/2018,PAY01108019,LDIS,Adults LD Community Care,53346.44,Revenue,Aitch Care Homes (London) Ltd
Brighton & Hove City Council,http://statistics.data.gov.uk/id/local-authority/00ML,Public Health,BVAPHE,Public Health,PHE,Third Party Payments,F,Other Establishments,FH,26/10/2018,PAY01109930,PHCM,PH Commissioning,5262.31,Revenue,Albion Street Surgery
Brighton & Hove City Council,http://statistics.data.gov.uk/id/local-authority/00ML,Cultural and Related Serv,BVACUL,Culture and Heritage,CHG,Customer n Client Receipts,M,Sales,MA,03/10/2018,PAY01103417,VENU,Venues,25949.73,Revenue,Alchemy Promotions T/A The MJR Group 
Brighton & Hove City Council,http://statistics.data.gov.uk/id/local-authority/00ML,Cultural and Related Serv,BVACUL,Culture and Heritage,CHG,Customer n Client Receipts,M,Sales,MA,12/10/2018,PAY01106703,VENU,Venues,7182.06,Revenue,Alchemy Promotions T/A The MJR Group 
Brighton & Hove City Council,http://statistics.data.gov.uk/id/local-authority/00ML,Children`s & Education Serv,BVAEDU,Child Srvcs Com and Scl Work,FCW,Supplies and Services,E,Services,EF,12/10/2018,PAY01105518,SPEA,Specialist Assessment,1082,Revenue,Alere Toxicology PLC
Brighton & Hove City Council,http://statistics.data.gov.uk/id/local-authority/00ML,Children`s & Education Serv,BVAEDU,Child Srvcs Com and Scl Work,FCW,Supplies and Services,E,Services,EF,17/10/2018,PAY01107075,SPEA,Specialist Assessment,377,Revenue,Alere Toxicology PLC
Brighton & Hove City Council,http://statistics.data.gov.uk/id/local-authority/00ML,Children`s & Education Serv,BVAEDU,Child Srvcs Com and Scl Work,FCW,Supplies and Services,E,Services,EF,19/10/2018,PAY01108005,SPEA,Specialist Assessment,377,Revenue,Alere Toxicology PLC
Brighton & Hove City Council,http://statistics.data.gov.uk/id/local-authority/00ML,Children`s & Education Serv,BVAEDU,Child Srvcs Com and Scl Work,FCW,Supplies and Services,E,Services,EF,24/10/2018,PAY01109112,SPEA,Specialist Assessment,606,Revenue,Alere Toxicology PLC
Brighton & Hove City Council,http://statistics.data.gov.uk/id/local-authority/00ML,Planning and Development,BVAPLA,Economic Development,ECD,Premises Related,C,Repair Maint n Alterations,CA,05/10/2018,PAY01103912,PROP,Property and Design,6996.84,Revenue,Alfa Electric Ltd
Brighton & Hove City Council,http://statistics.data.gov.uk/id/local-authority/00ML,Planning and Development,BVAPLA,Economic Development,ECD,Premises Related,C,Repair Maint n Alterations,CA,12/10/2018,PAY01105769,PROP,Property and Design,617.82,Revenue,Alfa Electric Ltd
Brighton & Hove City Council,http://statistics.data.gov.uk/id/local-authority/00ML,Children`s & Education Serv,BVAEDU,Child Srvcs Adoption,FAA,Supplies and Services,E,Services,EF,31/10/2018,PAY01111463,CHIC,Fostering and Adoption,810,Revenue,Alice Mallorie Therapy Services
Brighton & Hove City Council,http://statistics.data.gov.uk/id/local-authority/00ML,Adult Social Care,BVASOC,ASC Physical Support,PHY,Third Party Payments,F,Other Establishments,FH,03/10/2018,PAY01103241,PHYS,Physical Support,620.58,Revenue,Alina Homecare Ltd
Brighton & Hove City Council,http://statistics.data.gov.uk/id/local-authority/00ML,Adult Social Care,BVASOC,ASC Memory Cognition Support,MEM,Third Party Payments,F,Other Establishments,FH,05/10/2018,PAY01104137,COGN,Memory Cognition Support,1502.72,Revenue,Alina Homecare Ltd
Brighton & Hove City Council,http://statistics.data.gov.uk/id/local-authority/00ML,Adult Social Care,BVASOC,ASC Physical Support,PHY,Third Party Payments,F,Other Establishments,FH,05/10/2018,PAY01104137,PHYS,Physical Support,48618.91,Revenue,Alina Homecare Ltd
Brighton & Hove City Council,http://statistics.data.gov.uk/id/local-authority/00ML,Adult Social Care,BVASOC,ASC Memory Cognition Support,MEM,Third Party Payments,F,Other Establishments,FH,12/10/2018,PAY01106267,COGN,Memory Cognition Support,361.98,Revenue,Alina Homecare Ltd
Brighton & Hove City Council,http://statistics.data.gov.uk/id/local-authority/00ML,Adult Social Care,BVASOC,ASC Physical Support,PHY,Third Party Payments,F,Other Establishments,FH,12/10/2018,PAY01106267,PHYS,Physical Support,12112.95,Revenue,Alina Homecare Ltd
Brighton & Hove City Council,http://statistics.data.gov.uk/id/local-authority/00ML,Children`s & Education Serv,BVAEDU,Child Srvcs - Other Fam Supp,FFX,Supplies and Services,E,Miscellaneous Expenses,EM,17/10/2018,PAY01107632,FAMP,Families\Prevention,285,Revenue,Alison Powney Training and Consultancy
Brighton & Hove City Council,http://statistics.data.gov.uk/id/local-authority/00ML,Cultural and Related Serv,BVACUL,Culture and Heritage,CHG,Customer n Client Receipts,M,Fees n Charges,MB,24/10/2018,PAY01109291,RPMU,Royal Pavilion and Museums,313.2,Revenue,All In One Tours Ltd
Brighton & Hove City Council,http://statistics.data.gov.uk/id/local-authority/00ML,Environment & Regulatory Serv,BVAERS,Management Services (DEC),MGT,Premises Related,C,Repair Maint n Alterations,CA,17/10/2018,PAY01107602,CICL,City Clean,530,Revenue,All Phase Electrical Contractors Ltd
Brighton & Hove City Council,http://statistics.data.gov.uk/id/local-authority/00ML,Environment & Regulatory Serv,BVAERS,Management Services (DEC),MGT,Premises Related,C,Repair Maint n Alterations,CA,24/10/2018,PAY01109643,CICL,City Clean,2915,Revenue,All Phase Electrical Contractors Ltd
Brighton & Hove City Council,http://statistics.data.gov.uk/id/local-authority/00ML,Adult Social Care,BVASOC,ASC Mental Health Support,MHP,Customer n Client Receipts,M,Fees n Charges,MB,19/10/2018,PAY01108654,MENH,Mental Health Support,-409,Revenue,Alliance Home Care Ltd
Brighton & Hove City Council,http://statistics.data.gov.uk/id/local-authority/00ML,Adult Social Care,BVASOC,ASC Mental Health Support,MHP,Third Party Payments,F,Other Establishments,FH,19/10/2018,PAY01108654,MENH,Mental Health Support,3920,Revenue,Alliance Home Care Ltd
Brighton & Hove City Council,http://statistics.data.gov.uk/id/local-authority/00ML,Adult Social Care,BVASOC,ASC Mental Health Support,MHP,Third Party Payments,F,Other Establishments,FH,26/10/2018,PAY01110838,MENH,Mental Health Support,22552.77,Revenue,Allied Care Services Ltd
Brighton & Hove City Council,http://statistics.data.gov.uk/id/local-authority/00ML,Adult Social Care,BVASOC,ASC Learning Disabilities,ALD,Third Party Payments,F,Other Establishments,FH,10/10/2018,PAY01104603,LDIS,Adults LD Community Care,269.84,Revenue,Allied Healthcare
Brighton & Hove City Council,http://statistics.data.gov.uk/id/local-authority/00ML,Adult Social Care,BVASOC,ASC Memory Cognition Support,MEM,Third Party Payments,F,Other Establishments,FH,10/10/2018,PAY01104603,COGN,Memory Cognition Support,815.85,Revenue,Allied Healthcare
Brighton & Hove City Council,http://statistics.data.gov.uk/id/local-authority/00ML,Adult Social Care,BVASOC,ASC Mental Health Support,MHP,Third Party Payments,F,Other Establishments,FH,10/10/2018,PAY01104603,MENH,Mental Health Support,2185.06,Revenue,Allied Healthcare
Brighton & Hove City Council,http://statistics.data.gov.uk/id/local-authority/00ML,Adult Social Care,BVASOC,ASC Physical Support,PHY,Third Party Payments,F,Other Establishments,FH,10/10/2018,PAY01104603,PHYS,Physical Support,13905.79,Revenue,Allied Healthcare
Brighton & Hove City Council,http://statistics.data.gov.uk/id/local-authority/00ML,Adult Social Care,BVASOC,ASC Sensory Support,AHV,Third Party Payments,F,Other Establishments,FH,10/10/2018,PAY01104603,SORY,Sensory Support,17.84,Revenue,Allied Healthcare
Brighton & Hove City Council,http://statistics.data.gov.uk/id/local-authority/00ML,Adult Social Care,BVASOC,ASC Learning Disabilities,ALD,Third Party Payments,F,Other Establishments,FH,19/10/2018,PAY01107961,LDIS,Adults LD Community Care,124.24,Revenue,Allied Healthcare
Brighton & Hove City Council,http://statistics.data.gov.uk/id/local-authority/00ML,Adult Social Care,BVASOC,ASC Memory Cognition Support,MEM,Third Party Payments,F,Other Establishments,FH,19/10/2018,PAY01107961,COGN,Memory Cognition Support,281.78,Revenue,Allied Healthcare
Brighton & Hove City Council,http://statistics.data.gov.uk/id/local-authority/00ML,Adult Social Care,BVASOC,ASC Mental Health Support,MHP,Third Party Payments,F,Other Establishments,FH,19/10/2018,PAY01107961,MENH,Mental Health Support,1124.92,Revenue,Allied Healthcare
Brighton & Hove City Council,http://statistics.data.gov.uk/id/local-authority/00ML,Adult Social Care,BVASOC,ASC Physical Support,PHY,Third Party Payments,F,Other Establishments,FH,19/10/2018,PAY01107961,PHYS,Physical Support,7304.71,Revenue,Allied Healthcare
Brighton & Hove City Council,http://statistics.data.gov.uk/id/local-authority/00ML,Adult Social Care,BVASOC,ASC Sensory Support,AHV,Third Party Payments,F,Other Establishments,FH,19/10/2018,PAY01107961,SORY,Sensory Support,8.92,Revenue,Allied Healthcare
Brighton & Hove City Council,http://statistics.data.gov.uk/id/local-authority/00ML,Adult Social Care,BVASOC,ASC Learning Disabilities,ALD,Third Party Payments,F,Other Establishments,FH,24/10/2018,PAY01109094,LDIS,Adults LD Community Care,136.13,Revenue,Allied Healthcare
Brighton & Hove City Council,http://statistics.data.gov.uk/id/local-authority/00ML,Adult Social Care,BVASOC,ASC Memory Cognition Support,MEM,Third Party Payments,F,Other Establishments,FH,24/10/2018,PAY01109094,COGN,Memory Cognition Support,369.44,Revenue,Allied Healthcare
Brighton & Hove City Council,http://statistics.data.gov.uk/id/local-authority/00ML,Adult Social Care,BVASOC,ASC Mental Health Support,MHP,Third Party Payments,F,Other Establishments,FH,24/10/2018,PAY01109094,MENH,Mental Health Support,1159.97,Revenue,Allied Healthcare
Brighton & Hove City Council,http://statistics.data.gov.uk/id/local-authority/00ML,Adult Social Care,BVASOC,ASC Physical Support,PHY,Third Party Payments,F,Other Establishments,FH,24/10/2018,PAY01109094,PHYS,Physical Support,7534.14,Revenue,Allied Healthcare
Brighton & Hove City Council,http://statistics.data.gov.uk/id/local-authority/00ML,Adult Social Care,BVASOC,ASC Sensory Support,AHV,Third Party Payments,F,Other Establishments,FH,24/10/2018,PAY01109094,SORY,Sensory Support,8.92,Revenue,Allied Healthcare
Brighton & Hove City Council,http://statistics.data.gov.uk/id/local-authority/00ML,Adult Social Care,BVASOC,ASC Learning Disabilities,ALD,Third Party Payments,F,Other Establishments,FH,31/10/2018,PAY01111011,LDIS,Adults LD Community Care,136.11,Revenue,Allied Healthcare
Brighton & Hove City Council,http://statistics.data.gov.uk/id/local-authority/00ML,Adult Social Care,BVASOC,ASC Memory Cognition Support,MEM,Third Party Payments,F,Other Establishments,FH,31/10/2018,PAY01111011,COGN,Memory Cognition Support,415.79,Revenue,Allied Healthcare
Brighton & Hove City Council,http://statistics.data.gov.uk/id/local-authority/00ML,Adult Social Care,BVASOC,ASC Mental Health Support,MHP,Third Party Payments,F,Other Establishments,FH,31/10/2018,PAY01111011,MENH,Mental Health Support,1140.36,Revenue,Allied Healthcare
Brighton & Hove City Council,http://statistics.data.gov.uk/id/local-authority/00ML,Adult Social Care,BVASOC,ASC Physical Support,PHY,Third Party Payments,F,Other Establishments,FH,31/10/2018,PAY01111011,PHYS,Physical Support,7382.93,Revenue,Allied Healthcare
Brighton & Hove City Council,http://statistics.data.gov.uk/id/local-authority/00ML,Adult Social Care,BVASOC,ASC Sensory Support,AHV,Third Party Payments,F,Other Establishments,FH,31/10/2018,PAY01111011,SORY,Sensory Support,9.51,Revenue,Allied Healthcare
Brighton & Hove City Council,http://statistics.data.gov.uk/id/local-authority/00ML,Public Health,BVAPHE,Public Health,PHE,Third Party Payments,F,Other Establishments,FH,26/10/2018,PAY01110017,PHCM,PH Commissioning,1343.43,Revenue,Allied Medical Practice
Brighton & Hove City Council,http://statistics.data.gov.uk/id/local-authority/00ML,Housing Revenue Account,BVAHOU,Hsing Management - HRA,HGM,Premises Related,C,Repair Maint n Alterations,CA,05/10/2018,PAY01103898,HPAI,Property & Investment,4087.22,Revenue,Allied Protection Ltd
Brighton & Hove City Council,http://statistics.data.gov.uk/id/local-authority/00ML,Adult Social Care,BVASOC,ASC Learning Disabilities,ALD,Premises Related,C,Repair Maint n Alterations,CA,10/10/2018,PAY01104594,LDAS,Adults LD Accomodation Service,2911,Revenue,Allsop & Francis Ltd
Brighton & Hove City Council,http://statistics.data.gov.uk/id/local-authority/00ML,Central Support and Overheads,BVACEN,Support Services (SSC),PPT,Premises Related,C,Repair Maint n Alterations,CA,12/10/2018,PAY01105465,PROP,Property and Design,677.46,Revenue,Allsop & Francis Ltd
Brighton & Hove City Council,http://statistics.data.gov.uk/id/local-authority/00ML,Central Support and Overheads,BVACEN,Support Services (SSC),PPT,Premises Related,C,Repair Maint n Alterations,CA,19/10/2018,PAY01107949,PROP,Property and Design,1065.5,Revenue,Allsop & Francis Ltd
Brighton & Hove City Council,http://statistics.data.gov.uk/id/local-authority/00ML,Central Support and Overheads,BVACEN,Support Services (SSC),PPT,Premises Related,C,Repair Maint n Alterations,CA,26/10/2018,PAY01109997,PROP,Property and Design,352.04,Revenue,Allsop & Francis Ltd
Brighton & Hove City Council,http://statistics.data.gov.uk/id/local-authority/00ML,Planning and Development,BVAPLA,Community Development,CDV,Supplies and Services,E,Grants n Subscriptions,EK,05/10/2018,PAY01103643,CMNY,Communities and Equalities,7922,Revenue,Allsorts Youth Project
Brighton & Hove City Council,http://statistics.data.gov.uk/id/local-authority/00ML,Central Support and Overheads,BVACEN,Holding Accounts,PPH,Transport Related,D,Direct Transport Costs,DA,05/10/2018,PAY01104028,CICL,City Clean,7034.13,Revenue,Allstar Business Solutions Ltd
Brighton & Hove City Council,http://statistics.data.gov.uk/id/local-authority/00ML,Central Support and Overheads,BVACEN,Holding Accounts,PPH,Transport Related,D,Direct Transport Costs,DA,26/10/2018,PAY01110395,CICL,City Clean,7302.17,Revenue,Allstar Business Solutions Ltd
Brighton & Hove City Council,http://statistics.data.gov.uk/id/local-authority/00ML,Central Support and Overheads,BVACEN,Holding Accounts,PPH,Transport Related,D,Direct Transport Costs,DA,31/10/2018,PAY01111304,CICL,City Clean,6932.24,Revenue,Allstar Business Solutions Ltd
Brighton & Hove City Council,http://statistics.data.gov.uk/id/local-authority/00ML,Non I&E,BVANON,CAP Education Services,4ED,New Construction n Conversion,PB,New Construction n Conversion,PBL5,03/10/2018,PAY01102875,EYRS,Early Years,650,Capital,Allweather Roofing & Construction Ltd.
Brighton & Hove City Council,http://statistics.data.gov.uk/id/local-authority/00ML,Children`s & Education Serv,BVAEDU,Child Srvcs - Fostering,FLF,Supplies and Services,E,Miscellaneous Expenses,EM,17/10/2018,PAY01107076,CHIC,Fostering and Adoption,247.6,Revenue,Almega Limited
Brighton & Hove City Council,http://statistics.data.gov.uk/id/local-authority/00ML,Central Support and Overheads,BVACEN,Support Services (SSC),PPT,Supplies and Services,E,Communications n Computing,EH,24/10/2018,PAY01109252,ICTA,ICT,33190.52,Revenue,Altodigital Networks Ltd
Brighton & Hove City Council,http://statistics.data.gov.uk/id/local-authority/00ML,Central Support and Overheads,BVACEN,Support Services (SSC),PPT,Premises Related,C,Repair Maint n Alterations,CA,03/10/2018,PAY01102833,PROP,Property and Design,14458.08,Revenue,AM Security Ltd t/a AM Fire & Security Group
Brighton & Hove City Council,http://statistics.data.gov.uk/id/local-authority/00ML,Highways and Transportation,BVAHRT,Parking Services,PRK,Supplies and Services,E,Equip't Furniture n Materials,EA,03/10/2018,PAY01102833,PARK,Parking Services,2319.13,Revenue,AM Security Ltd t/a AM Fire & Security Group
Brighton & Hove City Council,http://statistics.data.gov.uk/id/local-authority/00ML,Central Support and Overheads,BVACEN,Support Services (SSC),PPT,Premises Related,C,Repair Maint n Alterations,CA,05/10/2018,PAY01103722,PROP,Property and Design,3948.94,Revenue,AM Security Ltd t/a AM Fire & Security Group
Brighton & Hove City Council,http://statistics.data.gov.uk/id/local-authority/00ML,Cultural and Related Serv,BVACUL,Open Spaces,PEN,Supplies and Services,E,Print Stat & Gen Office Exps,ED,05/10/2018,PAY01103722,CIPK,City Parks,309.52,Revenue,AM Security Ltd t/a AM Fire & Security Group
Brighton & Hove City Council,http://statistics.data.gov.uk/id/local-authority/00ML,Central Support and Overheads,BVACEN,Support Services (SSC),PPT,Premises Related,C,Repair Maint n Alterations,CA,12/10/2018,PAY01105552,PROP,Property and Design,687.9,Revenue,AM Security Ltd t/a AM Fire & Security Group
Brighton & Hove City Council,http://statistics.data.gov.uk/id/local-authority/00ML,Central Support and Overheads,BVACEN,Holding Accounts,PPH,Premises Related,C,Repair Maint n Alterations,CA,17/10/2018,PAY01107102,PROP,Property and Design,507.11,Revenue,AM Security Ltd t/a AM Fire & Security Group
Brighton & Hove City Council,http://statistics.data.gov.uk/id/local-authority/00ML,Central Support and Overheads,BVACEN,Support Services (SSC),PPT,Premises Related,C,Repair Maint n Alterations,CA,17/10/2018,PAY01107102,PROP,Property and Design,380.92,Revenue,AM Security Ltd t/a AM Fire & Security Group
Brighton & Hove City Council,http://statistics.data.gov.uk/id/local-authority/00ML,Central Support and Overheads,BVACEN,Support Services (SSC),PPT,Premises Related,C,Repair Maint n Alterations,CA,19/10/2018,PAY01108039,PROP,Property and Design,918.82,Revenue,AM Security Ltd t/a AM Fire & Security Group
Brighton & Hove City Council,http://statistics.data.gov.uk/id/local-authority/00ML,Non I&E,BVANON,CAP Social Services,4RV,New Construction n Conversion,PB,New Construction n Conversion,PBL5,19/10/2018,PAY01108039,PROP,Property and Design,396,Capital,AM Security Ltd t/a AM Fire & Security Group
Brighton & Hove City Council,http://statistics.data.gov.uk/id/local-authority/00ML,Adult Social Care,BVASOC,ASC Learning Disabilities,ALD,Supplies and Services,E,Equip't Furniture n Materials,EA,26/10/2018,PAY01110649,LDSU,Supported Employment,245.9,Revenue,Amaya Sales UK
Brighton & Hove City Council,http://statistics.data.gov.uk/id/local-authority/00ML,Adult Social Care,BVASOC,ASC Learning Disabilities,ALD,Third Party Payments,F,Other Establishments,FH,03/10/2018,PAY01102716,LDSU,Supported Employment,375,Revenue,Amaze Brighton & Hove
Brighton & Hove City Council,http://statistics.data.gov.uk/id/local-authority/00ML,Planning and Development,BVAPLA,Community Development,CDV,Supplies and Services,E,Grants n Subscriptions,EK,05/10/2018,PAY01103634,CMNY,Communities and Equalities,22487,Revenue,Amaze Brighton & Hove
Brighton & Hove City Council,http://statistics.data.gov.uk/id/local-authority/00ML,Adult Social Care,BVASOC,ASC Learning Disabilities,ALD,Third Party Payments,F,Other Establishments,FH,31/10/2018,PAY01110955,LDSU,Supported Employment,375,Revenue,Amaze Brighton & Hove
Brighton & Hove City Council,http://statistics.data.gov.uk/id/local-authority/00ML,Adult Social Care,BVASOC,ASC Memory Cognition Support,MEM,Third Party Payments,F,Other Establishments,FH,19/10/2018,PAY01107948,COGN,Memory Cognition Support,4335.6,Revenue,Amberley Lodge Care Home Ltd
Brighton & Hove City Council,http://statistics.data.gov.uk/id/local-authority/00ML,Non-BHC Organisations,BVANON,Trusts,TRT,Supplies and Services,E,Miscellaneous Expenses,EM,19/10/2018,PAY01107948,NBHC,Non Council,50,Revenue,Amberley Lodge Care Home Ltd
Brighton & Hove City Council,http://statistics.data.gov.uk/id/local-authority/00ML,Cultural and Related Serv,BVACUL,Open Spaces,PEN,Supplies and Services,E,Equip't Furniture n Materials,EA,03/10/2018,PAY01102832,CIPK,City Parks,471.42,Revenue,AMP Groundcare Machinery Services Ltd
Brighton & Hove City Council,http://statistics.data.gov.uk/id/local-authority/00ML,Environment & Regulatory Serv,BVAERS,Management Services (DEC),MGT,Transport Related,D,Direct Transport Costs,DA,03/10/2018,PAY01102832,CICL,City Clean,887.75,Revenue,AMP Groundcare Machinery Services Ltd
Brighton & Hove City Council,http://statistics.data.gov.uk/id/local-authority/00ML,Cultural and Related Serv,BVACUL,Open Spaces,PEN,Supplies and Services,E,Equip't Furniture n Materials,EA,17/10/2018,PAY01107101,CIPK,City Parks,834,Revenue,AMP Groundcare Machinery Services Ltd
Brighton & Hove City Council,http://statistics.data.gov.uk/id/local-authority/00ML,Environment & Regulatory Serv,BVAERS,Management Services (DEC),MGT,Transport Related,D,Direct Transport Costs,DA,17/10/2018,PAY01107101,CICL,City Clean,835.11,Revenue,AMP Groundcare Machinery Services Ltd
Brighton & Hove City Council,http://statistics.data.gov.uk/id/local-authority/00ML,Environment & Regulatory Serv,BVAERS,Court Services,CRT,Supplies and Services,E,Equip't Furniture n Materials,EA,31/10/2018,PAY01111283,CORO,Coroner,375,Revenue,Analytical Services International Ltd
Brighton & Hove City Council,http://statistics.data.gov.uk/id/local-authority/00ML,Children`s & Education Serv,BVAEDU,Child Srvcs - Residential Svcs,FLR,Third Party Payments,F,Other Establishments,FH,10/10/2018,PAY01104788,AVFM,Agency Placements\VFM,35232.77,Revenue,Anderida Adolescent Care Ltd
Brighton & Hove City Council,http://statistics.data.gov.uk/id/local-authority/00ML,Children`s & Education Serv,BVAEDU,Child Srvcs - Fostering,FLF,Third Party Payments,F,Other Establishments,FH,17/10/2018,PAY01107639,AVFM,Agency Placements\VFM,2667,Revenue,Andicars (Havant) Ltd
Brighton & Hove City Council,http://statistics.data.gov.uk/id/local-authority/00ML,Cultural and Related Serv,BVACUL,Recreation and Sport,REC,Premises Related,C,Repair Maint n Alterations,CA,03/10/2018,PAY01102834,SPLE,Sport and Leisure,9068.9,Revenue,Andrews Sykes Group PLC
Brighton & Hove City Council,http://statistics.data.gov.uk/id/local-authority/00ML,Housing Revenue Account,BVAHOU,Hsing Management - HRA,HGM,Supplies and Services,E,Equip't Furniture n Materials,EA,19/10/2018,PAY01108658,HIII,Income Involvement Improvement,1980.66,Revenue,Angel Springs Ltd t/a Waterlogic
Brighton & Hove City Council,http://statistics.data.gov.uk/id/local-authority/00ML,Housing Revenue Account,BVAHOU,Hsing Management - HRA,HGM,Supplies and Services,E,Print Stat & Gen Office Exps,ED,26/10/2018,PAY01110641,HIII,Income Involvement Improvement,315.54,Revenue,Angel Springs Ltd t/a Waterlogic
Brighton & Hove City Council,http://statistics.data.gov.uk/id/local-authority/00ML,Cultural and Related Serv,BVACUL,Tourism,TRM,Customer n Client Receipts,M,Fees n Charges,MB,03/10/2018,PAY01102771,TOMA,Tourism and Marketing,312.75,Revenue,Anya Hotels Ltd t/a Queens Hotel Brighton
Brighton & Hove City Council,http://statistics.data.gov.uk/id/local-authority/00ML,Adult Social Care,BVASOC,ASC Physical Support,PHY,Third Party Payments,F,Other Establishments,FH,17/10/2018,PAY01107535,PHYS,Physical Support,375,Revenue,Anytime Removals
Brighton & Hove City Council,http://statistics.data.gov.uk/id/local-authority/00ML,Central Support and Overheads,BVACEN,Support Services (SSC),PPT,Supplies and Services,E,Services,EF,03/10/2018,PAY01103180,PROP,Property and Design,54153.97,Revenue,AP Security (APS) Ltd
Brighton & Hove City Council,http://statistics.data.gov.uk/id/local-authority/00ML,Central Support and Overheads,BVACEN,Support Services (SSC),PPT,Premises Related,C,Repair Maint n Alterations,CA,12/10/2018,PAY01106149,PROP,Property and Design,106,Revenue,AP Security (APS) Ltd
Brighton & Hove City Council,http://statistics.data.gov.uk/id/local-authority/00ML,Central Support and Overheads,BVACEN,Support Services (SSC),PPT,Supplies and Services,E,Services,EF,12/10/2018,PAY01106149,PROP,Property and Design,59770.51,Revenue,AP Security (APS) Ltd
Brighton & Hove City Council,http://statistics.data.gov.uk/id/local-authority/00ML,Children`s & Education Serv,BVAEDU,Ed Primary Schools,EHH,Supplies and Services,E,Services,EF,12/10/2018,PAY01106149,SCHL,Schools,-92,Revenue,AP Security (APS) Ltd
Brighton & Hove City Council,http://statistics.data.gov.uk/id/local-authority/00ML,Adult Social Care,BVASOC,ASC Learning Disabilities,ALD,Third Party Payments,F,Other Establishments,FH,10/10/2018,PAY01104604,LDIS,Adults LD Community Care,258.58,Revenue,Apex Prime Care Ltd
Brighton & Hove City Council,http://statistics.data.gov.uk/id/local-authority/00ML,Adult Social Care,BVASOC,ASC Memory Cognition Support,MEM,Third Party Payments,F,Other Establishments,FH,10/10/2018,PAY01104604,COGN,Memory Cognition Support,2016.95,Revenue,Apex Prime Care Ltd
Brighton & Hove City Council,http://statistics.data.gov.uk/id/local-authority/00ML,Adult Social Care,BVASOC,ASC Mental Health Support,MHP,Third Party Payments,F,Other Establishments,FH,10/10/2018,PAY01104604,MENH,Mental Health Support,1485.31,Revenue,Apex Prime Care Ltd
Brighton & Hove City Council,http://statistics.data.gov.uk/id/local-authority/00ML,Adult Social Care,BVASOC,ASC Physical Support,PHY,Third Party Payments,F,Other Establishments,FH,10/10/2018,PAY01104604,PHYS,Physical Support,34433.7,Revenue,Apex Prime Care Ltd
Brighton & Hove City Council,http://statistics.data.gov.uk/id/local-authority/00ML,Adult Social Care,BVASOC,ASC Substance Misuse,ADM,Third Party Payments,F,Other Establishments,FH,10/10/2018,PAY01104604,SUBM,Substance Misuse Support,205.11,Revenue,Apex Prime Care Ltd
Brighton & Hove City Council,http://statistics.data.gov.uk/id/local-authority/00ML,Adult Social Care,BVASOC,ASC Learning Disabilities,ALD,Third Party Payments,F,Other Establishments,FH,12/10/2018,PAY01105477,LDIS,Adults LD Community Care,137.32,Revenue,Apex Prime Care Ltd
Brighton & Hove City Council,http://statistics.data.gov.uk/id/local-authority/00ML,Adult Social Care,BVASOC,ASC Memory Cognition Support,MEM,Third Party Payments,F,Other Establishments,FH,12/10/2018,PAY01105477,COGN,Memory Cognition Support,955.08,Revenue,Apex Prime Care Ltd
Brighton & Hove City Council,http://statistics.data.gov.uk/id/local-authority/00ML,Adult Social Care,BVASOC,ASC Mental Health Support,MHP,Third Party Payments,F,Other Establishments,FH,12/10/2018,PAY01105477,MENH,Mental Health Support,756.77,Revenue,Apex Prime Care Ltd
Brighton & Hove City Council,http://statistics.data.gov.uk/id/local-authority/00ML,Adult Social Care,BVASOC,ASC Physical Support,PHY,Third Party Payments,F,Other Establishments,FH,12/10/2018,PAY01105477,PHYS,Physical Support,17705.88,Revenue,Apex Prime Care Ltd
Brighton & Hove City Council,http://statistics.data.gov.uk/id/local-authority/00ML,Adult Social Care,BVASOC,ASC Substance Misuse,ADM,Third Party Payments,F,Other Establishments,FH,12/10/2018,PAY01105477,SUBM,Substance Misuse Support,98.1,Revenue,Apex Prime Care Ltd
Brighton & Hove City Council,http://statistics.data.gov.uk/id/local-authority/00ML,Adult Social Care,BVASOC,ASC Mental Health Support,MHP,Third Party Payments,F,Other Establishments,FH,17/10/2018,PAY01107044,MENH,Mental Health Support,196.13,Revenue,Apex Prime Care Ltd
Brighton & Hove City Council,http://statistics.data.gov.uk/id/local-authority/00ML,Adult Social Care,BVASOC,ASC Physical Support,PHY,Third Party Payments,F,Other Establishments,FH,17/10/2018,PAY01107044,PHYS,Physical Support,1486.13,Revenue,Apex Prime Care Ltd
Brighton & Hove City Council,http://statistics.data.gov.uk/id/local-authority/00ML,Adult Social Care,BVASOC,ASC Learning Disabilities,ALD,Third Party Payments,F,Other Establishments,FH,19/10/2018,PAY01107967,LDIS,Adults LD Community Care,73.13,Revenue,Apex Prime Care Ltd
Brighton & Hove City Council,http://statistics.data.gov.uk/id/local-authority/00ML,Adult Social Care,BVASOC,ASC Memory Cognition Support,MEM,Third Party Payments,F,Other Establishments,FH,19/10/2018,PAY01107967,COGN,Memory Cognition Support,1010.38,Revenue,Apex Prime Care Ltd
Brighton & Hove City Council,http://statistics.data.gov.uk/id/local-authority/00ML,Adult Social Care,BVASOC,ASC Mental Health Support,MHP,Third Party Payments,F,Other Establishments,FH,19/10/2018,PAY01107967,MENH,Mental Health Support,829,Revenue,Apex Prime Care Ltd
Brighton & Hove City Council,http://statistics.data.gov.uk/id/local-authority/00ML,Adult Social Care,BVASOC,ASC Physical Support,PHY,Third Party Payments,F,Other Establishments,FH,19/10/2018,PAY01107967,PHYS,Physical Support,17965.23,Revenue,Apex Prime Care Ltd
Brighton & Hove City Council,http://statistics.data.gov.uk/id/local-authority/00ML,Adult Social Care,BVASOC,ASC Substance Misuse,ADM,Third Party Payments,F,Other Establishments,FH,19/10/2018,PAY01107967,SUBM,Substance Misuse Support,124.85,Revenue,Apex Prime Care Ltd
Brighton & Hove City Council,http://statistics.data.gov.uk/id/local-authority/00ML,Adult Social Care,BVASOC,ASC Learning Disabilities,ALD,Third Party Payments,F,Other Establishments,FH,31/10/2018,PAY01111015,LDIS,Adults LD Community Care,138.51,Revenue,Apex Prime Care Ltd
Brighton & Hove City Council,http://statistics.data.gov.uk/id/local-authority/00ML,Adult Social Care,BVASOC,ASC Memory Cognition Support,MEM,Third Party Payments,F,Other Establishments,FH,31/10/2018,PAY01111015,COGN,Memory Cognition Support,986.3,Revenue,Apex Prime Care Ltd
Brighton & Hove City Council,http://statistics.data.gov.uk/id/local-authority/00ML,Adult Social Care,BVASOC,ASC Mental Health Support,MHP,Third Party Payments,F,Other Establishments,FH,31/10/2018,PAY01111015,MENH,Mental Health Support,688.39,Revenue,Apex Prime Care Ltd
Brighton & Hove City Council,http://statistics.data.gov.uk/id/local-authority/00ML,Adult Social Care,BVASOC,ASC Physical Support,PHY,Third Party Payments,F,Other Establishments,FH,31/10/2018,PAY01111015,PHYS,Physical Support,18604.84,Revenue,Apex Prime Care Ltd
Brighton & Hove City Council,http://statistics.data.gov.uk/id/local-authority/00ML,Housing General Fund,BVAHOG,Homelessness,HML,Premises Related,C,Rents Payable,CC,12/10/2018,PAY01105771,TAAS,Temp Accom and Allocations,1350,Revenue,Applegate Properties Ltd
Brighton & Hove City Council,http://statistics.data.gov.uk/id/local-authority/00ML,Adult Social Care,BVASOC,ASC Physical Support,PHY,Customer n Client Receipts,M,Fees n Charges,MB,19/10/2018,PAY01108037,PHYS,Physical Support,-552.4,Revenue,Appletree House Care Home
Brighton & Hove City Council,http://statistics.data.gov.uk/id/local-authority/00ML,Adult Social Care,BVASOC,ASC Physical Support,PHY,Third Party Payments,F,Other Establishments,FH,19/10/2018,PAY01108037,PHYS,Physical Support,4063.6,Revenue,Appletree House Care Home
Brighton & Hove City Council,http://statistics.data.gov.uk/id/local-authority/00ML,Highways and Transportation,BVAHRT,Parking Services,PRK,Supplies and Services,E,Equip't Furniture n Materials,EA,10/10/2018,PAY01104800,PARK,Parking Services,844.4,Revenue,APS Aegis Limited
Brighton & Hove City Council,http://statistics.data.gov.uk/id/local-authority/00ML,Highways and Transportation,BVAHRT,Parking Services,PRK,Supplies and Services,E,Equip't Furniture n Materials,EA,05/10/2018,PAY01103701,PARK,Parking Services,1761.3,Revenue,APT Skidata Ltd
Brighton & Hove City Council,http://statistics.data.gov.uk/id/local-authority/00ML,Highways and Transportation,BVAHRT,Parking Services,PRK,Supplies and Services,E,Equip't Furniture n Materials,EA,10/10/2018,PAY01104621,PARK,Parking Services,594.92,Revenue,APT Skidata Ltd
Brighton & Hove City Council,http://statistics.data.gov.uk/id/local-authority/00ML,Children`s & Education Serv,BVAEDU,Ed Ed Other LA Attrib Sch,ELA,Supplies and Services,E,Services,EF,17/10/2018,PAY01107001,ACED,Access to Education,510,Revenue,AQA Education
Brighton & Hove City Council,http://statistics.data.gov.uk/id/local-authority/00ML,Children`s & Education Serv,BVAEDU,Ed Special Schools,EKK,Supplies and Services,E,Services,EF,24/10/2018,PAY01109059,SCHL,Schools,577.45,Revenue,AQA Education
Brighton & Hove City Council,http://statistics.data.gov.uk/id/local-authority/00ML,Children`s & Education Serv,BVAEDU,Ed Special Ed,EKE,Supplies and Services,E,Catering,EB,19/10/2018,PAY01107921,PSEN,Pre School SEN,298.4,Revenue,AquAid South Coast Franchising Limited
Brighton & Hove City Council,http://statistics.data.gov.uk/id/local-authority/00ML,Central Support and Overheads,BVACEN,Support Services (SSC),PPT,Premises Related,C,Repair Maint n Alterations,CA,26/10/2018,PAY01109975,PROP,Property and Design,257.4,Revenue,AquAid South Coast Franchising Limited
Brighton & Hove City Council,http://statistics.data.gov.uk/id/local-authority/00ML,Children`s & Education Serv,BVAEDU,Ed EY Central,EAE,Premises Related,C,Water Services,CE,31/10/2018,PAY01110979,EYRS,Early Years,747,Revenue,AquAid South Coast Franchising Limited
Brighton & Hove City Council,http://statistics.data.gov.uk/id/local-authority/00ML,Environment & Regulatory Serv,BVAERS,Court Services,CRT,Supplies and Services,E,Print Stat & Gen Office Exps,ED,31/10/2018,PAY01110979,CORO,Coroner,249,Revenue,AquAid South Coast Franchising Limited
Brighton & Hove City Council,http://statistics.data.gov.uk/id/local-authority/00ML,Environment & Regulatory Serv,BVAERS,Street Cleansing,CLE,Supplies and Services,E,Equip't Furniture n Materials,EA,26/10/2018,PAY01110064,CICL,City Clean,681.6,Revenue,Aquarius Solutions
Brighton & Hove City Council,http://statistics.data.gov.uk/id/local-authority/00ML,Adult Social Care,BVASOC,ASC Learning Disabilities,ALD,Customer n Client Receipts,M,Fees n Charges,MB,19/10/2018,PAY01108592,LDIS,Adults LD Community Care,-266.2,Revenue,Aran Hall School Ltd
Brighton & Hove City Council,http://statistics.data.gov.uk/id/local-authority/00ML,Adult Social Care,BVASOC,ASC Learning Disabilities,ALD,Third Party Payments,F,Other Establishments,FH,19/10/2018,PAY01108592,LDIS,Adults LD Community Care,19883.92,Revenue,Aran Hall School Ltd
Brighton & Hove City Council,http://statistics.data.gov.uk/id/local-authority/00ML,Public Health,BVAPHE,Public Health,PHE,Third Party Payments,F,Other Establishments,FH,26/10/2018,PAY01110699,PHCM,PH Commissioning,2686.8,Revenue,ARCH Health CIC
Brighton & Hove City Council,http://statistics.data.gov.uk/id/local-authority/00ML,Adult Social Care,BVASOC,ASC Physical Support,PHY,Customer n Client Receipts,M,Fees n Charges,MB,19/10/2018,PAY01108630,PHYS,Physical Support,-552.4,Revenue,Archmore Care Services
Brighton & Hove City Council,http://statistics.data.gov.uk/id/local-authority/00ML,Adult Social Care,BVASOC,ASC Physical Support,PHY,Third Party Payments,F,Other Establishments,FH,19/10/2018,PAY01108630,PHYS,Physical Support,4335.6,Revenue,Archmore Care Services
Brighton & Hove City Council,http://statistics.data.gov.uk/id/local-authority/00ML,Adult Social Care,BVASOC,ASC Memory Cognition Support,MEM,Customer n Client Receipts,M,Fees n Charges,MB,19/10/2018,PAY01107908,COGN,Memory Cognition Support,-998.12,Revenue,Archmore Care Services Ltd T/A Birchwood Grove NH
Brighton & Hove City Council,http://statistics.data.gov.uk/id/local-authority/00ML,Adult Social Care,BVASOC,ASC Memory Cognition Support,MEM,Third Party Payments,F,Other Establishments,FH,19/10/2018,PAY01107908,COGN,Memory Cognition Support,2430.56,Revenue,Archmore Care Services Ltd T/A Birchwood Grove NH
Brighton & Hove City Council,http://statistics.data.gov.uk/id/local-authority/00ML,Adult Social Care,BVASOC,ASC Physical Support,PHY,Customer n Client Receipts,M,Fees n Charges,MB,19/10/2018,PAY01107908,PHYS,Physical Support,-552.4,Revenue,Archmore Care Services Ltd T/A Birchwood Grove NH
Brighton & Hove City Council,http://statistics.data.gov.uk/id/local-authority/00ML,Adult Social Care,BVASOC,ASC Physical Support,PHY,Third Party Payments,F,Other Establishments,FH,19/10/2018,PAY01107908,PHYS,Physical Support,4861.12,Revenue,Archmore Care Services Ltd T/A Birchwood Grove NH
Brighton & Hove City Council,http://statistics.data.gov.uk/id/local-authority/00ML,Public Health,BVAPHE,Public Health,PHE,Third Party Payments,F,Other Establishments,FH,26/10/2018,PAY01110031,PHCM,PH Commissioning,4618.05,Revenue,Ardingly Court Surgery
Brighton & Hove City Council,http://statistics.data.gov.uk/id/local-authority/00ML,Children`s & Education Serv,BVAEDU,Child Srvcs Leaving Care,FAL,Transfer Payments,G,Other Transfer Payments,GD,05/10/2018,PAY01103713,CARL,Care Leavers,684.95,Revenue,Argos Business Solutions Ltd
Brighton & Hove City Council,http://statistics.data.gov.uk/id/local-authority/00ML,Children`s & Education Serv,BVAEDU,Ed EY Central,EAE,Supplies and Services,E,Equip't Furniture n Materials,EA,19/10/2018,PAY01108026,EYRS,Early Years,44.45,Revenue,Argos Business Solutions Ltd
Brighton & Hove City Council,http://statistics.data.gov.uk/id/local-authority/00ML,Cultural and Related Serv,BVACUL,Culture and Heritage,CHG,Supplies and Services,E,Equip't Furniture n Materials,EA,19/10/2018,PAY01108026,VENU,Venues,124.99,Revenue,Argos Business Solutions Ltd
Brighton & Hove City Council,http://statistics.data.gov.uk/id/local-authority/00ML,Housing Revenue Account,BVAHOU,Hsing Management - HRA,HGM,Supplies and Services,E,Equip't Furniture n Materials,EA,19/10/2018,PAY01108026,HIII,Income Involvement Improvement,9.69,Revenue,Argos Business Solutions Ltd
Brighton & Hove City Council,http://statistics.data.gov.uk/id/local-authority/00ML,Housing Revenue Account,BVAHOU,Hsing Management - HRA,HGM,Supplies and Services,E,Miscellaneous Expenses,EM,19/10/2018,PAY01108026,HTEN,Tenancy Services,239.99,Revenue,Argos Business Solutions Ltd
Brighton & Hove City Council,http://statistics.data.gov.uk/id/local-authority/00ML,Children`s & Education Serv,BVAEDU,Child Srvcs Leaving Care,FAL,Transfer Payments,G,Other Transfer Payments,GD,26/10/2018,PAY01110054,CARL,Care Leavers,809.88,Revenue,Argos Business Solutions Ltd
Brighton & Hove City Council,http://statistics.data.gov.uk/id/local-authority/00ML,Children`s & Education Serv,BVAEDU,Child Srvcs - Other Fam Supp,FFX,Transfer Payments,G,Other Transfer Payments,GD,26/10/2018,PAY01110054,FAMP,Families\Prevention,187.99,Revenue,Argos Business Solutions Ltd
Brighton & Hove City Council,http://statistics.data.gov.uk/id/local-authority/00ML,Children`s & Education Serv,BVAEDU,Ed EY Central,EAE,Supplies and Services,E,Equip't Furniture n Materials,EA,26/10/2018,PAY01110054,EYRS,Early Years,-12.24,Revenue,Argos Business Solutions Ltd
Brighton & Hove City Council,http://statistics.data.gov.uk/id/local-authority/00ML,Housing Revenue Account,BVAHOU,Hsing Management - HRA,HGM,Supplies and Services,E,Services,EF,17/10/2018,PAY01107381,HPAI,Property & Investment,1800,Revenue,ARP Research Ltd
Brighton & Hove City Council,http://statistics.data.gov.uk/id/local-authority/00ML,Children`s & Education Serv,BVAEDU,Ed Mgmt and Support Services,EMG,Supplies and Services,E,Services,EF,19/10/2018,PAY01108864,SACH,Standards and Achievement,2693,Revenue,Art of Brilliance Ltd
Brighton & Hove City Council,http://statistics.data.gov.uk/id/local-authority/00ML,Adult Social Care,BVASOC,S Svcs Other Adult Services,ADT,Indirect Employees,B,Training,BM,03/10/2018,PAY01102785,ORGD,Organisational Development,428,Revenue,Artagent Ltd t/a David Taylor Training
Brighton & Hove City Council,http://statistics.data.gov.uk/id/local-authority/00ML,Central Support and Overheads,BVACEN,Support Services (SSC),PPT,Indirect Employees,B,Training,BM,03/10/2018,PAY01102785,ORGD,Organisational Development,122,Revenue,Artagent Ltd t/a David Taylor Training
Brighton & Hove City Council,http://statistics.data.gov.uk/id/local-authority/00ML,Adult Social Care,BVASOC,S Svcs Other Adult Services,ADT,Indirect Employees,B,Training,BM,10/10/2018,PAY01104612,ORGD,Organisational Development,228,Revenue,Artagent Ltd t/a David Taylor Training
Brighton & Hove City Council,http://statistics.data.gov.uk/id/local-authority/00ML,Central Support and Overheads,BVACEN,Support Services (SSC),PPT,Indirect Employees,B,Training,BM,10/10/2018,PAY01104612,ORGD,Organisational Development,122,Revenue,Artagent Ltd t/a David Taylor Training
Brighton & Hove City Council,http://statistics.data.gov.uk/id/local-authority/00ML,Adult Social Care,BVASOC,S Svcs Other Adult Services,ADT,Indirect Employees,B,Training,BM,12/10/2018,PAY01105490,ORGD,Organisational Development,228,Revenue,Artagent Ltd t/a David Taylor Training
Brighton & Hove City Council,http://statistics.data.gov.uk/id/local-authority/00ML,Central Support and Overheads,BVACEN,Support Services (SSC),PPT,Indirect Employees,B,Training,BM,12/10/2018,PAY01105490,ORGD,Organisational Development,122,Revenue,Artagent Ltd t/a David Taylor Training
Brighton & Hove City Council,http://statistics.data.gov.uk/id/local-authority/00ML,Adult Social Care,BVASOC,S Svcs Other Adult Services,ADT,Indirect Employees,B,Training,BM,17/10/2018,PAY01107056,ORGD,Organisational Development,228,Revenue,Artagent Ltd t/a David Taylor Training
Brighton & Hove City Council,http://statistics.data.gov.uk/id/local-authority/00ML,Central Support and Overheads,BVACEN,Support Services (SSC),PPT,Indirect Employees,B,Training,BM,17/10/2018,PAY01107056,ORGD,Organisational Development,122,Revenue,Artagent Ltd t/a David Taylor Training
Brighton & Hove City Council,http://statistics.data.gov.uk/id/local-authority/00ML,Children`s & Education Serv,BVAEDU,Child Srvcs Leaving Care,FAL,Transfer Payments,G,Other Transfer Payments,GD,24/10/2018,PAY01109020,CARL,Care Leavers,306,Revenue,Arun District Council
Brighton & Hove City Council,http://statistics.data.gov.uk/id/local-authority/00ML,Adult Social Care,BVASOC,ASC Learning Disabilities,ALD,Customer n Client Receipts,M,Fees n Charges,MB,17/10/2018,PAY01107227,LDIS,Adults LD Community Care,-3052,Revenue,Arundel Domiciliary Care Services
Brighton & Hove City Council,http://statistics.data.gov.uk/id/local-authority/00ML,Adult Social Care,BVASOC,ASC Learning Disabilities,ALD,Third Party Payments,F,Other Establishments,FH,17/10/2018,PAY01107227,LDIS,Adults LD Community Care,121828.48,Revenue,Arundel Domiciliary Care Services
Brighton & Hove City Council,http://statistics.data.gov.uk/id/local-authority/00ML,Adult Social Care,BVASOC,ASC Learning Disabilities,ALD,Customer n Client Receipts,M,Fees n Charges,MB,24/10/2018,PAY01109275,LDIS,Adults LD Community Care,-14,Revenue,Arundel Domiciliary Care Services
Brighton & Hove City Council,http://statistics.data.gov.uk/id/local-authority/00ML,Adult Social Care,BVASOC,ASC Learning Disabilities,ALD,Third Party Payments,F,Other Establishments,FH,24/10/2018,PAY01109275,LDIS,Adults LD Community Care,28690.26,Revenue,Arundel Domiciliary Care Services
Brighton & Hove City Council,http://statistics.data.gov.uk/id/local-authority/00ML,Adult Social Care,BVASOC,ASC Physical Support,PHY,Customer n Client Receipts,M,Fees n Charges,MB,03/10/2018,PAY01103428,PHYS,Physical Support,-790.45,Revenue,ASA Care Limited
Brighton & Hove City Council,http://statistics.data.gov.uk/id/local-authority/00ML,Adult Social Care,BVASOC,ASC Physical Support,PHY,Third Party Payments,F,Other Establishments,FH,03/10/2018,PAY01103428,PHYS,Physical Support,2610.29,Revenue,ASA Care Limited
Brighton & Hove City Council,http://statistics.data.gov.uk/id/local-authority/00ML,Adult Social Care,BVASOC,ASC Physical Support,PHY,Customer n Client Receipts,M,Fees n Charges,MB,19/10/2018,PAY01108801,PHYS,Physical Support,-691.64,Revenue,ASA Care Limited
Brighton & Hove City Council,http://statistics.data.gov.uk/id/local-authority/00ML,Adult Social Care,BVASOC,ASC Physical Support,PHY,Third Party Payments,F,Other Establishments,FH,19/10/2018,PAY01108801,PHYS,Physical Support,2284,Revenue,ASA Care Limited
Brighton & Hove City Council,http://statistics.data.gov.uk/id/local-authority/00ML,Adult Social Care,BVASOC,ASC Learning Disabilities,ALD,Customer n Client Receipts,M,Fees n Charges,MB,19/10/2018,PAY01107889,LDIS,Adults LD Community Care,-409,Revenue,ASD Unique Services LLP
Brighton & Hove City Council,http://statistics.data.gov.uk/id/local-authority/00ML,Adult Social Care,BVASOC,ASC Learning Disabilities,ALD,Third Party Payments,F,Other Establishments,FH,19/10/2018,PAY01107889,LDIS,Adults LD Community Care,4591.44,Revenue,ASD Unique Services LLP
Brighton & Hove City Council,http://statistics.data.gov.uk/id/local-authority/00ML,Housing General Fund,BVAHOG,Homelessness,HML,Third Party Payments,F,Other Establishments,FH,05/10/2018,PAY01104310,HOPT,Housing Options,700,Revenue,Ashbee Estates Ltd
Brighton & Hove City Council,http://statistics.data.gov.uk/id/local-authority/00ML,Housing General Fund,BVAHOG,Homelessness,HML,Third Party Payments,F,Other Establishments,FH,05/10/2018,PAY01104310,TAAS,Temp Accom and Allocations,860,Revenue,Ashbee Estates Ltd
Brighton & Hove City Council,http://statistics.data.gov.uk/id/local-authority/00ML,Housing General Fund,BVAHOG,Homelessness,HML,Third Party Payments,F,Other Establishments,FH,17/10/2018,PAY01107502,TAAS,Temp Accom and Allocations,1650,Revenue,Ashbee Estates Ltd
Brighton & Hove City Council,http://statistics.data.gov.uk/id/local-authority/00ML,Housing General Fund,BVAHOG,Homelessness,HML,Third Party Payments,F,Other Establishments,FH,26/10/2018,PAY01110696,HOPT,Housing Options,1300,Revenue,Ashbee Estates Ltd
Brighton & Hove City Council,http://statistics.data.gov.uk/id/local-authority/00ML,Housing General Fund,BVAHOG,Homelessness,HML,Premises Related,C,Rents Payable,CC,03/10/2018,PAY01103250,TAAS,Temp Accom and Allocations,5090,Revenue,Ashbee Estates Ltd 
Brighton & Hove City Council,http://statistics.data.gov.uk/id/local-authority/00ML,Housing General Fund,BVAHOG,Homelessness,HML,Premises Related,C,Rents Payable,CC,05/10/2018,PAY01104155,TAAS,Temp Accom and Allocations,3830,Revenue,Ashbee Estates Ltd 
Brighton & Hove City Council,http://statistics.data.gov.uk/id/local-authority/00ML,Housing General Fund,BVAHOG,Homelessness,HML,Premises Related,C,Rents Payable,CC,10/10/2018,PAY01104930,TAAS,Temp Accom and Allocations,2921.58,Revenue,Ashbee Estates Ltd 
Brighton & Hove City Council,http://statistics.data.gov.uk/id/local-authority/00ML,Housing General Fund,BVAHOG,Homelessness,HML,Premises Related,C,Rents Payable,CC,12/10/2018,PAY01106304,TAAS,Temp Accom and Allocations,7080,Revenue,Ashbee Estates Ltd 
Brighton & Hove City Council,http://statistics.data.gov.uk/id/local-authority/00ML,Housing General Fund,BVAHOG,Homelessness,HML,Premises Related,C,Rents Payable,CC,17/10/2018,PAY01107393,TAAS,Temp Accom and Allocations,1755,Revenue,Ashbee Estates Ltd 
Brighton & Hove City Council,http://statistics.data.gov.uk/id/local-authority/00ML,Housing General Fund,BVAHOG,Homelessness,HML,Premises Related,C,Rents Payable,CC,19/10/2018,PAY01108543,TAAS,Temp Accom and Allocations,1650,Revenue,Ashbee Estates Ltd 
Brighton & Hove City Council,http://statistics.data.gov.uk/id/local-authority/00ML,Housing General Fund,BVAHOG,Homelessness,HML,Premises Related,C,Rents Payable,CC,24/10/2018,PAY01109443,TAAS,Temp Accom and Allocations,2625,Revenue,Ashbee Estates Ltd 
Brighton & Hove City Council,http://statistics.data.gov.uk/id/local-authority/00ML,Housing General Fund,BVAHOG,Homelessness,HML,Premises Related,C,Rents Payable,CC,26/10/2018,PAY01110544,TAAS,Temp Accom and Allocations,875,Revenue,Ashbee Estates Ltd 
Brighton & Hove City Council,http://statistics.data.gov.uk/id/local-authority/00ML,Housing General Fund,BVAHOG,Homelessness,HML,Premises Related,C,Rents Payable,CC,31/10/2018,PAY01111388,TAAS,Temp Accom and Allocations,3121.24,Revenue,Ashbee Estates Ltd 
Brighton & Hove City Council,http://statistics.data.gov.uk/id/local-authority/00ML,Housing General Fund,BVAHOG,Homelessness,HML,Premises Related,C,Repair Maint n Alterations,CA,31/10/2018,PAY01111388,TAAS,Temp Accom and Allocations,4213.49,Revenue,Ashbee Estates Ltd 
Brighton & Hove City Council,http://statistics.data.gov.uk/id/local-authority/00ML,Housing General Fund,BVAHOG,Homelessness,HML,Third Party Payments,F,Other Establishments,FH,31/10/2018,PAY01111388,TAAS,Temp Accom and Allocations,1000,Revenue,Ashbee Estates Ltd 
Brighton & Hove City Council,http://statistics.data.gov.uk/id/local-authority/00ML,Adult Social Care,BVASOC,ASC Mental Health Support,MHP,Third Party Payments,F,Other Establishments,FH,19/10/2018,PAY01107871,MENH,Mental Health Support,3064.72,Revenue,Ashford House Ltd
Brighton & Hove City Council,http://statistics.data.gov.uk/id/local-authority/00ML,Adult Social Care,BVASOC,ASC Memory Cognition Support,MEM,Customer n Client Receipts,M,Fees n Charges,MB,19/10/2018,PAY01108357,COGN,Memory Cognition Support,-552.4,Revenue,Ashleigh Manor
Brighton & Hove City Council,http://statistics.data.gov.uk/id/local-authority/00ML,Adult Social Care,BVASOC,ASC Memory Cognition Support,MEM,Third Party Payments,F,Other Establishments,FH,19/10/2018,PAY01108357,COGN,Memory Cognition Support,1847.72,Revenue,Ashleigh Manor
Brighton & Hove City Council,http://statistics.data.gov.uk/id/local-authority/00ML,Adult Social Care,BVASOC,ASC Memory Cognition Support,MEM,Customer n Client Receipts,M,Fees n Charges,MB,19/10/2018,PAY01108738,COGN,Memory Cognition Support,-552.4,Revenue,Ashley Gardens (UK) Ltd
Brighton & Hove City Council,http://statistics.data.gov.uk/id/local-authority/00ML,Adult Social Care,BVASOC,ASC Memory Cognition Support,MEM,Third Party Payments,F,Other Establishments,FH,19/10/2018,PAY01108738,COGN,Memory Cognition Support,2007.04,Revenue,Ashley Gardens (UK) Ltd
Brighton & Hove City Council,http://statistics.data.gov.uk/id/local-authority/00ML,Adult Social Care,BVASOC,ASC Learning Disabilities,ALD,Customer n Client Receipts,M,Fees n Charges,MB,10/10/2018,PAY01104791,LDIS,Adults LD Community Care,-364,Revenue,Ashmeadows House Ltd
Brighton & Hove City Council,http://statistics.data.gov.uk/id/local-authority/00ML,Adult Social Care,BVASOC,ASC Learning Disabilities,ALD,Third Party Payments,F,Other Establishments,FH,10/10/2018,PAY01104791,LDIS,Adults LD Community Care,2196.76,Revenue,Ashmeadows House Ltd
Brighton & Hove City Council,http://statistics.data.gov.uk/id/local-authority/00ML,Adult Social Care,BVASOC,ASC Mental Health Support,MHP,Third Party Payments,F,Other Establishments,FH,10/10/2018,PAY01104791,MENH,Mental Health Support,2134.35,Revenue,Ashmeadows House Ltd
Brighton & Hove City Council,http://statistics.data.gov.uk/id/local-authority/00ML,Environment & Regulatory Serv,BVAERS,Waste Management,WMT,Transport Related,D,Contract Hire n Operating Leas,DB,26/10/2018,PAY01110065,CICL,City Clean,1265.16,Revenue,Ashtead Plant Hire Company Ltd
Brighton & Hove City Council,http://statistics.data.gov.uk/id/local-authority/00ML,Adult Social Care,BVASOC,ASC Memory Cognition Support,MEM,Customer n Client Receipts,M,Fees n Charges,MB,19/10/2018,PAY01107964,COGN,Memory Cognition Support,-552.4,Revenue,Ashton Care
Brighton & Hove City Council,http://statistics.data.gov.uk/id/local-authority/00ML,Adult Social Care,BVASOC,ASC Memory Cognition Support,MEM,Third Party Payments,F,Other Establishments,FH,19/10/2018,PAY01107964,COGN,Memory Cognition Support,2275.96,Revenue,Ashton Care
Brighton & Hove City Council,http://statistics.data.gov.uk/id/local-authority/00ML,Adult Social Care,BVASOC,ASC Memory Cognition Support,MEM,Third Party Payments,F,Other Establishments,FH,19/10/2018,PAY01108548,COGN,Memory Cognition Support,9730.56,Revenue,Ashton House
Brighton & Hove City Council,http://statistics.data.gov.uk/id/local-authority/00ML,Adult Social Care,BVASOC,ASC Physical Support,PHY,Customer n Client Receipts,M,Fees n Charges,MB,19/10/2018,PAY01108548,PHYS,Physical Support,-1187.68,Revenue,Ashton House
Brighton & Hove City Council,http://statistics.data.gov.uk/id/local-authority/00ML,Adult Social Care,BVASOC,ASC Physical Support,PHY,Third Party Payments,F,Other Establishments,FH,19/10/2018,PAY01108548,PHYS,Physical Support,6610.36,Revenue,Ashton House
Brighton & Hove City Council,http://statistics.data.gov.uk/id/local-authority/00ML,Non-BHC Organisations,BVANON,Trusts,TRT,Supplies and Services,E,Miscellaneous Expenses,EM,24/10/2018,PAY01109447,NBHC,Non Council,320,Revenue,Ashton House
Brighton & Hove City Council,http://statistics.data.gov.uk/id/local-authority/00ML,Adult Social Care,BVASOC,ASC Memory Cognition Support,MEM,Third Party Payments,F,Other Establishments,FH,19/10/2018,PAY01108741,COGN,Memory Cognition Support,3400,Revenue,Ashtonleigh Homes Ltd T/A Ashton Grange NH
Brighton & Hove City Council,http://statistics.data.gov.uk/id/local-authority/00ML,Adult Social Care,BVASOC,ASC Physical Support,PHY,Customer n Client Receipts,M,Fees n Charges,MB,19/10/2018,PAY01108746,PHYS,Physical Support,-409,Revenue,Askham Village Community Ltd
Brighton & Hove City Council,http://statistics.data.gov.uk/id/local-authority/00ML,Adult Social Care,BVASOC,ASC Physical Support,PHY,Third Party Payments,F,Other Establishments,FH,19/10/2018,PAY01108746,PHYS,Physical Support,6084.68,Revenue,Askham Village Community Ltd
Brighton & Hove City Council,http://statistics.data.gov.uk/id/local-authority/00ML,Adult Social Care,BVASOC,ASC Memory Cognition Support,MEM,Customer n Client Receipts,M,Fees n Charges,MB,19/10/2018,PAY01107865,COGN,Memory Cognition Support,-5686.12,Revenue,Aspen House
Brighton & Hove City Council,http://statistics.data.gov.uk/id/local-authority/00ML,Adult Social Care,BVASOC,ASC Memory Cognition Support,MEM,Third Party Payments,F,Other Establishments,FH,19/10/2018,PAY01107865,COGN,Memory Cognition Support,17152,Revenue,Aspen House
Brighton & Hove City Council,http://statistics.data.gov.uk/id/local-authority/00ML,Central Support and Overheads,BVACEN,Support Services (SSC),PPT,Premises Related,C,Repair Maint n Alterations,CA,12/10/2018,PAY01105438,PROP,Property and Design,5200,Revenue,Aspen Service Ltd
Brighton & Hove City Council,http://statistics.data.gov.uk/id/local-authority/00ML,Adult Social Care,BVASOC,ASC Learning Disabilities,ALD,Customer n Client Receipts,M,Fees n Charges,MB,03/10/2018,PAY01102909,LDIS,Adults LD Community Care,-130,Revenue,Aspens Charities
Brighton & Hove City Council,http://statistics.data.gov.uk/id/local-authority/00ML,Adult Social Care,BVASOC,ASC Learning Disabilities,ALD,Third Party Payments,F,Other Establishments,FH,03/10/2018,PAY01102909,LDIS,Adults LD Community Care,8489.91,Revenue,Aspens Charities
Brighton & Hove City Council,http://statistics.data.gov.uk/id/local-authority/00ML,Adult Social Care,BVASOC,ASC Mental Health Support,MHP,Third Party Payments,F,Other Establishments,FH,03/10/2018,PAY01102909,MENH,Mental Health Support,950.9,Revenue,Aspens Charities
Brighton & Hove City Council,http://statistics.data.gov.uk/id/local-authority/00ML,Adult Social Care,BVASOC,ASC Physical Support,PHY,Third Party Payments,F,Other Establishments,FH,03/10/2018,PAY01102909,PHYS,Physical Support,698.45,Revenue,Aspens Charities
Brighton & Hove City Council,http://statistics.data.gov.uk/id/local-authority/00ML,Adult Social Care,BVASOC,ASC Mental Health Support,MHP,Customer n Client Receipts,M,Fees n Charges,MB,10/10/2018,PAY01104686,MENH,Mental Health Support,-54,Revenue,Aspens Charities
Brighton & Hove City Council,http://statistics.data.gov.uk/id/local-authority/00ML,Adult Social Care,BVASOC,ASC Mental Health Support,MHP,Third Party Payments,F,Other Establishments,FH,10/10/2018,PAY01104686,MENH,Mental Health Support,655.2,Revenue,Aspens Charities
Brighton & Hove City Council,http://statistics.data.gov.uk/id/local-authority/00ML,Adult Social Care,BVASOC,ASC Learning Disabilities,ALD,Customer n Client Receipts,M,Fees n Charges,MB,19/10/2018,PAY01108197,LDIS,Adults LD Community Care,-1527.4,Revenue,Aspens Charities
Brighton & Hove City Council,http://statistics.data.gov.uk/id/local-authority/00ML,Adult Social Care,BVASOC,ASC Learning Disabilities,ALD,Third Party Payments,F,Other Establishments,FH,19/10/2018,PAY01108197,LDIS,Adults LD Community Care,24697.6,Revenue,Aspens Charities
Brighton & Hove City Council,http://statistics.data.gov.uk/id/local-authority/00ML,Adult Social Care,BVASOC,ASC Learning Disabilities,ALD,Customer n Client Receipts,M,Fees n Charges,MB,31/10/2018,PAY01111144,LDIS,Adults LD Community Care,-208,Revenue,Aspens Charities
Brighton & Hove City Council,http://statistics.data.gov.uk/id/local-authority/00ML,Adult Social Care,BVASOC,ASC Learning Disabilities,ALD,Third Party Payments,F,Other Establishments,FH,31/10/2018,PAY01111144,LDIS,Adults LD Community Care,6863.27,Revenue,Aspens Charities
Brighton & Hove City Council,http://statistics.data.gov.uk/id/local-authority/00ML,Adult Social Care,BVASOC,ASC Mental Health Support,MHP,Third Party Payments,F,Other Establishments,FH,31/10/2018,PAY01111144,MENH,Mental Health Support,942.48,Revenue,Aspens Charities
Brighton & Hove City Council,http://statistics.data.gov.uk/id/local-authority/00ML,Adult Social Care,BVASOC,ASC Physical Support,PHY,Third Party Payments,F,Other Establishments,FH,31/10/2018,PAY01111144,PHYS,Physical Support,546.98,Revenue,Aspens Charities
Brighton & Hove City Council,http://statistics.data.gov.uk/id/local-authority/00ML,Children`s & Education Serv,BVAEDU,Child Srvcs Leaving Care,FAL,Transfer Payments,G,Other Transfer Payments,GD,05/10/2018,PAY01103647,CARL,Care Leavers,2125.67,Revenue,Asphaleia Ltd
Brighton & Hove City Council,http://statistics.data.gov.uk/id/local-authority/00ML,Children`s & Education Serv,BVAEDU,Child Srvcs Leaving Care,FAL,Transfer Payments,G,Other Transfer Payments,GD,12/10/2018,PAY01105428,CARL,Care Leavers,2057.1,Revenue,Asphaleia Ltd
Brighton & Hove City Council,http://statistics.data.gov.uk/id/local-authority/00ML,Adult Social Care,BVASOC,ASC Learning Disabilities,ALD,Third Party Payments,F,Other Establishments,FH,17/10/2018,PAY01107150,LDIS,Adults LD Community Care,14593.6,Revenue,Aspirations Active
Brighton & Hove City Council,http://statistics.data.gov.uk/id/local-authority/00ML,Children`s & Education Serv,BVAEDU,Child Srvcs - Residential Svcs,FLR,Third Party Payments,F,Other Establishments,FH,31/10/2018,PAY01111487,DISS,Childrens Disability Services,34465,Revenue,Aspire Care & Education Services Ltd
Brighton & Hove City Council,http://statistics.data.gov.uk/id/local-authority/00ML,Children`s & Education Serv,BVAEDU,Child Srvcs Adoption,FAA,Supplies and Services,E,Services,EF,24/10/2018,PAY01109505,CHIC,Fostering and Adoption,710,Revenue,Associate of Touchbase
Brighton & Hove City Council,http://statistics.data.gov.uk/id/local-authority/00ML,Highways and Transportation,BVAHRT,Public Transport,PTR,Transport Related,D,Public Transport,DD,31/10/2018,PAY01110983,PARK,Parking Services,566,Revenue,Associated Taxis Southwick T/A Taxilink
Brighton & Hove City Council,http://statistics.data.gov.uk/id/local-authority/00ML,Central Support and Overheads,BVACEN,Support Services (SSC),PPT,Indirect Employees,B,Training,BM,05/10/2018,PAY01104000,DEMO,Democratic Services,260,Revenue,Association of Democratic Services Officers
Brighton & Hove City Council,http://statistics.data.gov.uk/id/local-authority/00ML,Non I&E,BVANON,Cap - Housing Services - HRA,4HR,New Construction n Conversion,PB,New Construction n Conversion,PBL5,26/10/2018,PAY01110010,HPAI,Property & Investment,462.28,Capital,Atkins Ltd/Faithful & Gould Ltd
Brighton & Hove City Council,http://statistics.data.gov.uk/id/local-authority/00ML,Adult Social Care,BVASOC,ASC Learning Disabilities,ALD,Transport Related,D,Direct Transport Costs,DA,19/10/2018,PAY01108040,LDAS,Adults LD Accomodation Service,545.77,Revenue,ATS Euromaster Ltd
Brighton & Hove City Council,http://statistics.data.gov.uk/id/local-authority/00ML,Adult Social Care,BVASOC,ASC Learning Disabilities,ALD,Transport Related,D,Direct Transport Costs,DA,19/10/2018,PAY01108040,LDSE,Adults LD Day Services,372.44,Revenue,ATS Euromaster Ltd
Brighton & Hove City Council,http://statistics.data.gov.uk/id/local-authority/00ML,Adult Social Care,BVASOC,Assistive Equipment & Tech,AET,Transport Related,D,Direct Transport Costs,DA,19/10/2018,PAY01108040,ASIT,Assessment and SIT,56.6,Revenue,ATS Euromaster Ltd
Brighton & Hove City Council,http://statistics.data.gov.uk/id/local-authority/00ML,Central Support and Overheads,BVACEN,Support Services (SSC),PPT,Transport Related,D,Direct Transport Costs,DA,19/10/2018,PAY01108040,PROP,Property and Design,134.04,Revenue,ATS Euromaster Ltd
Brighton & Hove City Council,http://statistics.data.gov.uk/id/local-authority/00ML,Children`s & Education Serv,BVAEDU,Ed Special Schools,EKK,Transport Related,D,Public Transport,DD,19/10/2018,PAY01108040,SCHL,Schools,310.56,Revenue,ATS Euromaster Ltd
Brighton & Hove City Council,http://statistics.data.gov.uk/id/local-authority/00ML,Cultural and Related Serv,BVACUL,Open Spaces,PEN,Transport Related,D,Direct Transport Costs,DA,19/10/2018,PAY01108040,CIPK,City Parks,3598.26,Revenue,ATS Euromaster Ltd
Brighton & Hove City Council,http://statistics.data.gov.uk/id/local-authority/00ML,Cultural and Related Serv,BVACUL,Recreation and Sport,REC,Transport Related,D,Direct Transport Costs,DA,19/10/2018,PAY01108040,SPLE,Sport and Leisure,646.14,Revenue,ATS Euromaster Ltd
Brighton & Hove City Council,http://statistics.data.gov.uk/id/local-authority/00ML,Environment & Regulatory Serv,BVAERS,Management Services (DEC),MGT,Transport Related,D,Direct Transport Costs,DA,19/10/2018,PAY01108040,CICL,City Clean,951.08,Revenue,ATS Euromaster Ltd
Brighton & Hove City Council,http://statistics.data.gov.uk/id/local-authority/00ML,Environment & Regulatory Serv,BVAERS,Street Cleansing,CLE,Transport Related,D,Direct Transport Costs,DA,19/10/2018,PAY01108040,CICL,City Clean,1419.25,Revenue,ATS Euromaster Ltd
Brighton & Hove City Council,http://statistics.data.gov.uk/id/local-authority/00ML,Environment & Regulatory Serv,BVAERS,Waste Management,WMT,Transport Related,D,Direct Transport Costs,DA,19/10/2018,PAY01108040,CICL,City Clean,6708.76,Revenue,ATS Euromaster Ltd
Brighton & Hove City Council,http://statistics.data.gov.uk/id/local-authority/00ML,Housing Revenue Account,BVAHOU,Hsing Management - HRA,HGM,Transport Related,D,Direct Transport Costs,DA,19/10/2018,PAY01108040,HTEN,Tenancy Services,444.03,Revenue,ATS Euromaster Ltd
Brighton & Hove City Council,http://statistics.data.gov.uk/id/local-authority/00ML,Adult Social Care,BVASOC,ASC Learning Disabilities,ALD,Customer n Client Receipts,M,Fees n Charges,MB,19/10/2018,PAY01108777,LDIS,Adults LD Community Care,-409,Revenue,Auckland Care Ltd
Brighton & Hove City Council,http://statistics.data.gov.uk/id/local-authority/00ML,Adult Social Care,BVASOC,ASC Learning Disabilities,ALD,Third Party Payments,F,Other Establishments,FH,19/10/2018,PAY01108777,LDIS,Adults LD Community Care,4316.64,Revenue,Auckland Care Ltd
Brighton & Hove City Council,http://statistics.data.gov.uk/id/local-authority/00ML,Public Health,BVAPHE,Public Health,PHE,Third Party Payments,F,Other Establishments,FH,26/10/2018,PAY01110456,PHCM,PH Commissioning,859.99,Revenue,Aum Health Services Ltd T/A Harper`s Pharmacy
Brighton & Hove City Council,http://statistics.data.gov.uk/id/local-authority/00ML,Children`s & Education Serv,BVAEDU,Ed Special Ed,EKE,Third Party Payments,F,Other Agencies,FL,17/10/2018,PAY01107563,SENS,Special Educational Needs,49666.67,Revenue,Aurora FE Ltd T/A Aurora Boveridge College
Brighton & Hove City Council,http://statistics.data.gov.uk/id/local-authority/00ML,Library Services,BVACUL,Library Service,LBR,Supplies and Services,E,Goods for Resale,EG,24/10/2018,PAY01109297,LIBS,Libraries,1158.2,Revenue,Aurora World UK Ltd.
Brighton & Hove City Council,http://statistics.data.gov.uk/id/local-authority/00ML,Non I&E,BVANON,Cap - Housing Services - HRA,4HR,New Construction n Conversion,PB,New Construction n Conversion,PBL5,24/10/2018,PAY01109671,HPAI,Property & Investment,1804,Capital,Austins Cradles (Eastbourne) Ltd
Brighton & Hove City Council,http://statistics.data.gov.uk/id/local-authority/00ML,Environment & Regulatory Serv,BVAERS,Environmental Health,EVH,Premises Related,C,Repair Maint n Alterations,CA,31/10/2018,PAY01111407,HIGH,Traffic Management,1025,Revenue,Automobile Association Developments Ltd
Brighton & Hove City Council,http://statistics.data.gov.uk/id/local-authority/00ML,Cultural and Related Serv,BVACUL,Culture and Heritage,CHG,Premises Related,C,Repair Maint n Alterations,CA,05/10/2018,PAY01104081,RPMU,Royal Pavilion and Museums,233.55,Revenue,AV Parts Master Ltd
Brighton & Hove City Council,http://statistics.data.gov.uk/id/local-authority/00ML,Adult Social Care,BVASOC,ASC Memory Cognition Support,MEM,Customer n Client Receipts,M,Fees n Charges,MB,19/10/2018,PAY01108666,COGN,Memory Cognition Support,-528.4,Revenue,Avery Healthcare Ltd (Birchwood Grange Care Home)
Brighton & Hove City Council,http://statistics.data.gov.uk/id/local-authority/00ML,Adult Social Care,BVASOC,ASC Memory Cognition Support,MEM,Third Party Payments,F,Other Establishments,FH,19/10/2018,PAY01108666,COGN,Memory Cognition Support,3577,Revenue,Avery Healthcare Ltd (Birchwood Grange Care Home)
Brighton & Hove City Council,http://statistics.data.gov.uk/id/local-authority/00ML,Adult Social Care,BVASOC,ASC Physical Support,PHY,Customer n Client Receipts,M,Fees n Charges,MB,19/10/2018,PAY01108666,PHYS,Physical Support,-409,Revenue,Avery Healthcare Ltd (Birchwood Grange Care Home)
Brighton & Hove City Council,http://statistics.data.gov.uk/id/local-authority/00ML,Adult Social Care,BVASOC,ASC Physical Support,PHY,Third Party Payments,F,Other Establishments,FH,19/10/2018,PAY01108666,PHYS,Physical Support,2172,Revenue,Avery Healthcare Ltd (Birchwood Grange Care Home)
Brighton & Hove City Council,http://statistics.data.gov.uk/id/local-authority/00ML,Central Support and Overheads,BVACEN,Support Services (SSC),PPT,Supplies and Services,E,Services,EF,12/10/2018,PAY01105476,ICTA,ICT,1312.5,Revenue,Aviation Projects Ltd
Brighton & Hove City Council,http://statistics.data.gov.uk/id/local-authority/00ML,Public Health,BVAPHE,Public Health,PHE,Supplies and Services,E,Miscellaneous Expenses,EM,24/10/2018,PAY01109292,PHCM,PH Commissioning,6411.67,Revenue,Aviationnextgen Ltd t/a Liz Dean Consultancy
Brighton & Hove City Council,http://statistics.data.gov.uk/id/local-authority/00ML,Housing General Fund,BVAHOG,Homelessness,HML,Premises Related,C,Rents Payable,CC,03/10/2018,PAY01102807,TAAS,Temp Accom and Allocations,1100,Revenue,Avon Estates (London) Ltd
Brighton & Hove City Council,http://statistics.data.gov.uk/id/local-authority/00ML,Central Support and Overheads,BVACEN,Support Services (SSC),PPT,Supplies and Services,E,Services,EF,12/10/2018,PAY01105513,ICTA,ICT,6300,Revenue,AWCFA Limited
Brighton & Hove City Council,http://statistics.data.gov.uk/id/local-authority/00ML,Adult Social Care,BVASOC,ASC Physical Support,PHY,Customer n Client Receipts,M,Fees n Charges,MB,19/10/2018,PAY01108194,PHYS,Physical Support,-343.8,Revenue,B & J G Richardson Business Account
Brighton & Hove City Council,http://statistics.data.gov.uk/id/local-authority/00ML,Adult Social Care,BVASOC,ASC Physical Support,PHY,Third Party Payments,F,Other Establishments,FH,19/10/2018,PAY01108194,PHYS,Physical Support,5459.64,Revenue,B & J G Richardson Business Account
Brighton & Hove City Council,http://statistics.data.gov.uk/id/local-authority/00ML,Adult Social Care,BVASOC,Assistive Equipment & Tech,AET,Supplies and Services,E,Equip't Furniture n Materials,EA,31/10/2018,PAY01111000,ASIT,Assessment and SIT,10.32,Revenue,B & Q Plc
Brighton & Hove City Council,http://statistics.data.gov.uk/id/local-authority/00ML,Housing General Fund,BVAHOG,Homelessness,HML,Premises Related,C,Repair Maint n Alterations,CA,31/10/2018,PAY01111000,TAAS,Temp Accom and Allocations,58.44,Revenue,B & Q Plc
Brighton & Hove City Council,http://statistics.data.gov.uk/id/local-authority/00ML,Planning and Development,BVAPLA,Community Development,CDV,Supplies and Services,E,Services,EF,31/10/2018,PAY01111000,CMNY,Communities and Equalities,212.21,Revenue,B & Q Plc
Brighton & Hove City Council,http://statistics.data.gov.uk/id/local-authority/00ML,Children`s & Education Serv,BVAEDU,Child Srvcs Com and Scl Work,FCW,Supplies and Services,E,Equip't Furniture n Materials,EA,24/10/2018,PAY01109307,SOCK,Social Work,546,Revenue,Back Care Solutions Limited
Brighton & Hove City Council,http://statistics.data.gov.uk/id/local-authority/00ML,Children`s & Education Serv,BVAEDU,Child Srvcs Adoption,FAA,Third Party Payments,F,Other Establishments,FH,19/10/2018,PAY01108745,CHIC,Fostering and Adoption,5000,Revenue,BAHFTA
Brighton & Hove City Council,http://statistics.data.gov.uk/id/local-authority/00ML,Central Support and Overheads,BVACEN,Support Services (SSC),PPT,Premises Related,C,Repair Maint n Alterations,CA,12/10/2018,PAY01105523,PROP,Property and Design,1190,Revenue,Bailey Partnership (Consultants) LLP 
Brighton & Hove City Council,http://statistics.data.gov.uk/id/local-authority/00ML,Adult Social Care,BVASOC,Social Care Activities,ACM,Supplies and Services,E,Services,EF,12/10/2018,PAY01106624,ASIT,Assessment and SIT,440,Revenue,Bairford Ltd
Brighton & Hove City Council,http://statistics.data.gov.uk/id/local-authority/00ML,Adult Social Care,BVASOC,ASC Learning Disabilities,ALD,Customer n Client Receipts,M,Fees n Charges,MB,19/10/2018,PAY01108295,LDIS,Adults LD Community Care,-327,Revenue,Ballater House
Brighton & Hove City Council,http://statistics.data.gov.uk/id/local-authority/00ML,Adult Social Care,BVASOC,ASC Learning Disabilities,ALD,Third Party Payments,F,Other Establishments,FH,19/10/2018,PAY01108295,LDIS,Adults LD Community Care,7534.8,Revenue,Ballater House
Brighton & Hove City Council,http://statistics.data.gov.uk/id/local-authority/00ML,Adult Social Care,BVASOC,ASC Mental Health Support,MHP,Third Party Payments,F,Other Establishments,FH,19/10/2018,PAY01108295,MENH,Mental Health Support,6720,Revenue,Ballater House
Brighton & Hove City Council,http://statistics.data.gov.uk/id/local-authority/00ML,Cultural and Related Serv,BVACUL,Recreation and Sport,REC,Supplies and Services,E,Miscellaneous Expenses,EM,03/10/2018,PAY01103039,SPLE,Sport and Leisure,770,Revenue,Bandstand Brighton Ltd
Brighton & Hove City Council,http://statistics.data.gov.uk/id/local-authority/00ML,Central Support and Overheads,BVACEN,Support Services (SSC),PPT,Premises Related,C,Repair Maint n Alterations,CA,05/10/2018,PAY01103644,PROP,Property and Design,1000,Revenue,Baqus Group Plc t/a Baqus Boxall Sayer 
Brighton & Hove City Council,http://statistics.data.gov.uk/id/local-authority/00ML,Environment & Regulatory Serv,BVAERS,Cem Crem and Mortuary Services,CCM,Supplies and Services,E,Equip't Furniture n Materials,EA,26/10/2018,PAY01110349,BERE,Bereavement,214.25,Revenue,Barber of Sheffield Ltd
Brighton & Hove City Council,http://statistics.data.gov.uk/id/local-authority/00ML,Adult Social Care,BVASOC,ASC Mental Health Support,MHP,Third Party Payments,F,Other Establishments,FH,19/10/2018,PAY01108857,MENH,Mental Health Support,6923.36,Revenue,Barchester Healthcare Homes Ltd (Kernow House)
Brighton & Hove City Council,http://statistics.data.gov.uk/id/local-authority/00ML,Adult Social Care,BVASOC,ASC Memory Cognition Support,MEM,Third Party Payments,F,Other Establishments,FH,19/10/2018,PAY01108027,COGN,Memory Cognition Support,3536.8,Revenue,Barchester Healthcare Ltd (Kingsland House)
Brighton & Hove City Council,http://statistics.data.gov.uk/id/local-authority/00ML,Adult Social Care,BVASOC,ASC Physical Support,PHY,Customer n Client Receipts,M,Fees n Charges,MB,19/10/2018,PAY01108027,PHYS,Physical Support,-1537.4,Revenue,Barchester Healthcare Ltd (Kingsland House)
Brighton & Hove City Council,http://statistics.data.gov.uk/id/local-authority/00ML,Adult Social Care,BVASOC,ASC Physical Support,PHY,Third Party Payments,F,Other Establishments,FH,19/10/2018,PAY01108027,PHYS,Physical Support,5779.8,Revenue,Barchester Healthcare Ltd (Kingsland House)
Brighton & Hove City Council,http://statistics.data.gov.uk/id/local-authority/00ML,Adult Social Care,BVASOC,ASC Memory Cognition Support,MEM,Third Party Payments,F,Other Establishments,FH,19/10/2018,PAY01107999,COGN,Memory Cognition Support,5179.8,Revenue,Barchester Healthcare Ltd (Red Oaks Care Home)
Brighton & Hove City Council,http://statistics.data.gov.uk/id/local-authority/00ML,Children`s & Education Serv,BVAEDU,Child Srvcs Leaving Care,FAL,Transfer Payments,G,Other Transfer Payments,GD,05/10/2018,PAY01103662,CARL,Care Leavers,5645.76,Revenue,Barnardo`s
Brighton & Hove City Council,http://statistics.data.gov.uk/id/local-authority/00ML,Children`s & Education Serv,BVAEDU,Child Srvcs - Fostering,FLF,Third Party Payments,F,Other Establishments,FH,10/10/2018,PAY01104580,AVFM,Agency Placements\VFM,8054.68,Revenue,Barnardo`s
Brighton & Hove City Council,http://statistics.data.gov.uk/id/local-authority/00ML,Children`s & Education Serv,BVAEDU,Child Srvcs Leaving Care,FAL,Transfer Payments,G,Other Transfer Payments,GD,17/10/2018,PAY01107017,CARL,Care Leavers,5802.19,Revenue,Barnardo`s
Brighton & Hove City Council,http://statistics.data.gov.uk/id/local-authority/00ML,Children`s & Education Serv,BVAEDU,Child Srvcs - Fostering,FLF,Third Party Payments,F,Other Establishments,FH,24/10/2018,PAY01109069,DISS,Childrens Disability Services,135375,Revenue,Barnardo`s
Brighton & Hove City Council,http://statistics.data.gov.uk/id/local-authority/00ML,Children`s & Education Serv,BVAEDU,Child Srvcs Leaving Care,FAL,Transfer Payments,G,Other Transfer Payments,GD,31/10/2018,PAY01110988,CARL,Care Leavers,450,Revenue,Barnardo`s
Brighton & Hove City Council,http://statistics.data.gov.uk/id/local-authority/00ML,Environment & Regulatory Serv,BVAERS,Management Services (DEC),MGT,Transport Related,D,Direct Transport Costs,DA,03/10/2018,PAY01102764,CICL,City Clean,364,Revenue,Barnes DAF
Brighton & Hove City Council,http://statistics.data.gov.uk/id/local-authority/00ML,Environment & Regulatory Serv,BVAERS,Management Services (DEC),MGT,Transport Related,D,Direct Transport Costs,DA,05/10/2018,PAY01103672,CICL,City Clean,273.97,Revenue,Barnes DAF
Brighton & Hove City Council,http://statistics.data.gov.uk/id/local-authority/00ML,Environment & Regulatory Serv,BVAERS,Management Services (DEC),MGT,Transport Related,D,Direct Transport Costs,DA,24/10/2018,PAY01109080,CICL,City Clean,317.6,Revenue,Barnes DAF
Brighton & Hove City Council,http://statistics.data.gov.uk/id/local-authority/00ML,Housing General Fund,BVAHOG,Homelessness,HML,Premises Related,C,Rents Payable,CC,03/10/2018,PAY01103148,TAAS,Temp Accom and Allocations,1694.64,Revenue,Baron Developments Ltd
Brighton & Hove City Council,http://statistics.data.gov.uk/id/local-authority/00ML,Housing General Fund,BVAHOG,Homelessness,HML,Premises Related,C,Rents Payable,CC,05/10/2018,PAY01104046,TAAS,Temp Accom and Allocations,2722.46,Revenue,Baron Developments Ltd
Brighton & Hove City Council,http://statistics.data.gov.uk/id/local-authority/00ML,Housing General Fund,BVAHOG,Homelessness,HML,Premises Related,C,Rents Payable,CC,12/10/2018,PAY01106083,TAAS,Temp Accom and Allocations,2541.96,Revenue,Baron Developments Ltd
Brighton & Hove City Council,http://statistics.data.gov.uk/id/local-authority/00ML,Housing General Fund,BVAHOG,Homelessness,HML,Premises Related,C,Rents Payable,CC,17/10/2018,PAY01107305,TAAS,Temp Accom and Allocations,1875.14,Revenue,Baron Developments Ltd
Brighton & Hove City Council,http://statistics.data.gov.uk/id/local-authority/00ML,Housing General Fund,BVAHOG,Homelessness,HML,Premises Related,C,Rents Payable,CC,19/10/2018,PAY01108421,TAAS,Temp Accom and Allocations,847.32,Revenue,Baron Developments Ltd
Brighton & Hove City Council,http://statistics.data.gov.uk/id/local-authority/00ML,Housing General Fund,BVAHOG,Homelessness,HML,Premises Related,C,Rents Payable,CC,26/10/2018,PAY01110414,TAAS,Temp Accom and Allocations,3389.28,Revenue,Baron Developments Ltd
Brighton & Hove City Council,http://statistics.data.gov.uk/id/local-authority/00ML,Housing General Fund,BVAHOG,Homelessness,HML,Premises Related,C,Rents Payable,CC,03/10/2018,PAY01102946,TAAS,Temp Accom and Allocations,847.32,Revenue,Baron Management Ltd
Brighton & Hove City Council,http://statistics.data.gov.uk/id/local-authority/00ML,Housing General Fund,BVAHOG,Homelessness,HML,Premises Related,C,Rents Payable,CC,05/10/2018,PAY01103888,TAAS,Temp Accom and Allocations,847.32,Revenue,Baron Management Ltd
Brighton & Hove City Council,http://statistics.data.gov.uk/id/local-authority/00ML,Housing General Fund,BVAHOG,Homelessness,HML,Premises Related,C,Rents Payable,CC,10/10/2018,PAY01104721,TAAS,Temp Accom and Allocations,2817.67,Revenue,Baron Management Ltd
Brighton & Hove City Council,http://statistics.data.gov.uk/id/local-authority/00ML,Housing General Fund,BVAHOG,Homelessness,HML,Premises Related,C,Rents Payable,CC,12/10/2018,PAY01105714,TAAS,Temp Accom and Allocations,12403.98,Revenue,Baron Management Ltd
Brighton & Hove City Council,http://statistics.data.gov.uk/id/local-authority/00ML,Housing General Fund,BVAHOG,Homelessness,HML,Premises Related,C,Rents Payable,CC,17/10/2018,PAY01107183,TAAS,Temp Accom and Allocations,1027.82,Revenue,Baron Management Ltd
Brighton & Hove City Council,http://statistics.data.gov.uk/id/local-authority/00ML,Housing General Fund,BVAHOG,Homelessness,HML,Premises Related,C,Rents Payable,CC,24/10/2018,PAY01109226,TAAS,Temp Accom and Allocations,847.32,Revenue,Baron Management Ltd
Brighton & Hove City Council,http://statistics.data.gov.uk/id/local-authority/00ML,Housing General Fund,BVAHOG,Homelessness,HML,Premises Related,C,Rents Payable,CC,31/10/2018,PAY01111170,TAAS,Temp Accom and Allocations,847.32,Revenue,Baron Management Ltd
Brighton & Hove City Council,http://statistics.data.gov.uk/id/local-authority/00ML,Housing General Fund,BVAHOG,Homelessness,HML,Premises Related,C,Rents Payable,CC,10/10/2018,PAY01104987,TAAS,Temp Accom and Allocations,3128.4,Revenue,Barons Bay Limited
Brighton & Hove City Council,http://statistics.data.gov.uk/id/local-authority/00ML,Adult Social Care,BVASOC,ASC Physical Support,PHY,Customer n Client Receipts,M,Fees n Charges,MB,19/10/2018,PAY01107845,PHYS,Physical Support,-339,Revenue,Barons Down Nursing Home
Brighton & Hove City Council,http://statistics.data.gov.uk/id/local-authority/00ML,Adult Social Care,BVASOC,ASC Physical Support,PHY,Third Party Payments,F,Other Establishments,FH,19/10/2018,PAY01107845,PHYS,Physical Support,4367.36,Revenue,Barons Down Nursing Home
Brighton & Hove City Council,http://statistics.data.gov.uk/id/local-authority/00ML,Adult Social Care,BVASOC,ASC Learning Disabilities,ALD,Customer n Client Receipts,M,Fees n Charges,MB,19/10/2018,PAY01108147,LDIS,Adults LD Community Care,-552.4,Revenue,Barrington House Ltd
Brighton & Hove City Council,http://statistics.data.gov.uk/id/local-authority/00ML,Adult Social Care,BVASOC,ASC Learning Disabilities,ALD,Third Party Payments,F,Other Establishments,FH,19/10/2018,PAY01108147,LDIS,Adults LD Community Care,1656,Revenue,Barrington House Ltd
Brighton & Hove City Council,http://statistics.data.gov.uk/id/local-authority/00ML,Children`s & Education Serv,BVAEDU,Child Srvcs Com and Scl Work,FCW,Supplies and Services,E,Grants n Subscriptions,EK,05/10/2018,PAY01103835,SPEA,Specialist Assessment,300,Revenue,BASPCAN
Brighton & Hove City Council,http://statistics.data.gov.uk/id/local-authority/00ML,Central Support and Overheads,BVACEN,ORBIS Partnership,ORB,Supplies and Services,E,Miscellaneous Expenses,EM,05/10/2018,PAY01104143,ORBBUS,Business Operations - ORBIS,2000,Revenue,BDI Securities UK Ltd
Brighton & Hove City Council,http://statistics.data.gov.uk/id/local-authority/00ML,Cultural and Related Serv,BVACUL,Culture and Heritage,CHG,Supplies and Services,E,Miscellaneous Expenses,EM,05/10/2018,PAY01104143,RPMU,Royal Pavilion and Museums,1100,Revenue,BDI Securities UK Ltd
Brighton & Hove City Council,http://statistics.data.gov.uk/id/local-authority/00ML,Cultural and Related Serv,BVACUL,Recreation and Sport,REC,Customer n Client Receipts,M,Fees n Charges,MB,05/10/2018,PAY01104143,SPLE,Sport and Leisure,300,Revenue,BDI Securities UK Ltd
Brighton & Hove City Council,http://statistics.data.gov.uk/id/local-authority/00ML,Highways and Transportation,BVAHRT,Parking Services,PRK,Customer n Client Receipts,M,Fees n Charges,MB,05/10/2018,PAY01104143,PARK,Parking Services,350,Revenue,BDI Securities UK Ltd
Brighton & Hove City Council,http://statistics.data.gov.uk/id/local-authority/00ML,Non-BHC Organisations,BVANON,Trusts,TRT,Supplies and Services,E,Miscellaneous Expenses,EM,05/10/2018,PAY01104143,NBHC,Non Council,1550,Revenue,BDI Securities UK Ltd
Brighton & Hove City Council,http://statistics.data.gov.uk/id/local-authority/00ML,Central Support and Overheads,BVACEN,ORBIS Partnership,ORB,Supplies and Services,E,Services,EF,12/10/2018,PAY01106283,ORBBUS,Business Operations - ORBIS,14064.81,Revenue,BDI Securities UK Ltd
Brighton & Hove City Council,http://statistics.data.gov.uk/id/local-authority/00ML,Central Support and Overheads,BVACEN,ORBIS Partnership,ORB,Supplies and Services,E,Miscellaneous Expenses,EM,12/10/2018,PAY01106284,ORBBUS,Business Operations - ORBIS,4250,Revenue,BDI Securities UK Ltd
Brighton & Hove City Council,http://statistics.data.gov.uk/id/local-authority/00ML,Cultural and Related Serv,BVACUL,Culture and Heritage,CHG,Supplies and Services,E,Miscellaneous Expenses,EM,12/10/2018,PAY01106284,RPMU,Royal Pavilion and Museums,1100,Revenue,BDI Securities UK Ltd
Brighton & Hove City Council,http://statistics.data.gov.uk/id/local-authority/00ML,Cultural and Related Serv,BVACUL,Recreation and Sport,REC,Customer n Client Receipts,M,Fees n Charges,MB,12/10/2018,PAY01106284,SPLE,Sport and Leisure,300,Revenue,BDI Securities UK Ltd
Brighton & Hove City Council,http://statistics.data.gov.uk/id/local-authority/00ML,Highways and Transportation,BVAHRT,Parking Services,PRK,Customer n Client Receipts,M,Fees n Charges,MB,12/10/2018,PAY01106284,PARK,Parking Services,350,Revenue,BDI Securities UK Ltd
Brighton & Hove City Council,http://statistics.data.gov.uk/id/local-authority/00ML,Non-BHC Organisations,BVANON,Trusts,TRT,Supplies and Services,E,Miscellaneous Expenses,EM,12/10/2018,PAY01106284,NBHC,Non Council,1700,Revenue,BDI Securities UK Ltd
Brighton & Hove City Council,http://statistics.data.gov.uk/id/local-authority/00ML,Central Support and Overheads,BVACEN,ORBIS Partnership,ORB,Supplies and Services,E,Miscellaneous Expenses,EM,19/10/2018,PAY01108531,ORBBUS,Business Operations - ORBIS,2200,Revenue,BDI Securities UK Ltd
Brighton & Hove City Council,http://statistics.data.gov.uk/id/local-authority/00ML,Cultural and Related Serv,BVACUL,Culture and Heritage,CHG,Supplies and Services,E,Miscellaneous Expenses,EM,19/10/2018,PAY01108531,RPMU,Royal Pavilion and Museums,1100,Revenue,BDI Securities UK Ltd
Brighton & Hove City Council,http://statistics.data.gov.uk/id/local-authority/00ML,Cultural and Related Serv,BVACUL,Recreation and Sport,REC,Customer n Client Receipts,M,Fees n Charges,MB,19/10/2018,PAY01108531,SPLE,Sport and Leisure,300,Revenue,BDI Securities UK Ltd
Brighton & Hove City Council,http://statistics.data.gov.uk/id/local-authority/00ML,Highways and Transportation,BVAHRT,Parking Services,PRK,Customer n Client Receipts,M,Fees n Charges,MB,19/10/2018,PAY01108531,PARK,Parking Services,350,Revenue,BDI Securities UK Ltd
Brighton & Hove City Council,http://statistics.data.gov.uk/id/local-authority/00ML,Non-BHC Organisations,BVANON,Trusts,TRT,Supplies and Services,E,Miscellaneous Expenses,EM,19/10/2018,PAY01108531,NBHC,Non Council,800,Revenue,BDI Securities UK Ltd
Brighton & Hove City Council,http://statistics.data.gov.uk/id/local-authority/00ML,Central Support and Overheads,BVACEN,ORBIS Partnership,ORB,Supplies and Services,E,Miscellaneous Expenses,EM,26/10/2018,PAY01110530,ORBBUS,Business Operations - ORBIS,5750,Revenue,BDI Securities UK Ltd
Brighton & Hove City Council,http://statistics.data.gov.uk/id/local-authority/00ML,Cultural and Related Serv,BVACUL,Culture and Heritage,CHG,Supplies and Services,E,Miscellaneous Expenses,EM,26/10/2018,PAY01110530,RPMU,Royal Pavilion and Museums,600,Revenue,BDI Securities UK Ltd
Brighton & Hove City Council,http://statistics.data.gov.uk/id/local-authority/00ML,Cultural and Related Serv,BVACUL,Recreation and Sport,REC,Customer n Client Receipts,M,Fees n Charges,MB,26/10/2018,PAY01110530,SPLE,Sport and Leisure,300,Revenue,BDI Securities UK Ltd
Brighton & Hove City Council,http://statistics.data.gov.uk/id/local-authority/00ML,Highways and Transportation,BVAHRT,Parking Services,PRK,Customer n Client Receipts,M,Fees n Charges,MB,26/10/2018,PAY01110530,PARK,Parking Services,350,Revenue,BDI Securities UK Ltd
Brighton & Hove City Council,http://statistics.data.gov.uk/id/local-authority/00ML,Cultural and Related Serv,BVACUL,Open Spaces,PEN,Supplies and Services,E,Miscellaneous Expenses,EM,12/10/2018,PAY01105510,CIPK,City Parks,388.5,Revenue,Beacon Fencing Ltd
Brighton & Hove City Council,http://statistics.data.gov.uk/id/local-authority/00ML,Children`s & Education Serv,BVAEDU,Child Srvcs Adoption,FAA,Supplies and Services,E,Services,EF,19/10/2018,PAY01108672,CHIC,Fostering and Adoption,768,Revenue,Beacon House Psychological Services
Brighton & Hove City Council,http://statistics.data.gov.uk/id/local-authority/00ML,Children`s & Education Serv,BVAEDU,Child Srvcs Adoption,FAA,Supplies and Services,E,Services,EF,26/10/2018,PAY01110652,CHIC,Fostering and Adoption,864,Revenue,Beacon House Psychological Services
Brighton & Hove City Council,http://statistics.data.gov.uk/id/local-authority/00ML,Public Health,BVAPHE,Public Health,PHE,Third Party Payments,F,Other Establishments,FH,26/10/2018,PAY01110084,PHCM,PH Commissioning,9904.61,Revenue,Beaconsfield Medical Practice
Brighton & Hove City Council,http://statistics.data.gov.uk/id/local-authority/00ML,Adult Social Care,BVASOC,ASC Physical Support,PHY,Customer n Client Receipts,M,Fees n Charges,MB,03/10/2018,PAY01103272,PHYS,Physical Support,367.5,Revenue,Beaumont NH Ltd
Brighton & Hove City Council,http://statistics.data.gov.uk/id/local-authority/00ML,Adult Social Care,BVASOC,ASC Physical Support,PHY,Third Party Payments,F,Other Establishments,FH,03/10/2018,PAY01103272,PHYS,Physical Support,-3528.57,Revenue,Beaumont NH Ltd
Brighton & Hove City Council,http://statistics.data.gov.uk/id/local-authority/00ML,Adult Social Care,BVASOC,ASC Physical Support,PHY,Customer n Client Receipts,M,Fees n Charges,MB,19/10/2018,PAY01108575,PHYS,Physical Support,-3936.08,Revenue,Beaumont NH Ltd
Brighton & Hove City Council,http://statistics.data.gov.uk/id/local-authority/00ML,Adult Social Care,BVASOC,ASC Physical Support,PHY,Third Party Payments,F,Other Establishments,FH,19/10/2018,PAY01108575,PHYS,Physical Support,23847.24,Revenue,Beaumont NH Ltd
Brighton & Hove City Council,http://statistics.data.gov.uk/id/local-authority/00ML,Children`s & Education Serv,BVAEDU,Ed EY PVI,ENP,Supplies and Services,E,Grants n Subscriptions,EK,26/10/2018,PAY01110822,EYRS,Early Years,427.5,Revenue,Bee In The Woods
Brighton & Hove City Council,http://statistics.data.gov.uk/id/local-authority/00ML,Adult Social Care,BVASOC,ASC Learning Disabilities,ALD,Customer n Client Receipts,M,Fees n Charges,MB,19/10/2018,PAY01107993,LDIS,Adults LD Community Care,-757.6,Revenue,Beech Lodge
Brighton & Hove City Council,http://statistics.data.gov.uk/id/local-authority/00ML,Adult Social Care,BVASOC,ASC Learning Disabilities,ALD,Third Party Payments,F,Other Establishments,FH,19/10/2018,PAY01107993,LDIS,Adults LD Community Care,10916.72,Revenue,Beech Lodge
Brighton & Hove City Council,http://statistics.data.gov.uk/id/local-authority/00ML,Adult Social Care,BVASOC,ASC Physical Support,PHY,Customer n Client Receipts,M,Fees n Charges,MB,19/10/2018,PAY01107993,PHYS,Physical Support,-874.76,Revenue,Beech Lodge
Brighton & Hove City Council,http://statistics.data.gov.uk/id/local-authority/00ML,Adult Social Care,BVASOC,ASC Physical Support,PHY,Third Party Payments,F,Other Establishments,FH,19/10/2018,PAY01107993,PHYS,Physical Support,8386.96,Revenue,Beech Lodge
Brighton & Hove City Council,http://statistics.data.gov.uk/id/local-authority/00ML,Housing General Fund,BVAHOG,Homelessness,HML,Third Party Payments,F,Other Establishments,FH,03/10/2018,PAY01102974,TAAS,Temp Accom and Allocations,1040,Revenue,Belvoir Lettings
Brighton & Hove City Council,http://statistics.data.gov.uk/id/local-authority/00ML,Children`s & Education Serv,BVAEDU,Ed Ed Other Other,ENF,Third Party Payments,F,Other Establishments,FH,03/10/2018,PAY01103309,VSCH,Virtual School,500,Revenue,Bembridge CE Primary School
Brighton & Hove City Council,http://statistics.data.gov.uk/id/local-authority/00ML,Public Health,BVAPHE,Public Health,PHE,Third Party Payments,F,Other Establishments,FH,26/10/2018,PAY01110381,PHCM,PH Commissioning,4589.18,Revenue,Benfield Valley Healthcare Hub
Brighton & Hove City Council,http://statistics.data.gov.uk/id/local-authority/00ML,Adult Social Care,BVASOC,ASC Mental Health Support,MHP,Third Party Payments,F,Other Establishments,FH,19/10/2018,PAY01108890,MENH,Mental Health Support,961,Revenue,Benwick Kennels & Cattery
Brighton & Hove City Council,http://statistics.data.gov.uk/id/local-authority/00ML,Housing General Fund,BVAHOG,Homelessness,HML,Third Party Payments,F,Other Establishments,FH,05/10/2018,PAY01104266,TAAS,Temp Accom and Allocations,700,Revenue,Berege Lettings
Brighton & Hove City Council,http://statistics.data.gov.uk/id/local-authority/00ML,Housing General Fund,BVAHOG,Homelessness,HML,Third Party Payments,F,Other Establishments,FH,17/10/2018,PAY01107471,TAAS,Temp Accom and Allocations,880,Revenue,Berege Lettings
Brighton & Hove City Council,http://statistics.data.gov.uk/id/local-authority/00ML,Environment & Regulatory Serv,BVAERS,Management Services (DEC),MGT,Supplies and Services,E,Equip't Furniture n Materials,EA,26/10/2018,PAY01110172,CICL,City Clean,917.56,Revenue,Berendsen UK Ltd
Brighton & Hove City Council,http://statistics.data.gov.uk/id/local-authority/00ML,Adult Social Care,BVASOC,ASC Memory Cognition Support,MEM,Supplies and Services,E,Catering,EB,03/10/2018,PAY01102839,RCOP,Resource Centres Older People,383.79,Revenue,BFS Group Ltd t/a Bidvest Foodservice
Brighton & Hove City Council,http://statistics.data.gov.uk/id/local-authority/00ML,Adult Social Care,BVASOC,ASC Physical Support,PHY,Supplies and Services,E,Catering,EB,03/10/2018,PAY01102839,RCOP,Resource Centres Older People,282.52,Revenue,BFS Group Ltd t/a Bidvest Foodservice
Brighton & Hove City Council,http://statistics.data.gov.uk/id/local-authority/00ML,Adult Social Care,BVASOC,ASC Physical Support,PHY,Supplies and Services,E,Catering,EB,05/10/2018,PAY01103726,RCOP,Resource Centres Older People,200.61,Revenue,BFS Group Ltd t/a Bidvest Foodservice
Brighton & Hove City Council,http://statistics.data.gov.uk/id/local-authority/00ML,Housing General Fund,BVAHOG,Homelessness,HML,Supplies and Services,E,Catering,EB,05/10/2018,PAY01103726,ASSA,Hostel Accommodation,301.56,Revenue,BFS Group Ltd t/a Bidvest Foodservice
Brighton & Hove City Council,http://statistics.data.gov.uk/id/local-authority/00ML,Adult Social Care,BVASOC,ASC Memory Cognition Support,MEM,Supplies and Services,E,Catering,EB,10/10/2018,PAY01104649,RCOP,Resource Centres Older People,190.98,Revenue,BFS Group Ltd t/a Bidvest Foodservice
Brighton & Hove City Council,http://statistics.data.gov.uk/id/local-authority/00ML,Adult Social Care,BVASOC,ASC Physical Support,PHY,Supplies and Services,E,Catering,EB,10/10/2018,PAY01104649,RCOP,Resource Centres Older People,282.45,Revenue,BFS Group Ltd t/a Bidvest Foodservice
Brighton & Hove City Council,http://statistics.data.gov.uk/id/local-authority/00ML,Adult Social Care,BVASOC,ASC Physical Support,PHY,Supplies and Services,E,Catering,EB,12/10/2018,PAY01105555,RCOP,Resource Centres Older People,219.97,Revenue,BFS Group Ltd t/a Bidvest Foodservice
Brighton & Hove City Council,http://statistics.data.gov.uk/id/local-authority/00ML,Housing General Fund,BVAHOG,Homelessness,HML,Supplies and Services,E,Catering,EB,12/10/2018,PAY01105555,ASSA,Hostel Accommodation,332.06,Revenue,BFS Group Ltd t/a Bidvest Foodservice
Brighton & Hove City Council,http://statistics.data.gov.uk/id/local-authority/00ML,Adult Social Care,BVASOC,ASC Memory Cognition Support,MEM,Supplies and Services,E,Catering,EB,17/10/2018,PAY01107105,RCOP,Resource Centres Older People,497.3,Revenue,BFS Group Ltd t/a Bidvest Foodservice
Brighton & Hove City Council,http://statistics.data.gov.uk/id/local-authority/00ML,Adult Social Care,BVASOC,ASC Physical Support,PHY,Supplies and Services,E,Catering,EB,17/10/2018,PAY01107105,RCOP,Resource Centres Older People,401.71,Revenue,BFS Group Ltd t/a Bidvest Foodservice
Brighton & Hove City Council,http://statistics.data.gov.uk/id/local-authority/00ML,Housing General Fund,BVAHOG,Homelessness,HML,Supplies and Services,E,Catering,EB,17/10/2018,PAY01107105,ASSA,Hostel Accommodation,-22.29,Revenue,BFS Group Ltd t/a Bidvest Foodservice
Brighton & Hove City Council,http://statistics.data.gov.uk/id/local-authority/00ML,Adult Social Care,BVASOC,ASC Memory Cognition Support,MEM,Supplies and Services,E,Catering,EB,19/10/2018,PAY01108043,RCOP,Resource Centres Older People,422.55,Revenue,BFS Group Ltd t/a Bidvest Foodservice
Brighton & Hove City Council,http://statistics.data.gov.uk/id/local-authority/00ML,Housing General Fund,BVAHOG,Homelessness,HML,Supplies and Services,E,Catering,EB,19/10/2018,PAY01108043,ASSA,Hostel Accommodation,378.95,Revenue,BFS Group Ltd t/a Bidvest Foodservice
Brighton & Hove City Council,http://statistics.data.gov.uk/id/local-authority/00ML,Adult Social Care,BVASOC,ASC Memory Cognition Support,MEM,Supplies and Services,E,Catering,EB,24/10/2018,PAY01109133,RCOP,Resource Centres Older People,670.02,Revenue,BFS Group Ltd t/a Bidvest Foodservice
Brighton & Hove City Council,http://statistics.data.gov.uk/id/local-authority/00ML,Adult Social Care,BVASOC,ASC Physical Support,PHY,Supplies and Services,E,Catering,EB,24/10/2018,PAY01109133,RCOP,Resource Centres Older People,188.56,Revenue,BFS Group Ltd t/a Bidvest Foodservice
Brighton & Hove City Council,http://statistics.data.gov.uk/id/local-authority/00ML,Housing General Fund,BVAHOG,Homelessness,HML,Supplies and Services,E,Catering,EB,24/10/2018,PAY01109133,ASSA,Hostel Accommodation,-63.9,Revenue,BFS Group Ltd t/a Bidvest Foodservice
Brighton & Hove City Council,http://statistics.data.gov.uk/id/local-authority/00ML,Adult Social Care,BVASOC,ASC Physical Support,PHY,Supplies and Services,E,Catering,EB,26/10/2018,PAY01110068,RCOP,Resource Centres Older People,419.56,Revenue,BFS Group Ltd t/a Bidvest Foodservice
Brighton & Hove City Council,http://statistics.data.gov.uk/id/local-authority/00ML,Housing General Fund,BVAHOG,Homelessness,HML,Supplies and Services,E,Catering,EB,26/10/2018,PAY01110068,ASSA,Hostel Accommodation,120.77,Revenue,BFS Group Ltd t/a Bidvest Foodservice
Brighton & Hove City Council,http://statistics.data.gov.uk/id/local-authority/00ML,Adult Social Care,BVASOC,ASC Memory Cognition Support,MEM,Supplies and Services,E,Catering,EB,31/10/2018,PAY01111066,RCOP,Resource Centres Older People,11.49,Revenue,BFS Group Ltd t/a Bidvest Foodservice
Brighton & Hove City Council,http://statistics.data.gov.uk/id/local-authority/00ML,Housing General Fund,BVAHOG,Homelessness,HML,Supplies and Services,E,Catering,EB,31/10/2018,PAY01111066,ASSA,Hostel Accommodation,342.71,Revenue,BFS Group Ltd t/a Bidvest Foodservice
Brighton & Hove City Council,http://statistics.data.gov.uk/id/local-authority/00ML,Planning and Development,BVAPLA,Community Development,CDV,Supplies and Services,E,Grants n Subscriptions,EK,05/10/2018,PAY01103731,CMNY,Communities and Equalities,5526,Revenue,BHAFC Albion in the Community
Brighton & Hove City Council,http://statistics.data.gov.uk/id/local-authority/00ML,Highways and Transportation,BVAHRT,Transport Plan Policy Strategy,TPP,Supplies and Services,E,Services,EF,10/10/2018,PAY01104865,TPRS,Transport Projects and Eng,825,Revenue,Bike for Life (South) CIC
Brighton & Hove City Council,http://statistics.data.gov.uk/id/local-authority/00ML,Adult Social Care,BVASOC,ASC Mental Health Support,MHP,Third Party Payments,F,Other Establishments,FH,03/10/2018,PAY01102798,MENH,Mental Health Support,7585.71,Revenue,Birchgrove Healthcare (Sussex) Ltd
Brighton & Hove City Council,http://statistics.data.gov.uk/id/local-authority/00ML,Adult Social Care,BVASOC,ASC Physical Support,PHY,Customer n Client Receipts,M,Fees n Charges,MB,05/10/2018,PAY01103693,PHYS,Physical Support,486.44,Revenue,Birchgrove Healthcare (Sussex) Ltd
Brighton & Hove City Council,http://statistics.data.gov.uk/id/local-authority/00ML,Adult Social Care,BVASOC,ASC Physical Support,PHY,Third Party Payments,F,Other Establishments,FH,05/10/2018,PAY01103693,PHYS,Physical Support,-946.36,Revenue,Birchgrove Healthcare (Sussex) Ltd
Brighton & Hove City Council,http://statistics.data.gov.uk/id/local-authority/00ML,Adult Social Care,BVASOC,ASC Memory Cognition Support,MEM,Customer n Client Receipts,M,Fees n Charges,MB,19/10/2018,PAY01107991,COGN,Memory Cognition Support,-2546.16,Revenue,Birchgrove Healthcare (Sussex) Ltd
Brighton & Hove City Council,http://statistics.data.gov.uk/id/local-authority/00ML,Adult Social Care,BVASOC,ASC Memory Cognition Support,MEM,Third Party Payments,F,Other Establishments,FH,19/10/2018,PAY01107991,COGN,Memory Cognition Support,20697.48,Revenue,Birchgrove Healthcare (Sussex) Ltd
Brighton & Hove City Council,http://statistics.data.gov.uk/id/local-authority/00ML,Adult Social Care,BVASOC,ASC Mental Health Support,MHP,Third Party Payments,F,Other Establishments,FH,19/10/2018,PAY01107991,MENH,Mental Health Support,3685.76,Revenue,Birchgrove Healthcare (Sussex) Ltd
Brighton & Hove City Council,http://statistics.data.gov.uk/id/local-authority/00ML,Adult Social Care,BVASOC,ASC Physical Support,PHY,Customer n Client Receipts,M,Fees n Charges,MB,19/10/2018,PAY01107991,PHYS,Physical Support,-6505.2,Revenue,Birchgrove Healthcare (Sussex) Ltd
Brighton & Hove City Council,http://statistics.data.gov.uk/id/local-authority/00ML,Adult Social Care,BVASOC,ASC Physical Support,PHY,Third Party Payments,F,Other Establishments,FH,19/10/2018,PAY01107991,PHYS,Physical Support,40778.24,Revenue,Birchgrove Healthcare (Sussex) Ltd
Brighton & Hove City Council,http://statistics.data.gov.uk/id/local-authority/00ML,Environment & Regulatory Serv,BVAERS,Management Services (DEC),MGT,Premises Related,C,Repair Maint n Alterations,CA,17/10/2018,PAY01107013,CICL,City Clean,600,Revenue,Bird Control Sussex
Brighton & Hove City Council,http://statistics.data.gov.uk/id/local-authority/00ML,Housing General Fund,BVAHOG,Homelessness,HML,Supplies and Services,E,Miscellaneous Expenses,EM,26/10/2018,PAY01110269,TAAS,Temp Accom and Allocations,225.75,Revenue,Bishop`s Move
Brighton & Hove City Council,http://statistics.data.gov.uk/id/local-authority/00ML,Adult Social Care,BVASOC,ASC Learning Disabilities,ALD,Premises Related,C,Energy Costs,CB,17/10/2018,PAY01107042,LDSU,Supported Employment,399.52,Revenue,Bizspace Ltd
Brighton & Hove City Council,http://statistics.data.gov.uk/id/local-authority/00ML,Adult Social Care,BVASOC,ASC Learning Disabilities,ALD,Premises Related,C,Rents Payable,CC,17/10/2018,PAY01107042,LDSU,Supported Employment,13111.01,Revenue,Bizspace Ltd
Brighton & Hove City Council,http://statistics.data.gov.uk/id/local-authority/00ML,Adult Social Care,BVASOC,ASC Learning Disabilities,ALD,Premises Related,C,Rents Payable,CC,19/10/2018,PAY01107965,LDSU,Supported Employment,11367.22,Revenue,Bizspace Ltd
Brighton & Hove City Council,http://statistics.data.gov.uk/id/local-authority/00ML,Adult Social Care,BVASOC,ASC Learning Disabilities,ALD,Premises Related,C,Energy Costs,CB,31/10/2018,PAY01111014,LDSU,Supported Employment,472.54,Revenue,Bizspace Ltd
Brighton & Hove City Council,http://statistics.data.gov.uk/id/local-authority/00ML,Adult Social Care,BVASOC,ASC Learning Disabilities,ALD,Premises Related,C,Rents Payable,CC,31/10/2018,PAY01111014,LDSU,Supported Employment,225.32,Revenue,Bizspace Ltd
Brighton & Hove City Council,http://statistics.data.gov.uk/id/local-authority/00ML,Adult Social Care,BVASOC,ASC Physical Support,PHY,Customer n Client Receipts,M,Fees n Charges,MB,19/10/2018,PAY01108701,PHYS,Physical Support,-409,Revenue,Black Swan International
Brighton & Hove City Council,http://statistics.data.gov.uk/id/local-authority/00ML,Adult Social Care,BVASOC,ASC Physical Support,PHY,Third Party Payments,F,Other Establishments,FH,19/10/2018,PAY01108701,PHYS,Physical Support,5853.6,Revenue,Black Swan International
Brighton & Hove City Council,http://statistics.data.gov.uk/id/local-authority/00ML,Cultural and Related Serv,BVACUL,Culture and Heritage,CHG,Supplies and Services,E,Equip't Furniture n Materials,EA,12/10/2018,PAY01105484,RPMU,Royal Pavilion and Museums,563.9,Revenue,Blackbox - AV
Brighton & Hove City Council,http://statistics.data.gov.uk/id/local-authority/00ML,Cultural and Related Serv,BVACUL,Culture and Heritage,CHG,Supplies and Services,E,Equip't Furniture n Materials,EA,17/10/2018,PAY01107052,RPMU,Royal Pavilion and Museums,5654.3,Revenue,Blackbox - AV
Brighton & Hove City Council,http://statistics.data.gov.uk/id/local-authority/00ML,Central Support and Overheads,BVACEN,Support Services (SSC),PPT,Supplies and Services,E,Equip't Furniture n Materials,EA,12/10/2018,PAY01105497,SKEM,Skills and Employment,1661.71,Revenue,Blackburns Metals Ltd
Brighton & Hove City Council,http://statistics.data.gov.uk/id/local-authority/00ML,Central Support and Overheads,BVACEN,Support Services (SSC),PPT,Supplies and Services,E,Equip't Furniture n Materials,EA,31/10/2018,PAY01111032,SKEM,Skills and Employment,1481.52,Revenue,Blackburns Metals Ltd
Brighton & Hove City Council,http://statistics.data.gov.uk/id/local-authority/00ML,Adult Social Care,BVASOC,ASC Physical Support,PHY,Customer n Client Receipts,M,Fees n Charges,MB,24/10/2018,PAY01109549,PHYS,Physical Support,-555.8,Revenue,Blair House Limited
Brighton & Hove City Council,http://statistics.data.gov.uk/id/local-authority/00ML,Adult Social Care,BVASOC,ASC Physical Support,PHY,Third Party Payments,F,Other Establishments,FH,24/10/2018,PAY01109549,PHYS,Physical Support,2385.56,Revenue,Blair House Limited
Brighton & Hove City Council,http://statistics.data.gov.uk/id/local-authority/00ML,Adult Social Care,BVASOC,ASC Memory Cognition Support,MEM,Customer n Client Receipts,M,Fees n Charges,MB,19/10/2018,PAY01108395,COGN,Memory Cognition Support,-1805.24,Revenue,Blatchington Court
Brighton & Hove City Council,http://statistics.data.gov.uk/id/local-authority/00ML,Adult Social Care,BVASOC,ASC Memory Cognition Support,MEM,Third Party Payments,F,Other Establishments,FH,19/10/2018,PAY01108395,COGN,Memory Cognition Support,5008.28,Revenue,Blatchington Court
Brighton & Hove City Council,http://statistics.data.gov.uk/id/local-authority/00ML,Non I&E,BVANON,Cap - Housing Services - HRA,4HR,New Construction n Conversion,PB,New Construction n Conversion,PBL5,24/10/2018,PAY01109132,HPAI,Property & Investment,825,Capital,BLB Surveyors Ltd
Brighton & Hove City Council,http://statistics.data.gov.uk/id/local-authority/00ML,Non I&E,BVANON,CAP Education Services,4ED,New Construction n Conversion,PB,New Construction n Conversion,PBL5,17/10/2018,PAY01107427,EYRS,Early Years,5123.07,Capital,Blenheim Roofing Service Ltd
Brighton & Hove City Council,http://statistics.data.gov.uk/id/local-authority/00ML,Adult Social Care,BVASOC,ASC Sensory Support,AHV,Customer n Client Receipts,M,Fees n Charges,MB,10/10/2018,PAY01104582,SORY,Sensory Support,-15394.34,Revenue,Blind Veterans UK
Brighton & Hove City Council,http://statistics.data.gov.uk/id/local-authority/00ML,Adult Social Care,BVASOC,ASC Sensory Support,AHV,Third Party Payments,F,Other Establishments,FH,10/10/2018,PAY01104582,SORY,Sensory Support,23448.81,Revenue,Blind Veterans UK
Brighton & Hove City Council,http://statistics.data.gov.uk/id/local-authority/00ML,Adult Social Care,BVASOC,ASC Memory Cognition Support,MEM,Customer n Client Receipts,M,Fees n Charges,MB,12/10/2018,PAY01105446,COGN,Memory Cognition Support,-4172,Revenue,Blind Veterans UK
Brighton & Hove City Council,http://statistics.data.gov.uk/id/local-authority/00ML,Adult Social Care,BVASOC,ASC Memory Cognition Support,MEM,Third Party Payments,F,Other Establishments,FH,12/10/2018,PAY01105446,COGN,Memory Cognition Support,4172,Revenue,Blind Veterans UK
Brighton & Hove City Council,http://statistics.data.gov.uk/id/local-authority/00ML,Adult Social Care,BVASOC,ASC Sensory Support,AHV,Customer n Client Receipts,M,Fees n Charges,MB,12/10/2018,PAY01105446,SORY,Sensory Support,3572.4,Revenue,Blind Veterans UK
Brighton & Hove City Council,http://statistics.data.gov.uk/id/local-authority/00ML,Adult Social Care,BVASOC,ASC Sensory Support,AHV,Customer n Client Receipts,M,Fees n Charges,MB,19/10/2018,PAY01107931,SORY,Sensory Support,-1569.52,Revenue,Blind Veterans UK
Brighton & Hove City Council,http://statistics.data.gov.uk/id/local-authority/00ML,Adult Social Care,BVASOC,ASC Sensory Support,AHV,Third Party Payments,F,Other Establishments,FH,19/10/2018,PAY01107931,SORY,Sensory Support,2944.24,Revenue,Blind Veterans UK
Brighton & Hove City Council,http://statistics.data.gov.uk/id/local-authority/00ML,Central Support and Overheads,BVACEN,Support Services (SSC),PPT,Premises Related,C,Repair Maint n Alterations,CA,12/10/2018,PAY01105448,PROP,Property and Design,580,Revenue,Blockbusters Contracts Ltd
Brighton & Hove City Council,http://statistics.data.gov.uk/id/local-authority/00ML,Central Support and Overheads,BVACEN,Holding Accounts,PPH,Premises Related,C,Repair Maint n Alterations,CA,19/10/2018,PAY01107933,PROP,Property and Design,68,Revenue,Blockbusters Contracts Ltd
Brighton & Hove City Council,http://statistics.data.gov.uk/id/local-authority/00ML,Central Support and Overheads,BVACEN,Support Services (SSC),PPT,Premises Related,C,Repair Maint n Alterations,CA,19/10/2018,PAY01107933,PROP,Property and Design,408,Revenue,Blockbusters Contracts Ltd
Brighton & Hove City Council,http://statistics.data.gov.uk/id/local-authority/00ML,Cultural and Related Serv,BVACUL,Recreation and Sport,REC,Premises Related,C,Repair Maint n Alterations,CA,19/10/2018,PAY01107933,SPLE,Sport and Leisure,780,Revenue,Blockbusters Contracts Ltd
Brighton & Hove City Council,http://statistics.data.gov.uk/id/local-authority/00ML,Children`s & Education Serv,BVAEDU,Child Srvcs Leaving Care,FAL,Transfer Payments,G,Other Transfer Payments,GD,05/10/2018,PAY01103932,CARL,Care Leavers,18200.4,Revenue,Blue Sky Fostering Limited
Brighton & Hove City Council,http://statistics.data.gov.uk/id/local-authority/00ML,Children`s & Education Serv,BVAEDU,Child Srvcs - Fostering,FLF,Third Party Payments,F,Other Establishments,FH,10/10/2018,PAY01104757,AVFM,Agency Placements\VFM,36432.43,Revenue,Blue Sky Fostering Limited
Brighton & Hove City Council,http://statistics.data.gov.uk/id/local-authority/00ML,Children`s & Education Serv,BVAEDU,Child Srvcs - Fostering,FLF,Third Party Payments,F,Other Establishments,FH,10/10/2018,PAY01104757,DISS,Childrens Disability Services,6345.4,Revenue,Blue Sky Fostering Limited
Brighton & Hove City Council,http://statistics.data.gov.uk/id/local-authority/00ML,Children`s & Education Serv,BVAEDU,Child Srvcs Leaving Care,FAL,Transfer Payments,G,Other Transfer Payments,GD,10/10/2018,PAY01104757,CARL,Care Leavers,2600.08,Revenue,Blue Sky Fostering Limited
Brighton & Hove City Council,http://statistics.data.gov.uk/id/local-authority/00ML,Children`s & Education Serv,BVAEDU,Ed EY PVI,ENP,Supplies and Services,E,Grants n Subscriptions,EK,26/10/2018,PAY01110193,EYRS,Early Years,1311,Revenue,Blueberry Nursery & Early Learning Organisation Ld
Brighton & Hove City Council,http://statistics.data.gov.uk/id/local-authority/00ML,Central Support and Overheads,BVACEN,Support Services (SSC),PPT,Supplies and Services,E,Miscellaneous Expenses,EM,17/10/2018,PAY01107394,COMU,Communications,1032.5,Revenue,Bluebird Tea Ltd
Brighton & Hove City Council,http://statistics.data.gov.uk/id/local-authority/00ML,Adult Social Care,BVASOC,ASC Memory Cognition Support,MEM,Premises Related,C,Cleaning n Domestic Supps,CH,10/10/2018,PAY01104677,RCOP,Resource Centres Older People,235.93,Revenue,Blueleaf Ltd
Brighton & Hove City Council,http://statistics.data.gov.uk/id/local-authority/00ML,Adult Social Care,BVASOC,ASC Physical Support,PHY,Premises Related,C,Cleaning n Domestic Supps,CH,10/10/2018,PAY01104677,RCOP,Resource Centres Older People,79.62,Revenue,Blueleaf Ltd
Brighton & Hove City Council,http://statistics.data.gov.uk/id/local-authority/00ML,Adult Social Care,BVASOC,ASC Physical Support,PHY,Premises Related,C,Cleaning n Domestic Supps,CH,24/10/2018,PAY01109179,RCOP,Resource Centres Older People,478.88,Revenue,Blueleaf Ltd
Brighton & Hove City Council,http://statistics.data.gov.uk/id/local-authority/00ML,Adult Social Care,BVASOC,ASC Physical Support,PHY,Supplies and Services,E,Equip't Furniture n Materials,EA,24/10/2018,PAY01109179,RCOP,Resource Centres Older People,98.95,Revenue,Blueleaf Ltd
Brighton & Hove City Council,http://statistics.data.gov.uk/id/local-authority/00ML,Adult Social Care,BVASOC,ASC Memory Cognition Support,MEM,Premises Related,C,Cleaning n Domestic Supps,CH,26/10/2018,PAY01110182,RCOP,Resource Centres Older People,669.45,Revenue,Blueleaf Ltd
Brighton & Hove City Council,http://statistics.data.gov.uk/id/local-authority/00ML,Adult Social Care,BVASOC,ASC Physical Support,PHY,Supplies and Services,E,Equip't Furniture n Materials,EA,26/10/2018,PAY01110182,RCOP,Resource Centres Older People,418.82,Revenue,Blueleaf Ltd
Brighton & Hove City Council,http://statistics.data.gov.uk/id/local-authority/00ML,Children`s & Education Serv,BVAEDU,Child Srvcs - Residential Svcs,FLR,Premises Related,C,Cleaning n Domestic Supps,CH,26/10/2018,PAY01110182,DISS,Childrens Disability Services,260.28,Revenue,Blueleaf Ltd
Brighton & Hove City Council,http://statistics.data.gov.uk/id/local-authority/00ML,Housing General Fund,BVAHOG,Homelessness,HML,Premises Related,C,Rents Payable,CC,12/10/2018,PAY01106505,TAAS,Temp Accom and Allocations,750,Revenue,BN Property Services Limited
Brighton & Hove City Council,http://statistics.data.gov.uk/id/local-authority/00ML,Housing General Fund,BVAHOG,Homelessness,HML,Premises Related,C,Rents Payable,CC,17/10/2018,PAY01107460,TAAS,Temp Accom and Allocations,950,Revenue,BN Property Services Limited
Brighton & Hove City Council,http://statistics.data.gov.uk/id/local-authority/00ML,Housing General Fund,BVAHOG,Homelessness,HML,Premises Related,C,Rents Payable,CC,19/10/2018,PAY01108669,TAAS,Temp Accom and Allocations,950,Revenue,BN Property Services Limited
Brighton & Hove City Council,http://statistics.data.gov.uk/id/local-authority/00ML,Housing General Fund,BVAHOG,Homelessness,HML,Premises Related,C,Rents Payable,CC,26/10/2018,PAY01110648,TAAS,Temp Accom and Allocations,1400,Revenue,BN Property Services Limited
Brighton & Hove City Council,http://statistics.data.gov.uk/id/local-authority/00ML,Cultural and Related Serv,BVACUL,Culture and Heritage,CHG,Supplies and Services,E,Miscellaneous Expenses,EM,19/10/2018,PAY01108574,VENU,Venues,4600,Revenue,BNC Event Shows Ltd
Brighton & Hove City Council,http://statistics.data.gov.uk/id/local-authority/00ML,Public Health,BVAPHE,Public Health,PHE,Third Party Payments,F,Other Establishments,FH,26/10/2018,PAY01110399,PHCM,PH Commissioning,12899.37,Revenue,Boots UK Ltd
Brighton & Hove City Council,http://statistics.data.gov.uk/id/local-authority/00ML,Cultural and Related Serv,BVACUL,Tourism,TRM,Supplies and Services,E,Miscellaneous Expenses,EM,10/10/2018,PAY01104815,TOMA,Tourism and Marketing,1250,Revenue,Bozboz Ltd
Brighton & Hove City Council,http://statistics.data.gov.uk/id/local-authority/00ML,Adult Social Care,BVASOC,ASC Learning Disabilities,ALD,Third Party Payments,F,Other Establishments,FH,19/10/2018,PAY01108273,LDIS,Adults LD Community Care,6900,Revenue,Bradfield House
Brighton & Hove City Council,http://statistics.data.gov.uk/id/local-authority/00ML,Children`s & Education Serv,BVAEDU,Ed EY Central,EAE,Supplies and Services,E,Equip't Furniture n Materials,EA,31/10/2018,PAY01111097,EYRS,Early Years,346.91,Revenue,Brady Corporation Ltd t/a Safetyshop
Brighton & Hove City Council,http://statistics.data.gov.uk/id/local-authority/00ML,Adult Social Care,BVASOC,ASC Learning Disabilities,ALD,Supplies and Services,E,Catering,EB,26/10/2018,PAY01109960,RESP,Adults Respite Services,483.06,Revenue,Brake Bros Ltd t/a Brakes Catering Equip
Brighton & Hove City Council,http://statistics.data.gov.uk/id/local-authority/00ML,Non I&E,BVANON,CAP Education Services,4ED,New Construction n Conversion,PB,New Construction n Conversion,PBL5,03/10/2018,PAY01102913,EYRS,Early Years,18338.27,Capital,Bramber Construction Co Ltd
Brighton & Hove City Council,http://statistics.data.gov.uk/id/local-authority/00ML,Non I&E,BVANON,CAP Education Services,4ED,New Construction n Conversion,PB,New Construction n Conversion,PBL5,10/10/2018,PAY01104689,EYRS,Early Years,33062.39,Capital,Bramber Construction Co Ltd
Brighton & Hove City Council,http://statistics.data.gov.uk/id/local-authority/00ML,Non I&E,BVANON,CAP Education Services,4ED,New Construction n Conversion,PB,New Construction n Conversion,PBL5,10/10/2018,PAY01104689,OEDS,Other Education Support,1530.7,Capital,Bramber Construction Co Ltd
Brighton & Hove City Council,http://statistics.data.gov.uk/id/local-authority/00ML,Non I&E,BVANON,CAP Education Services,4ED,New Construction n Conversion,PB,New Construction n Conversion,PBL5,12/10/2018,PAY01105666,OEDS,Other Education Support,771,Capital,Bramber Construction Co Ltd
Brighton & Hove City Council,http://statistics.data.gov.uk/id/local-authority/00ML,Public Health,BVAPHE,Community Safety,CMY,Premises Related,C,Rents Payable,CC,05/10/2018,PAY01104438,CMNY,Communities and Equalities,1380,Revenue,Brand Vaughan Ltd
Brighton & Hove City Council,http://statistics.data.gov.uk/id/local-authority/00ML,Public Health,BVAPHE,Community Safety,CMY,Premises Related,C,Rents Payable,CC,10/10/2018,PAY01105168,CMNY,Communities and Equalities,265,Revenue,Brand Vaughan Ltd
Brighton & Hove City Council,http://statistics.data.gov.uk/id/local-authority/00ML,Adult Social Care,BVASOC,ASC Memory Cognition Support,MEM,Customer n Client Receipts,M,Fees n Charges,MB,19/10/2018,PAY01108187,COGN,Memory Cognition Support,-3374.92,Revenue,Bravery Care
Brighton & Hove City Council,http://statistics.data.gov.uk/id/local-authority/00ML,Adult Social Care,BVASOC,ASC Memory Cognition Support,MEM,Third Party Payments,F,Other Establishments,FH,19/10/2018,PAY01108187,COGN,Memory Cognition Support,14025,Revenue,Bravery Care
Brighton & Hove City Council,http://statistics.data.gov.uk/id/local-authority/00ML,Adult Social Care,BVASOC,ASC Physical Support,PHY,Customer n Client Receipts,M,Fees n Charges,MB,19/10/2018,PAY01108187,PHYS,Physical Support,-552.4,Revenue,Bravery Care
Brighton & Hove City Council,http://statistics.data.gov.uk/id/local-authority/00ML,Adult Social Care,BVASOC,ASC Physical Support,PHY,Third Party Payments,F,Other Establishments,FH,19/10/2018,PAY01108187,PHYS,Physical Support,3900,Revenue,Bravery Care
Brighton & Hove City Council,http://statistics.data.gov.uk/id/local-authority/00ML,Adult Social Care,BVASOC,S Svcs Other Adult Services,ADT,Indirect Employees,B,Training,BM,24/10/2018,PAY01109250,ORGD,Organisational Development,357,Revenue,Breaking Down Barriers CIC
Brighton & Hove City Council,http://statistics.data.gov.uk/id/local-authority/00ML,Central Support and Overheads,BVACEN,Support Services (SSC),PPT,Indirect Employees,B,Training,BM,24/10/2018,PAY01109250,ORGD,Organisational Development,193,Revenue,Breaking Down Barriers CIC
Brighton & Hove City Council,http://statistics.data.gov.uk/id/local-authority/00ML,Cultural and Related Serv,BVACUL,Culture and Heritage,CHG,Supplies and Services,E,Miscellaneous Expenses,EM,05/10/2018,PAY01104228,RPMU,Royal Pavilion and Museums,700,Revenue,Brian Turner Trimmings Ltd
Brighton & Hove City Council,http://statistics.data.gov.uk/id/local-authority/00ML,Cultural and Related Serv,BVACUL,Recreation and Sport,REC,Premises Related,C,Repair Maint n Alterations,CA,24/10/2018,PAY01109455,SPLE,Sport and Leisure,20156.47,Revenue,Bricks 2 Mortar Ltd
Brighton & Hove City Council,http://statistics.data.gov.uk/id/local-authority/00ML,Cultural and Related Serv,BVACUL,Culture and Heritage,CHG,Supplies and Services,E,Communications n Computing,EH,31/10/2018,PAY01111241,RPMU,Royal Pavilion and Museums,630,Revenue,Bright Interactive Ltd
Brighton & Hove City Council,http://statistics.data.gov.uk/id/local-authority/00ML,Children`s & Education Serv,BVAEDU,Child Srvcs - Fostering,FLF,Third Party Payments,F,Other Establishments,FH,10/10/2018,PAY01104755,AVFM,Agency Placements\VFM,5848,Revenue,Brighter Futures Foster Care Ltd
Brighton & Hove City Council,http://statistics.data.gov.uk/id/local-authority/00ML,Planning and Development,BVAPLA,Planning Policy,PLP,Premises Related,C,Rents Payable,CC,12/10/2018,PAY01105559,PPMP,Planning Policy Major Projects,351.5,Revenue,Brighthelm Trading Ltd
Brighton & Hove City Council,http://statistics.data.gov.uk/id/local-authority/00ML,Adult Social Care,BVASOC,ASC Physical Support,PHY,Customer n Client Receipts,M,Fees n Charges,MB,19/10/2018,PAY01107862,PHYS,Physical Support,-2886.16,Revenue,Brighton & Hove Bethesda Home
Brighton & Hove City Council,http://statistics.data.gov.uk/id/local-authority/00ML,Adult Social Care,BVASOC,ASC Physical Support,PHY,Third Party Payments,F,Other Establishments,FH,19/10/2018,PAY01107862,PHYS,Physical Support,7591.88,Revenue,Brighton & Hove Bethesda Home
Brighton & Hove City Council,http://statistics.data.gov.uk/id/local-authority/00ML,Adult Social Care,BVASOC,Social Care Activities,ACM,Transport Related,D,Public Transport,DD,03/10/2018,PAY01102920,ASIT,Assessment and SIT,573,Revenue,Brighton & Hove Bus and Coach Co Ltd
Brighton & Hove City Council,http://statistics.data.gov.uk/id/local-authority/00ML,Children`s & Education Serv,BVAEDU,Child Srvcs - Other Fam Supp,FFX,Transfer Payments,G,Other Transfer Payments,GD,03/10/2018,PAY01102920,FAMP,Families\Prevention,188.8,Revenue,Brighton & Hove Bus and Coach Co Ltd
Brighton & Hove City Council,http://statistics.data.gov.uk/id/local-authority/00ML,Children`s & Education Serv,BVAEDU,Child Srvcs - Yth Offender Tm,FYY,Transport Related,D,Public Transport,DD,03/10/2018,PAY01102920,ASER,Adolescent Service,939.6,Revenue,Brighton & Hove Bus and Coach Co Ltd
Brighton & Hove City Council,http://statistics.data.gov.uk/id/local-authority/00ML,Children`s & Education Serv,BVAEDU,Ed EY Central,EAE,Transport Related,D,Public Transport,DD,03/10/2018,PAY01102920,EYRS,Early Years,212.4,Revenue,Brighton & Hove Bus and Coach Co Ltd
Brighton & Hove City Council,http://statistics.data.gov.uk/id/local-authority/00ML,Environment & Regulatory Serv,BVAERS,Environmental Health,EVH,Transport Related,D,Other Transport Costs,DG,03/10/2018,PAY01102920,HIGH,Traffic Management,196,Revenue,Brighton & Hove Bus and Coach Co Ltd
Brighton & Hove City Council,http://statistics.data.gov.uk/id/local-authority/00ML,Environment & Regulatory Serv,BVAERS,Environmental Health,EVH,Transport Related,D,Other Transport Costs,DG,03/10/2018,PAY01102920,SCOM,Safer Communties,609,Revenue,Brighton & Hove Bus and Coach Co Ltd
Brighton & Hove City Council,http://statistics.data.gov.uk/id/local-authority/00ML,Environment & Regulatory Serv,BVAERS,Environmental Health,EVH,Transport Related,D,Public Transport,DD,03/10/2018,PAY01102920,SCOM,Safer Communties,-544.57,Revenue,Brighton & Hove Bus and Coach Co Ltd
Brighton & Hove City Council,http://statistics.data.gov.uk/id/local-authority/00ML,Adult Social Care,BVASOC,Social Care Activities,ACM,Transport Related,D,Public Transport,DD,05/10/2018,PAY01103866,ASIT,Assessment and SIT,191,Revenue,Brighton & Hove Bus and Coach Co Ltd
Brighton & Hove City Council,http://statistics.data.gov.uk/id/local-authority/00ML,Environment & Regulatory Serv,BVAERS,Environmental Health,EVH,Transport Related,D,Public Transport,DD,05/10/2018,PAY01103866,SCOM,Safer Communties,283.2,Revenue,Brighton & Hove Bus and Coach Co Ltd
Brighton & Hove City Council,http://statistics.data.gov.uk/id/local-authority/00ML,Library Services,BVACUL,Library Service,LBR,Transport Related,D,Public Transport,DD,05/10/2018,PAY01103866,LIBS,Libraries,3304,Revenue,Brighton & Hove Bus and Coach Co Ltd
Brighton & Hove City Council,http://statistics.data.gov.uk/id/local-authority/00ML,Children`s & Education Serv,BVAEDU,Ed Ed Other LA Attrib Sch,ELA,Transport Related,D,Public Transport,DD,10/10/2018,PAY01104699,SCOR,School Organisation,106444,Revenue,Brighton & Hove Bus and Coach Co Ltd
Brighton & Hove City Council,http://statistics.data.gov.uk/id/local-authority/00ML,Environment & Regulatory Serv,BVAERS,Environmental Health,EVH,Transport Related,D,Contract Hire n Operating Leas,DB,10/10/2018,PAY01104699,SCOM,Safer Communties,1142.84,Revenue,Brighton & Hove Bus and Coach Co Ltd
Brighton & Hove City Council,http://statistics.data.gov.uk/id/local-authority/00ML,Children`s & Education Serv,BVAEDU,Child Srvcs Leaving Care,FAL,Transfer Payments,G,Other Transfer Payments,GD,12/10/2018,PAY01105677,CARL,Care Leavers,3307.25,Revenue,Brighton & Hove Bus and Coach Co Ltd
Brighton & Hove City Council,http://statistics.data.gov.uk/id/local-authority/00ML,Children`s & Education Serv,BVAEDU,Child Srvcs - Othr LAC Svcs,FLX,Transfer Payments,G,Other Transfer Payments,GD,12/10/2018,PAY01105677,AVFM,Agency Placements\VFM,1628.95,Revenue,Brighton & Hove Bus and Coach Co Ltd
Brighton & Hove City Council,http://statistics.data.gov.uk/id/local-authority/00ML,Planning and Development,BVAPLA,Planning Policy,PLP,Transport Related,D,Public Transport,DD,12/10/2018,PAY01105677,DEVP,Development Planning,236,Revenue,Brighton & Hove Bus and Coach Co Ltd
Brighton & Hove City Council,http://statistics.data.gov.uk/id/local-authority/00ML,Adult Social Care,BVASOC,Social Care Activities,ACM,Transport Related,D,Public Transport,DD,17/10/2018,PAY01107160,ASIT,Assessment and SIT,191,Revenue,Brighton & Hove Bus and Coach Co Ltd
Brighton & Hove City Council,http://statistics.data.gov.uk/id/local-authority/00ML,Housing Revenue Account,BVAHOU,Hsing Management - HRA,HGM,Transport Related,D,Public Transport,DD,17/10/2018,PAY01107160,HIII,Income Involvement Improvement,188.8,Revenue,Brighton & Hove Bus and Coach Co Ltd
Brighton & Hove City Council,http://statistics.data.gov.uk/id/local-authority/00ML,Adult Social Care,BVASOC,Social Care Activities,ACM,Transport Related,D,Public Transport,DD,19/10/2018,PAY01108210,ASIT,Assessment and SIT,191,Revenue,Brighton & Hove Bus and Coach Co Ltd
Brighton & Hove City Council,http://statistics.data.gov.uk/id/local-authority/00ML,Children`s & Education Serv,BVAEDU,Child Srvcs - Other Fam Supp,FFX,Transfer Payments,G,Other Transfer Payments,GD,19/10/2018,PAY01108210,DISS,Childrens Disability Services,236,Revenue,Brighton & Hove Bus and Coach Co Ltd
Brighton & Hove City Council,http://statistics.data.gov.uk/id/local-authority/00ML,Adult Social Care,BVASOC,Social Care Activities,ACM,Transport Related,D,Public Transport,DD,24/10/2018,PAY01109203,ASIT,Assessment and SIT,382,Revenue,Brighton & Hove Bus and Coach Co Ltd
Brighton & Hove City Council,http://statistics.data.gov.uk/id/local-authority/00ML,Central Support and Overheads,BVACEN,ORBIS Partnership,ORB,Transport Related,D,Public Transport,DD,24/10/2018,PAY01109203,ORBPRP,Property - ORBIS,100,Revenue,Brighton & Hove Bus and Coach Co Ltd
Brighton & Hove City Council,http://statistics.data.gov.uk/id/local-authority/00ML,Children`s & Education Serv,BVAEDU,Child Srvcs Other,FAX,Transport Related,D,Public Transport,DD,24/10/2018,PAY01109203,YOTS,Youth Service,472,Revenue,Brighton & Hove Bus and Coach Co Ltd
Brighton & Hove City Council,http://statistics.data.gov.uk/id/local-authority/00ML,Environment & Regulatory Serv,BVAERS,Environmental Health,EVH,Transport Related,D,Public Transport,DD,24/10/2018,PAY01109203,SCOM,Safer Communties,0,Revenue,Brighton & Hove Bus and Coach Co Ltd
Brighton & Hove City Council,http://statistics.data.gov.uk/id/local-authority/00ML,Planning and Development,BVAPLA,Planning Policy,PLP,Transport Related,D,Public Transport,DD,24/10/2018,PAY01109203,PPMP,Planning Policy Major Projects,236,Revenue,Brighton & Hove Bus and Coach Co Ltd
Brighton & Hove City Council,http://statistics.data.gov.uk/id/local-authority/00ML,Children`s & Education Serv,BVAEDU,Ed Ed Other LA Attrib Sch,ELA,Transport Related,D,Public Transport,DD,31/10/2018,PAY01111155,SCOR,School Organisation,24539.79,Revenue,Brighton & Hove Bus and Coach Co Ltd
Brighton & Hove City Council,http://statistics.data.gov.uk/id/local-authority/00ML,Environment & Regulatory Serv,BVAERS,Environmental Health,EVH,Transport Related,D,Other Transport Costs,DG,31/10/2018,PAY01111155,HIGH,Traffic Management,215,Revenue,Brighton & Hove Bus and Coach Co Ltd
Brighton & Hove City Council,http://statistics.data.gov.uk/id/local-authority/00ML,Highways and Transportation,BVAHRT,Public Transport,PTR,Transport Related,D,Public Transport,DD,31/10/2018,PAY01111155,CONF,Concessionary Fares,809375.36,Revenue,Brighton & Hove Bus and Coach Co Ltd
Brighton & Hove City Council,http://statistics.data.gov.uk/id/local-authority/00ML,Planning and Development,BVAPLA,Community Development,CDV,Supplies and Services,E,Grants n Subscriptions,EK,05/10/2018,PAY01103729,CMNY,Communities and Equalities,235000,Revenue,Brighton & Hove Citizens Advice Bureau
Brighton & Hove City Council,http://statistics.data.gov.uk/id/local-authority/00ML,Public Health,BVAPHE,Public Health,PHE,Third Party Payments,F,Other Establishments,FH,17/10/2018,PAY01107107,PHCM,PH Commissioning,5426,Revenue,Brighton & Hove Citizens Advice Bureau
Brighton & Hove City Council,http://statistics.data.gov.uk/id/local-authority/00ML,Children`s & Education Serv,BVAEDU,Ed Secondary Ed,EJE,Supplies and Services,E,Services,EF,05/10/2018,PAY01103685,OEDS,Other Education Support,1212.96,Revenue,Brighton & Hove City Schools Services Ltd
Brighton & Hove City Council,http://statistics.data.gov.uk/id/local-authority/00ML,Children`s & Education Serv,BVAEDU,Ed Secondary Ed,EJE,Supplies and Services,E,Services,EF,12/10/2018,PAY01105478,OEDS,Other Education Support,270226.89,Revenue,Brighton & Hove City Schools Services Ltd
Brighton & Hove City Council,http://statistics.data.gov.uk/id/local-authority/00ML,Planning and Development,BVAPLA,Community Development,CDV,Supplies and Services,E,Grants n Subscriptions,EK,05/10/2018,PAY01103649,CMNY,Communities and Equalities,442928,Revenue,Brighton & Hove Community Works
Brighton & Hove City Council,http://statistics.data.gov.uk/id/local-authority/00ML,Environment & Regulatory Serv,BVAERS,Waste Management,WMT,Third Party Payments,F,Private Contractors,FJ,03/10/2018,PAY01102979,CICL,City Clean,3421.68,Revenue,Brighton & Hove Food Partnership
Brighton & Hove City Council,http://statistics.data.gov.uk/id/local-authority/00ML,Planning and Development,BVAPLA,Community Development,CDV,Supplies and Services,E,Grants n Subscriptions,EK,05/10/2018,PAY01103913,CMNY,Communities and Equalities,27435,Revenue,Brighton & Hove Food Partnership
Brighton & Hove City Council,http://statistics.data.gov.uk/id/local-authority/00ML,Central Support and Overheads,BVACEN,Support Services (SSC),PPT,Supplies and Services,E,Grants n Subscriptions,EK,03/10/2018,PAY01102737,CMNY,Communities and Equalities,17386,Revenue,Brighton & Hove Impetus Ltd
Brighton & Hove City Council,http://statistics.data.gov.uk/id/local-authority/00ML,Planning and Development,BVAPLA,Community Development,CDV,Supplies and Services,E,Grants n Subscriptions,EK,05/10/2018,PAY01103651,CMNY,Communities and Equalities,26292,Revenue,Brighton & Hove Impetus Ltd
Brighton & Hove City Council,http://statistics.data.gov.uk/id/local-authority/00ML,Planning and Development,BVAPLA,Community Development,CDV,Supplies and Services,E,Grants n Subscriptions,EK,19/10/2018,PAY01107914,CMNY,Communities and Equalities,8867,Revenue,Brighton & Hove Impetus Ltd
Brighton & Hove City Council,http://statistics.data.gov.uk/id/local-authority/00ML,Central Support and Overheads,BVACEN,Support Services (SSC),PPT,Supplies and Services,E,Grants n Subscriptions,EK,26/10/2018,PAY01109973,CMNY,Communities and Equalities,17386,Revenue,Brighton & Hove Impetus Ltd
Brighton & Hove City Council,http://statistics.data.gov.uk/id/local-authority/00ML,Highways and Transportation,BVAHRT,Parking Services,PRK,Indirect Employees,B,Misc Employee Costs,BP,31/10/2018,PAY01110956,PARK,Parking Services,500,Revenue,Brighton & Hove Independent Mediation Service
Brighton & Hove City Council,http://statistics.data.gov.uk/id/local-authority/00ML,Public Health,BVAPHE,Public Health,PHE,Third Party Payments,F,Other Establishments,FH,24/10/2018,PAY01109072,PHCM,PH Commissioning,4924.75,Revenue,Brighton & Hove LGBT Switchboard
Brighton & Hove City Council,http://statistics.data.gov.uk/id/local-authority/00ML,Children`s & Education Serv,BVAEDU,Ed EY Central,EAE,Supplies and Services,E,Grants n Subscriptions,EK,17/10/2018,PAY01106985,EYRS,Early Years,550,Revenue,Brighton & Hove Montessori School
Brighton & Hove City Council,http://statistics.data.gov.uk/id/local-authority/00ML,Housing General Fund,BVAHOG,Homelessness,HML,Premises Related,C,Rents Payable,CC,31/10/2018,PAY01111473,TAAS,Temp Accom and Allocations,1000,Revenue,Brighton & Hove Properties Ltd
Brighton & Hove City Council,http://statistics.data.gov.uk/id/local-authority/00ML,Children`s & Education Serv,BVAEDU,Ed Ed Other LA Attrib Sch,ELA,Transport Related,D,Other Transport Costs,DG,03/10/2018,PAY01102919,SCOR,School Organisation,340,Revenue,Brighton & Hove Radio Cabs Ltd
Brighton & Hove City Council,http://statistics.data.gov.uk/id/local-authority/00ML,Children`s & Education Serv,BVAEDU,Ed Ed Other LA Attrib Sch,ELA,Transport Related,D,Public Transport,DD,03/10/2018,PAY01102919,SCOR,School Organisation,2313.4,Revenue,Brighton & Hove Radio Cabs Ltd
Brighton & Hove City Council,http://statistics.data.gov.uk/id/local-authority/00ML,Children`s & Education Serv,BVAEDU,Support Services (SSC),PPT,Transport Related,D,Public Transport,DD,03/10/2018,PAY01102919,SCOR,School Organisation,2186.6,Revenue,Brighton & Hove Radio Cabs Ltd
Brighton & Hove City Council,http://statistics.data.gov.uk/id/local-authority/00ML,Cultural and Related Serv,BVACUL,Culture and Heritage,CHG,Transport Related,D,Public Transport,DD,03/10/2018,PAY01102919,VENU,Venues,242.6,Revenue,Brighton & Hove Radio Cabs Ltd
Brighton & Hove City Council,http://statistics.data.gov.uk/id/local-authority/00ML,Highways and Transportation,BVAHRT,Parking Services,PRK,Indirect Employees,B,Misc Employee Costs,BP,03/10/2018,PAY01102919,PARK,Parking Services,23.1,Revenue,Brighton & Hove Radio Cabs Ltd
Brighton & Hove City Council,http://statistics.data.gov.uk/id/local-authority/00ML,Children`s & Education Serv,BVAEDU,Support Services (SSC),PPT,Transport Related,D,Public Transport,DD,10/10/2018,PAY01104697,SCOR,School Organisation,2684,Revenue,Brighton & Hove Radio Cabs Ltd
Brighton & Hove City Council,http://statistics.data.gov.uk/id/local-authority/00ML,Highways and Transportation,BVAHRT,Parking Services,PRK,Transport Related,D,Public Transport,DD,12/10/2018,PAY01105675,PARK,Parking Services,342,Revenue,Brighton & Hove Radio Cabs Ltd
Brighton & Hove City Council,http://statistics.data.gov.uk/id/local-authority/00ML,Children`s & Education Serv,BVAEDU,Ed Ed Other LA Attrib Sch,ELA,Transport Related,D,Public Transport,DD,17/10/2018,PAY01107159,SCOR,School Organisation,2950.4,Revenue,Brighton & Hove Radio Cabs Ltd
Brighton & Hove City Council,http://statistics.data.gov.uk/id/local-authority/00ML,Children`s & Education Serv,BVAEDU,Support Services (SSC),PPT,Transport Related,D,Public Transport,DD,17/10/2018,PAY01107159,SCOR,School Organisation,3268.6,Revenue,Brighton & Hove Radio Cabs Ltd
Brighton & Hove City Council,http://statistics.data.gov.uk/id/local-authority/00ML,Children`s & Education Serv,BVAEDU,Ed Ed Other LA Attrib Sch,ELA,Transport Related,D,Other Transport Costs,DG,31/10/2018,PAY01111154,SCOR,School Organisation,17134,Revenue,Brighton & Hove Radio Cabs Ltd
Brighton & Hove City Council,http://statistics.data.gov.uk/id/local-authority/00ML,Children`s & Education Serv,BVAEDU,Ed Ed Other LA Attrib Sch,ELA,Transport Related,D,Public Transport,DD,31/10/2018,PAY01111154,SCOR,School Organisation,2761,Revenue,Brighton & Hove Radio Cabs Ltd
Brighton & Hove City Council,http://statistics.data.gov.uk/id/local-authority/00ML,Children`s & Education Serv,BVAEDU,Support Services (SSC),PPT,Transport Related,D,Public Transport,DD,31/10/2018,PAY01111154,SCOR,School Organisation,3089.4,Revenue,Brighton & Hove Radio Cabs Ltd
Brighton & Hove City Council,http://statistics.data.gov.uk/id/local-authority/00ML,Cultural and Related Serv,BVACUL,Culture and Heritage,CHG,Transport Related,D,Public Transport,DD,31/10/2018,PAY01111154,VENU,Venues,595.8,Revenue,Brighton & Hove Radio Cabs Ltd
Brighton & Hove City Council,http://statistics.data.gov.uk/id/local-authority/00ML,Highways and Transportation,BVAHRT,Parking Services,PRK,Transport Related,D,Public Transport,DD,31/10/2018,PAY01111154,PARK,Parking Services,308,Revenue,Brighton & Hove Radio Cabs Ltd
Brighton & Hove City Council,http://statistics.data.gov.uk/id/local-authority/00ML,Non-BHC Organisations,BVANON,Trusts,TRT,Supplies and Services,E,Miscellaneous Expenses,EM,31/10/2018,PAY01111154,NBHC,Non Council,96,Revenue,Brighton & Hove Radio Cabs Ltd
Brighton & Hove City Council,http://statistics.data.gov.uk/id/local-authority/00ML,Housing Revenue Account,BVAHOU,Hsing Management - HRA,HGM,Supplies and Services,E,Grants n Subscriptions,EK,12/10/2018,PAY01105554,HIII,Income Involvement Improvement,417.83,Revenue,Brighton & Hove Social Welfare Educational Trust
Brighton & Hove City Council,http://statistics.data.gov.uk/id/local-authority/00ML,Planning and Development,BVAPLA,Community Development,CDV,Supplies and Services,E,Grants n Subscriptions,EK,05/10/2018,PAY01103657,CMNY,Communities and Equalities,28382,Revenue,Brighton & Hove Speak Out
Brighton & Hove City Council,http://statistics.data.gov.uk/id/local-authority/00ML,Highways and Transportation,BVAHRT,Public Transport,PTR,Transport Related,D,Public Transport,DD,03/10/2018,PAY01102840,PARK,Parking Services,1087,Revenue,Brighton & Hove Streamline Taxis Ltd
Brighton & Hove City Council,http://statistics.data.gov.uk/id/local-authority/00ML,Highways and Transportation,BVAHRT,Parking Services,PRK,Transport Related,D,Public Transport,DD,10/10/2018,PAY01104650,PARK,Parking Services,637.8,Revenue,Brighton & Hove Streamline Taxis Ltd
Brighton & Hove City Council,http://statistics.data.gov.uk/id/local-authority/00ML,Central Support and Overheads,BVACEN,Support Services (SSC),PPT,Transport Related,D,Public Transport,DD,26/10/2018,PAY01110069,POLI,Policy and Initiatives,67.4,Revenue,Brighton & Hove Streamline Taxis Ltd
Brighton & Hove City Council,http://statistics.data.gov.uk/id/local-authority/00ML,Housing Revenue Account,BVAHOU,Hsing Management - HRA,HGM,Transport Related,D,Public Transport,DD,26/10/2018,PAY01110069,HIII,Income Involvement Improvement,981.26,Revenue,Brighton & Hove Streamline Taxis Ltd
Brighton & Hove City Council,http://statistics.data.gov.uk/id/local-authority/00ML,Highways and Transportation,BVAHRT,Public Transport,PTR,Transport Related,D,Public Transport,DD,31/10/2018,PAY01111067,PARK,Parking Services,1103,Revenue,Brighton & Hove Streamline Taxis Ltd
Brighton & Hove City Council,http://statistics.data.gov.uk/id/local-authority/00ML,Housing General Fund,BVAHOG,Management Services (DEC),MGT,Transport Related,D,Public Transport,DD,31/10/2018,PAY01111067,HOHG,Head of Housing GF,36.3,Revenue,Brighton & Hove Streamline Taxis Ltd
Brighton & Hove City Council,http://statistics.data.gov.uk/id/local-authority/00ML,Children`s & Education Serv,BVAEDU,Child Srvcs - Other Fam Supp,FFX,Transfer Payments,G,Other Transfer Payments,GD,03/10/2018,PAY01102841,FAMP,Families\Prevention,98,Revenue,Brighton & Sussex University Hospitals NHS Trust
Brighton & Hove City Council,http://statistics.data.gov.uk/id/local-authority/00ML,Public Health,BVAPHE,Public Health,PHE,Third Party Payments,F,Health Authorities,FC,03/10/2018,PAY01102841,PHCM,PH Commissioning,14511,Revenue,Brighton & Sussex University Hospitals NHS Trust
Brighton & Hove City Council,http://statistics.data.gov.uk/id/local-authority/00ML,Children`s & Education Serv,BVAEDU,Ed EY PVI,ENP,Supplies and Services,E,Grants n Subscriptions,EK,26/10/2018,PAY01110070,EYRS,Early Years,2565,Revenue,Brighton & Sussex University Hospitals NHS Trust
Brighton & Hove City Council,http://statistics.data.gov.uk/id/local-authority/00ML,Non I&E,BVANON,CAP Housing Services GF,4HG,Capital Grants,PF,Capital Grants,PFL5,12/10/2018,PAY01105744,PSHG,Private Sector Housing,6000,Capital,Brighton Able Ltd
Brighton & Hove City Council,http://statistics.data.gov.uk/id/local-authority/00ML,Housing General Fund,BVAHOG,Homelessness,HML,Customer n Client Receipts,M,Fees n Charges,MB,03/10/2018,PAY01103131,SSHS,Seaside Homes (BHSCH),354634,Revenue,Brighton and Hove Seaside Community Homes Ltd
Brighton & Hove City Council,http://statistics.data.gov.uk/id/local-authority/00ML,Adult Social Care,BVASOC,ASC Learning Disabilities,ALD,Customer n Client Receipts,M,Fees n Charges,MB,10/10/2018,PAY01104817,LDIS,Adults LD Community Care,-204,Revenue,Brighton and Sussex Care Ltd
Brighton & Hove City Council,http://statistics.data.gov.uk/id/local-authority/00ML,Adult Social Care,BVASOC,ASC Learning Disabilities,ALD,Third Party Payments,F,Other Establishments,FH,10/10/2018,PAY01104817,LDIS,Adults LD Community Care,13456.88,Revenue,Brighton and Sussex Care Ltd
Brighton & Hove City Council,http://statistics.data.gov.uk/id/local-authority/00ML,Adult Social Care,BVASOC,ASC Mental Health Support,MHP,Third Party Payments,F,Other Establishments,FH,17/10/2018,PAY01107279,MENH,Mental Health Support,4125.92,Revenue,Brighton and Sussex Care Ltd
Brighton & Hove City Council,http://statistics.data.gov.uk/id/local-authority/00ML,Adult Social Care,BVASOC,ASC Physical Support,PHY,Customer n Client Receipts,M,Fees n Charges,MB,24/10/2018,PAY01109326,PHYS,Physical Support,-176,Revenue,Brighton and Sussex Care Ltd
Brighton & Hove City Council,http://statistics.data.gov.uk/id/local-authority/00ML,Adult Social Care,BVASOC,ASC Physical Support,PHY,Third Party Payments,F,Other Establishments,FH,24/10/2018,PAY01109326,PHYS,Physical Support,6678,Revenue,Brighton and Sussex Care Ltd
Brighton & Hove City Council,http://statistics.data.gov.uk/id/local-authority/00ML,Non-BHC Organisations,BVANON,Trusts,TRT,Supplies and Services,E,Grants n Subscriptions,EK,25/10/2018,PAY518639,NBHC,Non Council,499,Revenue,Brighton Bed Centre Ltd
Brighton & Hove City Council,http://statistics.data.gov.uk/id/local-authority/00ML,Non-BHC Organisations,BVANON,Trusts,TRT,Supplies and Services,E,Grants n Subscriptions,EK,25/10/2018,PAY518640,NBHC,Non Council,379,Revenue,Brighton Bed Centre Ltd
Brighton & Hove City Council,http://statistics.data.gov.uk/id/local-authority/00ML,Non I&E,BVANON,Non-Council,NNC,Third Party Payments,F,Other Establishments,FH,10/10/2018,PAY01104640,DEVP,Development Planning,22673.62,Revenue,Brighton BID Limited
Brighton & Hove City Council,http://statistics.data.gov.uk/id/local-authority/00ML,Non I&E,BVANON,CAP Libs Culture and Hertage,4LH,New Construction n Conversion,PB,New Construction n Conversion,PBL5,03/10/2018,PAY01102726,RPMU,Royal Pavilion and Museums,31209.63,Capital,Brighton Dome & Festival Ltd
Brighton & Hove City Council,http://statistics.data.gov.uk/id/local-authority/00ML,Central Support and Overheads,BVACEN,Support Services (SSC),PPT,Premises Related,C,Repair Maint n Alterations,CA,12/10/2018,PAY01105422,PROP,Property and Design,29250,Revenue,Brighton Dome & Festival Ltd
Brighton & Hove City Council,http://statistics.data.gov.uk/id/local-authority/00ML,Housing General Fund,BVAHOG,Homelessness,HML,Supplies and Services,E,Equip't Furniture n Materials,EA,17/10/2018,PAY01107059,ASSA,Hostel Accommodation,375,Revenue,Brighton Fire Alarms Ltd
Brighton & Hove City Council,http://statistics.data.gov.uk/id/local-authority/00ML,Public Health,BVAPHE,Public Health,PHE,Third Party Payments,F,Other Establishments,FH,26/10/2018,PAY01109958,PHCM,PH Commissioning,9074.42,Revenue,Brighton Health and Wellbeing Centre
Brighton & Hove City Council,http://statistics.data.gov.uk/id/local-authority/00ML,Adult Social Care,BVASOC,ASC Mental Health Support,MHP,Customer n Client Receipts,M,Fees n Charges,MB,19/10/2018,PAY01108047,MENH,Mental Health Support,-1079.4,Revenue,Brighton Housing Trust
Brighton & Hove City Council,http://statistics.data.gov.uk/id/local-authority/00ML,Adult Social Care,BVASOC,ASC Mental Health Support,MHP,Third Party Payments,F,Other Establishments,FH,19/10/2018,PAY01108047,MENH,Mental Health Support,18959.14,Revenue,Brighton Housing Trust
Brighton & Hove City Council,http://statistics.data.gov.uk/id/local-authority/00ML,Planning and Development,BVAPLA,Community Development,CDV,Supplies and Services,E,Grants n Subscriptions,EK,05/10/2018,PAY01103730,CMNY,Communities and Equalities,42751,Revenue,Brighton Housing Trust 
Brighton & Hove City Council,http://statistics.data.gov.uk/id/local-authority/00ML,Non I&E,BVANON,CAP Transport,4TR,New Construction n Conversion,PB,New Construction n Conversion,PBL5,12/10/2018,PAY01105557,TPRS,Transport Projects and Eng,2600,Capital,Brighton Housing Trust 
Brighton & Hove City Council,http://statistics.data.gov.uk/id/local-authority/00ML,Children`s & Education Serv,BVAEDU,Ed Mgmt and Support Services,EMG,Supplies and Services,E,Miscellaneous Expenses,EM,17/10/2018,PAY01107108,GOVS,Governor Support,260,Revenue,Brighton Housing Trust 
Brighton & Hove City Council,http://statistics.data.gov.uk/id/local-authority/00ML,Housing General Fund,BVAHOG,Hsing Welfare,HGW,Transfer Payments,G,Supporting People,GF,17/10/2018,PAY01107108,CONT,Contracts,73953.04,Revenue,Brighton Housing Trust 
Brighton & Hove City Council,http://statistics.data.gov.uk/id/local-authority/00ML,Public Health,BVAPHE,Public Health,PHE,Third Party Payments,F,Other Establishments,FH,17/10/2018,PAY01107108,PHCM,PH Commissioning,78750,Revenue,Brighton Housing Trust 
Brighton & Hove City Council,http://statistics.data.gov.uk/id/local-authority/00ML,Adult Social Care,BVASOC,Info & Early Intervention,PRV,Third Party Payments,F,Other Establishments,FH,31/10/2018,PAY01111068,CCGC,CCG Commissioned Services,6102,Revenue,Brighton Housing Trust 
Brighton & Hove City Council,http://statistics.data.gov.uk/id/local-authority/00ML,Children`s & Education Serv,BVAEDU,Child Srvcs - Other Fam Supp,FFX,Premises Related,C,Rents Payable,CC,31/10/2018,PAY01111068,ITFF,Integrated Team For Families,16,Revenue,Brighton Housing Trust 
Brighton & Hove City Council,http://statistics.data.gov.uk/id/local-authority/00ML,Public Health,BVAPHE,Public Health,PHE,Third Party Payments,F,Other Establishments,FH,31/10/2018,PAY01111068,PHCM,PH Commissioning,25565,Revenue,Brighton Housing Trust 
Brighton & Hove City Council,http://statistics.data.gov.uk/id/local-authority/00ML,Planning and Development,BVAPLA,Community Development,CDV,Supplies and Services,E,Grants n Subscriptions,EK,05/10/2018,PAY01103674,CMNY,Communities and Equalities,15000,Revenue,Brighton Oasis Project
Brighton & Hove City Council,http://statistics.data.gov.uk/id/local-authority/00ML,Public Health,BVAPHE,Public Health,PHE,Third Party Payments,F,Other Establishments,FH,24/10/2018,PAY01109083,PHCM,PH Commissioning,5646,Revenue,Brighton Oasis Project
Brighton & Hove City Council,http://statistics.data.gov.uk/id/local-authority/00ML,Children`s & Education Serv,BVAEDU,Ed EY Central,EAE,Third Party Payments,F,Other Establishments,FH,26/10/2018,PAY01109996,SOCK,Social Work,6000,Revenue,Brighton Oasis Project
Brighton & Hove City Council,http://statistics.data.gov.uk/id/local-authority/00ML,Children`s & Education Serv,BVAEDU,Ed Ed Other Other,ENF,Premises Related,C,Repair Maint n Alterations,CA,26/10/2018,PAY01110164,SCOR,School Organisation,820,Revenue,Brighton Paper Round Ltd
Brighton & Hove City Council,http://statistics.data.gov.uk/id/local-authority/00ML,Children`s & Education Serv,BVAEDU,Child Srvcs - Fostering,FLF,Third Party Payments,F,Other Establishments,FH,17/10/2018,PAY01107419,CHIC,Fostering and Adoption,300,Revenue,Brighton Parent Infant Psychological Therapy
Brighton & Hove City Council,http://statistics.data.gov.uk/id/local-authority/00ML,Non I&E,BVANON,CAP Sport and Recreation,4RC,New Construction n Conversion,PB,New Construction n Conversion,PBL5,24/10/2018,PAY01109205,CIPK,City Parks,3000,Capital,Brighton Permaculture Trust
Brighton & Hove City Council,http://statistics.data.gov.uk/id/local-authority/00ML,Housing Revenue Account,BVAHOU,Hsing Management - HRA,HGM,Premises Related,C,Rents Payable,CC,17/10/2018,PAY01106998,HPAI,Property & Investment,60,Revenue,Brighton Quaker Meeting
Brighton & Hove City Council,http://statistics.data.gov.uk/id/local-authority/00ML,Housing Revenue Account,BVAHOU,Hsing Management - HRA,HGM,Supplies and Services,E,Services,EF,17/10/2018,PAY01106998,HPAI,Property & Investment,667,Revenue,Brighton Quaker Meeting
Brighton & Hove City Council,http://statistics.data.gov.uk/id/local-authority/00ML,Adult Social Care,BVASOC,S Svcs Other Adult Services,ADT,Premises Related,C,Rents Payable,CC,19/10/2018,PAY01107912,ORGD,Organisational Development,70,Revenue,Brighton Quaker Meeting
Brighton & Hove City Council,http://statistics.data.gov.uk/id/local-authority/00ML,Central Support and Overheads,BVACEN,Support Services (SSC),PPT,Premises Related,C,Rents Payable,CC,19/10/2018,PAY01107912,ORGD,Organisational Development,130,Revenue,Brighton Quaker Meeting
Brighton & Hove City Council,http://statistics.data.gov.uk/id/local-authority/00ML,Children`s & Education Serv,BVAEDU,Child Srvcs - Other Fam Supp,FFX,Premises Related,C,Rents Payable,CC,19/10/2018,PAY01107912,EYRS,Early Years,112,Revenue,Brighton Quaker Meeting
Brighton & Hove City Council,http://statistics.data.gov.uk/id/local-authority/00ML,Children`s & Education Serv,BVAEDU,Child Srvcs - Other Fam Supp,FFX,Premises Related,C,Rents Payable,CC,19/10/2018,PAY01107912,ITFF,Integrated Team For Families,210,Revenue,Brighton Quaker Meeting
Brighton & Hove City Council,http://statistics.data.gov.uk/id/local-authority/00ML,Children`s & Education Serv,BVAEDU,Child Srvcs Adoption,FAA,Supplies and Services,E,Services,EF,24/10/2018,PAY01109057,YOTS,Youth Service,54,Revenue,Brighton Quaker Meeting
Brighton & Hove City Council,http://statistics.data.gov.uk/id/local-authority/00ML,Children`s & Education Serv,BVAEDU,Child Srvcs - Yth Offender Tm,FYY,Premises Related,C,Rents Payable,CC,24/10/2018,PAY01109057,ASER,Adolescent Service,60,Revenue,Brighton Quaker Meeting
Brighton & Hove City Council,http://statistics.data.gov.uk/id/local-authority/00ML,Children`s & Education Serv,BVAEDU,Ed Mgmt and Support Services,EMG,Premises Related,C,Rents Payable,CC,24/10/2018,PAY01109057,GOVS,Governor Support,598.5,Revenue,Brighton Quaker Meeting
Brighton & Hove City Council,http://statistics.data.gov.uk/id/local-authority/00ML,Children`s & Education Serv,BVAEDU,Ed Mgmt and Support Services,EMG,Premises Related,C,Rents Payable,CC,31/10/2018,PAY01110975,GOVS,Governor Support,810,Revenue,Brighton Quaker Meeting
Brighton & Hove City Council,http://statistics.data.gov.uk/id/local-authority/00ML,Cultural and Related Serv,BVACUL,Culture and Heritage,CHG,Supplies and Services,E,Miscellaneous Expenses,EM,31/10/2018,PAY01111502,VENU,Venues,260.2,Revenue,Brighton Spirits Company Ltd
Brighton & Hove City Council,http://statistics.data.gov.uk/id/local-authority/00ML,Cultural and Related Serv,BVACUL,Culture and Heritage,CHG,Premises Related,C,Repair Maint n Alterations,CA,19/10/2018,PAY01108045,VENU,Venues,399,Revenue,Brighton Tools & Fixings Ltd
Brighton & Hove City Council,http://statistics.data.gov.uk/id/local-authority/00ML,Cultural and Related Serv,BVACUL,Culture and Heritage,CHG,Premises Related,C,Repair Maint n Alterations,CA,26/10/2018,PAY01110072,VENU,Venues,53.37,Revenue,Brighton Tools & Fixings Ltd
Brighton & Hove City Council,http://statistics.data.gov.uk/id/local-authority/00ML,Environment & Regulatory Serv,BVAERS,Management Services (DEC),MGT,Transport Related,D,Direct Transport Costs,DA,26/10/2018,PAY01110072,CICL,City Clean,344,Revenue,Brighton Tools & Fixings Ltd
Brighton & Hove City Council,http://statistics.data.gov.uk/id/local-authority/00ML,Children`s & Education Serv,BVAEDU,Ed EY Central,EAE,Supplies and Services,E,Grants n Subscriptions,EK,31/10/2018,PAY01111069,EYRS,Early Years,2750,Revenue,Brighton Unemployed Ctr Families Project Playroom
Brighton & Hove City Council,http://statistics.data.gov.uk/id/local-authority/00ML,Adult Social Care,BVASOC,ASC Learning Disabilities,ALD,Customer n Client Receipts,M,Fees n Charges,MB,05/10/2018,PAY01104103,LDIS,Adults LD Community Care,-648,Revenue,Brighton Vision
Brighton & Hove City Council,http://statistics.data.gov.uk/id/local-authority/00ML,Adult Social Care,BVASOC,ASC Learning Disabilities,ALD,Third Party Payments,F,Other Establishments,FH,05/10/2018,PAY01104103,LDIS,Adults LD Community Care,5352.96,Revenue,Brighton Vision
Brighton & Hove City Council,http://statistics.data.gov.uk/id/local-authority/00ML,Adult Social Care,BVASOC,ASC Learning Disabilities,ALD,Customer n Client Receipts,M,Fees n Charges,MB,19/10/2018,PAY01108487,LDIS,Adults LD Community Care,-280,Revenue,Brighton Vision
Brighton & Hove City Council,http://statistics.data.gov.uk/id/local-authority/00ML,Adult Social Care,BVASOC,ASC Learning Disabilities,ALD,Third Party Payments,F,Other Establishments,FH,19/10/2018,PAY01108487,LDIS,Adults LD Community Care,4243.2,Revenue,Brighton Vision
Brighton & Hove City Council,http://statistics.data.gov.uk/id/local-authority/00ML,Public Health,BVAPHE,Community Safety,CMY,Third Party Payments,F,Other Establishments,FH,24/10/2018,PAY01109336,CMNY,Communities and Equalities,5278.06,Revenue,Brighton Voices in Exile
Brighton & Hove City Council,http://statistics.data.gov.uk/id/local-authority/00ML,Planning and Development,BVAPLA,Community Development,CDV,Supplies and Services,E,Grants n Subscriptions,EK,05/10/2018,PAY01103728,CMNY,Communities and Equalities,15062,Revenue,Brighton Women`s Centre
Brighton & Hove City Council,http://statistics.data.gov.uk/id/local-authority/00ML,Non-BHC Organisations,BVANON,Trusts,TRT,Supplies and Services,E,Grants n Subscriptions,EK,25/10/2018,PAY518641,NBHC,Non Council,300,Revenue,Brighton Women`s Centre
Brighton & Hove City Council,http://statistics.data.gov.uk/id/local-authority/00ML,Housing General Fund,BVAHOG,Hsing Welfare,HGW,Transfer Payments,G,Supporting People,GF,03/10/2018,PAY01103112,CONT,Contracts,638.88,Revenue,Brighton YMCA
Brighton & Hove City Council,http://statistics.data.gov.uk/id/local-authority/00ML,Housing General Fund,BVAHOG,Hsing Welfare,HGW,Transfer Payments,G,Supporting People,GF,05/10/2018,PAY01104016,CONT,Contracts,2821.2,Revenue,Brighton YMCA
Brighton & Hove City Council,http://statistics.data.gov.uk/id/local-authority/00ML,Housing General Fund,BVAHOG,Hsing Welfare,HGW,Transfer Payments,G,Supporting People,GF,31/10/2018,PAY01111285,CONT,Contracts,62937.88,Revenue,Brighton YMCA
Brighton & Hove City Council,http://statistics.data.gov.uk/id/local-authority/00ML,Public Health,BVAPHE,Public Health,PHE,Premises Related,C,Rents Payable,CC,19/10/2018,PAY01108046,PHCM,PH Commissioning,352,Revenue,Brighton Youth Centre
Brighton & Hove City Council,http://statistics.data.gov.uk/id/local-authority/00ML,Cultural and Related Serv,BVACUL,Culture and Heritage,CHG,Supplies and Services,E,Miscellaneous Expenses,EM,03/10/2018,PAY01103326,RPMU,Royal Pavilion and Museums,1800,Revenue,Brighton Youth Film Festival CIC
Brighton & Hove City Council,http://statistics.data.gov.uk/id/local-authority/00ML,Planning and Development,BVAPLA,Economic Development,ECD,Supplies and Services,E,Grants n Subscriptions,EK,19/10/2018,PAY01107944,CMNY,Communities and Equalities,5000,Revenue,"Brighton, Hove & District Early Childhood Project"
Brighton & Hove City Council,http://statistics.data.gov.uk/id/local-authority/00ML,Central Support and Overheads,BVACEN,Support Services (SSC),PPT,Supplies and Services,E,Equip't Furniture n Materials,EA,12/10/2018,PAY01105841,PROP,Property and Design,852.5,Revenue,Bristol Card Solutions 
Brighton & Hove City Council,http://statistics.data.gov.uk/id/local-authority/00ML,Cultural and Related Serv,BVACUL,Culture and Heritage,CHG,Supplies and Services,E,Services,EF,31/10/2018,PAY01110942,RPMU,Royal Pavilion and Museums,5000,Revenue,Bristol City Council
Brighton & Hove City Council,http://statistics.data.gov.uk/id/local-authority/00ML,Children`s & Education Serv,BVAEDU,Management Services (DEC),MGT,Supplies and Services,E,Miscellaneous Expenses,EM,31/10/2018,PAY01111456,SOCK,Social Work,1316.67,Revenue,British Airways i360
Brighton & Hove City Council,http://statistics.data.gov.uk/id/local-authority/00ML,Non-BHC Organisations,BVANON,Trusts,TRT,Supplies and Services,E,Miscellaneous Expenses,EM,12/10/2018,PAY01105460,NBHC,Non Council,260.73,Revenue,British Gas Trading Ltd
Brighton & Hove City Council,http://statistics.data.gov.uk/id/local-authority/00ML,Housing General Fund,BVAHOG,Hsing Benefits,HGB,Transfer Payments,G,Other Transfer Payments,GD,31/10/2018,PAY01111273,REVS,Revenues and Benefits,3668,Revenue,British Heart Foundation (Retail Division)
Brighton & Hove City Council,http://statistics.data.gov.uk/id/local-authority/00ML,Highways and Transportation,BVAHRT,Traffic Mgmnt and Road Safety,TMR,Supplies and Services,E,Grants n Subscriptions,EK,12/10/2018,PAY01105412,TPRS,Transport Projects and Eng,3711,Revenue,British Standards Institution
Brighton & Hove City Council,http://statistics.data.gov.uk/id/local-authority/00ML,Highways and Transportation,BVAHRT,Highways and Roads - Mntnce,HRM,Supplies and Services,E,Communications n Computing,EH,10/10/2018,PAY01104698,HIGH,Traffic Management,1340.05,Revenue,British Telecommunications Plc
Brighton & Hove City Council,http://statistics.data.gov.uk/id/local-authority/00ML,Housing Revenue Account,BVAHOU,Hsing Management - HRA,HGM,Supplies and Services,E,Communications n Computing,EH,19/10/2018,PAY01108209,HTEN,Tenancy Services,887.07,Revenue,British Telecommunications Plc
Brighton & Hove City Council,http://statistics.data.gov.uk/id/local-authority/00ML,Central Support and Overheads,BVACEN,Support Services (SSC),PPT,Supplies and Services,E,Miscellaneous Expenses,EM,17/10/2018,PAY01107072,BIPR,Bulk Insurance Premia,638.14,Revenue,Browne Jacobson LLP
Brighton & Hove City Council,http://statistics.data.gov.uk/id/local-authority/00ML,Adult Social Care,BVASOC,Social Care Activities,ACM,Third Party Payments,F,Other Establishments,FH,12/10/2018,PAY01106147,ASIT,Assessment and SIT,113,Revenue,BSL Link for Communication Ltd
Brighton & Hove City Council,http://statistics.data.gov.uk/id/local-authority/00ML,Planning and Development,BVAPLA,Community Development,CDV,Third Party Payments,F,Other Establishments,FH,12/10/2018,PAY01106147,CMNY,Communities and Equalities,113,Revenue,BSL Link for Communication Ltd
Brighton & Hove City Council,http://statistics.data.gov.uk/id/local-authority/00ML,Adult Social Care,BVASOC,ASC Learning Disabilities,ALD,Indirect Employees,B,Training,BM,26/10/2018,PAY01110828,LDSU,Supported Employment,300,Revenue,BSL Sussex LLP
Brighton & Hove City Council,http://statistics.data.gov.uk/id/local-authority/00ML,Non I&E,BVANON,CAP Education Services,4ED,New Construction n Conversion,PB,New Construction n Conversion,PBL5,17/10/2018,PAY01107110,EYRS,Early Years,29060.5,Capital,BSW Building Services Ltd
Brighton & Hove City Council,http://statistics.data.gov.uk/id/local-authority/00ML,Environment & Regulatory Serv,BVAERS,Management Services (DEC),MGT,Transport Related,D,Direct Transport Costs,DA,05/10/2018,PAY01103645,CICL,City Clean,414.64,Revenue,BTR Brakes (Sussex) Ltd
Brighton & Hove City Council,http://statistics.data.gov.uk/id/local-authority/00ML,Environment & Regulatory Serv,BVAERS,Management Services (DEC),MGT,Transport Related,D,Direct Transport Costs,DA,10/10/2018,PAY01104561,CICL,City Clean,706.2,Revenue,BTR Brakes (Sussex) Ltd
Brighton & Hove City Council,http://statistics.data.gov.uk/id/local-authority/00ML,Environment & Regulatory Serv,BVAERS,Management Services (DEC),MGT,Transport Related,D,Direct Transport Costs,DA,26/10/2018,PAY01109967,CICL,City Clean,483.96,Revenue,BTR Brakes (Sussex) Ltd
Brighton & Hove City Council,http://statistics.data.gov.uk/id/local-authority/00ML,Environment & Regulatory Serv,BVAERS,Management Services (DEC),MGT,Transport Related,D,Direct Transport Costs,DA,31/10/2018,PAY01110973,CICL,City Clean,579.92,Revenue,BTR Brakes (Sussex) Ltd
Brighton & Hove City Council,http://statistics.data.gov.uk/id/local-authority/00ML,Planning and Development,BVAPLA,Planning Policy,PLP,Supplies and Services,E,Services,EF,17/10/2018,PAY01107109,DEVP,Development Planning,2530,Revenue,Building Research Establishment Ltd
Brighton & Hove City Council,http://statistics.data.gov.uk/id/local-authority/00ML,Adult Social Care,BVASOC,ASC Memory Cognition Support,MEM,Customer n Client Receipts,M,Fees n Charges,MB,05/10/2018,PAY01103847,COGN,Memory Cognition Support,-374.68,Revenue,BUPA Care Services
Brighton & Hove City Council,http://statistics.data.gov.uk/id/local-authority/00ML,Adult Social Care,BVASOC,ASC Memory Cognition Support,MEM,Customer n Client Receipts,M,Fees n Charges,MB,19/10/2018,PAY01108189,COGN,Memory Cognition Support,-6071.23,Revenue,BUPA Care Services
Brighton & Hove City Council,http://statistics.data.gov.uk/id/local-authority/00ML,Adult Social Care,BVASOC,ASC Memory Cognition Support,MEM,Third Party Payments,F,Other Establishments,FH,19/10/2018,PAY01108189,COGN,Memory Cognition Support,30662.73,Revenue,BUPA Care Services
Brighton & Hove City Council,http://statistics.data.gov.uk/id/local-authority/00ML,Adult Social Care,BVASOC,ASC Physical Support,PHY,Customer n Client Receipts,M,Fees n Charges,MB,19/10/2018,PAY01108189,PHYS,Physical Support,-7619.84,Revenue,BUPA Care Services
Brighton & Hove City Council,http://statistics.data.gov.uk/id/local-authority/00ML,Adult Social Care,BVASOC,ASC Physical Support,PHY,Third Party Payments,F,Other Establishments,FH,19/10/2018,PAY01108189,PHYS,Physical Support,18891.4,Revenue,BUPA Care Services
Brighton & Hove City Council,http://statistics.data.gov.uk/id/local-authority/00ML,Adult Social Care,BVASOC,ASC Physical Support,PHY,Customer n Client Receipts,M,Fees n Charges,MB,31/10/2018,PAY01111135,PHYS,Physical Support,-1229.55,Revenue,BUPA Care Services
Brighton & Hove City Council,http://statistics.data.gov.uk/id/local-authority/00ML,Adult Social Care,BVASOC,ASC Physical Support,PHY,Third Party Payments,F,Other Establishments,FH,31/10/2018,PAY01111135,PHYS,Physical Support,9449.15,Revenue,BUPA Care Services
Brighton & Hove City Council,http://statistics.data.gov.uk/id/local-authority/00ML,Environment & Regulatory Serv,BVAERS,Management Services (DEC),MGT,Transport Related,D,Direct Transport Costs,DA,03/10/2018,PAY01103238,CICL,City Clean,850.63,Revenue,Burden Bros Agri Ltd
Brighton & Hove City Council,http://statistics.data.gov.uk/id/local-authority/00ML,Environment & Regulatory Serv,BVAERS,Management Services (DEC),MGT,Transport Related,D,Direct Transport Costs,DA,05/10/2018,PAY01104130,CICL,City Clean,1602.07,Revenue,Burden Bros Agri Ltd
Brighton & Hove City Council,http://statistics.data.gov.uk/id/local-authority/00ML,Environment & Regulatory Serv,BVAERS,Management Services (DEC),MGT,Transport Related,D,Direct Transport Costs,DA,10/10/2018,PAY01104916,CICL,City Clean,1923.24,Revenue,Burden Bros Agri Ltd
Brighton & Hove City Council,http://statistics.data.gov.uk/id/local-authority/00ML,Environment & Regulatory Serv,BVAERS,Management Services (DEC),MGT,Transport Related,D,Direct Transport Costs,DA,19/10/2018,PAY01108518,CICL,City Clean,2120.12,Revenue,Burden Bros Agri Ltd
Brighton & Hove City Council,http://statistics.data.gov.uk/id/local-authority/00ML,Cultural and Related Serv,BVACUL,Management Services (DEC),MGT,Supplies and Services,E,Equip't Furniture n Materials,EA,24/10/2018,PAY01109426,CIPK,City Parks,4423.32,Revenue,Burden Bros Agri Ltd
Brighton & Hove City Council,http://statistics.data.gov.uk/id/local-authority/00ML,Environment & Regulatory Serv,BVAERS,Management Services (DEC),MGT,Transport Related,D,Direct Transport Costs,DA,24/10/2018,PAY01109426,CICL,City Clean,-1711.5,Revenue,Burden Bros Agri Ltd
Brighton & Hove City Council,http://statistics.data.gov.uk/id/local-authority/00ML,Public Health,BVAPHE,Public Health,PHE,Third Party Payments,F,Other Establishments,FH,26/10/2018,PAY01110474,PHCM,PH Commissioning,256.61,Revenue,Burwash Pharmacy
Brighton & Hove City Council,http://statistics.data.gov.uk/id/local-authority/00ML,Children`s & Education Serv,BVAEDU,Child Srvcs Leaving Care,FAL,Transfer Payments,G,Other Transfer Payments,GD,24/10/2018,PAY01109187,CARL,Care Leavers,320,Revenue,Busy Bees Brighton
Brighton & Hove City Council,http://statistics.data.gov.uk/id/local-authority/00ML,Children`s & Education Serv,BVAEDU,Child Srvcs - Other Fam Supp,FFX,Transfer Payments,G,Other Transfer Payments,GD,10/10/2018,PAY01105161,FAMP,Families\Prevention,1430,Revenue,Butterfly Nursery Limited
Brighton & Hove City Council,http://statistics.data.gov.uk/id/local-authority/00ML,Children`s & Education Serv,BVAEDU,Child Srvcs Leaving Care,FAL,Transfer Payments,G,Other Transfer Payments,GD,31/10/2018,PAY01111472,CARL,Care Leavers,386.4,Revenue,Buy It Direct Ltd
Brighton & Hove City Council,http://statistics.data.gov.uk/id/local-authority/00ML,Public Health,BVAPHE,Public Health,PHE,Third Party Payments,F,Other Establishments,FH,17/10/2018,PAY01107573,PHCM,PH Commissioning,99892.75,Revenue,BZ Bodies Ltd
Brighton & Hove City Council,http://statistics.data.gov.uk/id/local-authority/00ML,Housing General Fund,BVAHOG,Homelessness,HML,Supplies and Services,E,Equip't Furniture n Materials,EA,03/10/2018,PAY01102776,ASSA,Hostel Accommodation,250,Revenue,C & C Cleaning Services Ltd
Brighton & Hove City Council,http://statistics.data.gov.uk/id/local-authority/00ML,Non-BHC Organisations,BVANON,Trusts,TRT,Supplies and Services,E,Miscellaneous Expenses,EM,26/10/2018,PAY01110631,NBHC,Non Council,3739,Revenue,C & T Radmall Service
Brighton & Hove City Council,http://statistics.data.gov.uk/id/local-authority/00ML,Cultural and Related Serv,BVACUL,Culture and Heritage,CHG,Premises Related,C,Repair Maint n Alterations,CA,05/10/2018,PAY01103735,VENU,Venues,286.79,Revenue,C Brewer & Sons Ltd
Brighton & Hove City Council,http://statistics.data.gov.uk/id/local-authority/00ML,Housing Revenue Account,BVAHOU,Hsing Management - HRA,HGM,Premises Related,C,Repair Maint n Alterations,CA,05/10/2018,PAY01103735,HIII,Income Involvement Improvement,18.86,Revenue,C Brewer & Sons Ltd
Brighton & Hove City Council,http://statistics.data.gov.uk/id/local-authority/00ML,Housing Revenue Account,BVAHOU,Hsing Management - HRA,HGM,Premises Related,C,Repair Maint n Alterations,CA,05/10/2018,PAY01103735,HTEN,Tenancy Services,122.9,Revenue,C Brewer & Sons Ltd
Brighton & Hove City Council,http://statistics.data.gov.uk/id/local-authority/00ML,Housing Revenue Account,BVAHOU,Hsing Management - HRA,HGM,Supplies and Services,E,Equip't Furniture n Materials,EA,05/10/2018,PAY01103735,HTEN,Tenancy Services,55.6,Revenue,C Brewer & Sons Ltd
Brighton & Hove City Council,http://statistics.data.gov.uk/id/local-authority/00ML,Environment & Regulatory Serv,BVAERS,Street Cleansing,CLE,Supplies and Services,E,Equip't Furniture n Materials,EA,19/10/2018,PAY01108050,CICL,City Clean,158.77,Revenue,C Brewer & Sons Ltd
Brighton & Hove City Council,http://statistics.data.gov.uk/id/local-authority/00ML,Housing Revenue Account,BVAHOU,Hsing Management - HRA,HGM,Premises Related,C,Repair Maint n Alterations,CA,19/10/2018,PAY01108050,HTEN,Tenancy Services,49.16,Revenue,C Brewer & Sons Ltd
Brighton & Hove City Council,http://statistics.data.gov.uk/id/local-authority/00ML,Housing Revenue Account,BVAHOU,Hsing Management - HRA,HGM,Supplies and Services,E,Equip't Furniture n Materials,EA,19/10/2018,PAY01108050,HTEN,Tenancy Services,9.5,Revenue,C Brewer & Sons Ltd
Brighton & Hove City Council,http://statistics.data.gov.uk/id/local-authority/00ML,Highways and Transportation,BVAHRT,Highways and Roads - Mntnce,HRM,Supplies and Services,E,Communications n Computing,EH,05/10/2018,PAY01103998,TPRS,Transport Projects and Eng,345,Revenue,Cadpoint Limited
Brighton & Hove City Council,http://statistics.data.gov.uk/id/local-authority/00ML,Housing Revenue Account,BVAHOU,Hsing Management - HRA,HGM,Supplies and Services,E,Communications n Computing,EH,05/10/2018,PAY01103998,HPAI,Property & Investment,345,Revenue,Cadpoint Limited
Brighton & Hove City Council,http://statistics.data.gov.uk/id/local-authority/00ML,Children`s & Education Serv,BVAEDU,Child Srvcs - Residential Svcs,FLR,Third Party Payments,F,Other Establishments,FH,10/10/2018,PAY01105087,AVFM,Agency Placements\VFM,18600,Revenue,Calcot Services For Children Ltd
Brighton & Hove City Council,http://statistics.data.gov.uk/id/local-authority/00ML,Children`s & Education Serv,BVAEDU,Child Srvcs - Residential Svcs,FLR,Third Party Payments,F,Other Establishments,FH,05/10/2018,PAY01104356,AVFM,Agency Placements\VFM,63857.1,Revenue,Cambian Childcare Ltd
Brighton & Hove City Council,http://statistics.data.gov.uk/id/local-authority/00ML,Children`s & Education Serv,BVAEDU,Child Srvcs - Residential Svcs,FLR,Third Party Payments,F,Other Establishments,FH,31/10/2018,PAY01111542,AVFM,Agency Placements\VFM,65985.67,Revenue,Cambian Childcare Ltd
Brighton & Hove City Council,http://statistics.data.gov.uk/id/local-authority/00ML,Public Health,BVAPHE,Public Health,PHE,Third Party Payments,F,Health Authorities,FC,24/10/2018,PAY01109429,PHCM,PH Commissioning,642,Revenue,Cambridge Community Services NHS Trust
Brighton & Hove City Council,http://statistics.data.gov.uk/id/local-authority/00ML,Housing Revenue Account,BVAHOU,Hsing Management - HRA,HGM,Premises Related,C,Repair Maint n Alterations,CA,17/10/2018,PAY01107629,HPAI,Property & Investment,900,Revenue,Camcool Ltd
Brighton & Hove City Council,http://statistics.data.gov.uk/id/local-authority/00ML,Children`s & Education Serv,BVAEDU,Child Srvcs Leaving Care,FAL,Transfer Payments,G,Other Transfer Payments,GD,05/10/2018,PAY01104319,CARL,Care Leavers,1962,Revenue,Campus Living Villages
Brighton & Hove City Council,http://statistics.data.gov.uk/id/local-authority/00ML,Housing General Fund,BVAHOG,Hsing Benefits,HGB,Transfer Payments,G,Other Transfer Payments,GD,31/10/2018,PAY01111275,REVS,Revenues and Benefits,406.13,Revenue,Cannadines Carpets
Brighton & Hove City Council,http://statistics.data.gov.uk/id/local-authority/00ML,Adult Social Care,BVASOC,ASC Learning Disabilities,ALD,Premises Related,C,Cleaning n Domestic Supps,CH,26/10/2018,PAY01110742,LDSE,Adults LD Day Services,12.83,Revenue,Cannon Hygiene Ltd
Brighton & Hove City Council,http://statistics.data.gov.uk/id/local-authority/00ML,Adult Social Care,BVASOC,ASC Learning Disabilities,ALD,Premises Related,C,Repair Maint n Alterations,CA,26/10/2018,PAY01110742,LDAS,Adults LD Accomodation Service,69.25,Revenue,Cannon Hygiene Ltd
Brighton & Hove City Council,http://statistics.data.gov.uk/id/local-authority/00ML,Adult Social Care,BVASOC,ASC Learning Disabilities,ALD,Premises Related,C,Repair Maint n Alterations,CA,26/10/2018,PAY01110742,LDSE,Adults LD Day Services,100.97,Revenue,Cannon Hygiene Ltd
Brighton & Hove City Council,http://statistics.data.gov.uk/id/local-authority/00ML,Central Support and Overheads,BVACEN,Support Services (SSC),PPT,Premises Related,C,Cleaning n Domestic Supps,CH,26/10/2018,PAY01110742,PROP,Property and Design,8.36,Revenue,Cannon Hygiene Ltd
Brighton & Hove City Council,http://statistics.data.gov.uk/id/local-authority/00ML,Children`s & Education Serv,BVAEDU,Ed EY Central,EAE,Premises Related,C,Repair Maint n Alterations,CA,26/10/2018,PAY01110742,EYRS,Early Years,97.24,Revenue,Cannon Hygiene Ltd
Brighton & Hove City Council,http://statistics.data.gov.uk/id/local-authority/00ML,Public Health,BVAPHE,Public Health,PHE,Third Party Payments,F,Other Establishments,FH,26/10/2018,PAY01110479,PHCM,PH Commissioning,6464.63,Revenue,Canterbury Pharmacies Ltd
Brighton & Hove City Council,http://statistics.data.gov.uk/id/local-authority/00ML,Central Support and Overheads,BVACEN,Support Services (SSC),PPT,Supplies and Services,E,Communications n Computing,EH,31/10/2018,PAY01111205,ICTA,ICT,212.75,Revenue,Capita IT Services Ltd
Brighton & Hove City Council,http://statistics.data.gov.uk/id/local-authority/00ML,Children`s & Education Serv,BVAEDU,Child Srvcs - Other Fam Supp,FFX,Transport Related,D,Contract Hire n Operating Leas,DB,05/10/2018,PAY01104008,DISS,Childrens Disability Services,439.75,Revenue,Car Hire (Day of Swansea) Ltd t/a Days Fleet
Brighton & Hove City Council,http://statistics.data.gov.uk/id/local-authority/00ML,Children`s & Education Serv,BVAEDU,Child Srvcs Com and Scl Work,FCW,Transport Related,D,Contract Hire n Operating Leas,DB,26/10/2018,PAY01110371,SOCK,Social Work,212.09,Revenue,Car Hire (Day of Swansea) Ltd t/a Days Fleet
Brighton & Hove City Council,http://statistics.data.gov.uk/id/local-authority/00ML,Children`s & Education Serv,BVAEDU,Child Srvcs - Other Fam Supp,FFX,Transport Related,D,Contract Hire n Operating Leas,DB,26/10/2018,PAY01110371,DISS,Childrens Disability Services,439.75,Revenue,Car Hire (Day of Swansea) Ltd t/a Days Fleet
Brighton & Hove City Council,http://statistics.data.gov.uk/id/local-authority/00ML,Children`s & Education Serv,BVAEDU,Support Services (SSC),PPT,Transport Related,D,Contract Hire n Operating Leas,DB,26/10/2018,PAY01110371,SCOR,School Organisation,315.77,Revenue,Car Hire (Day of Swansea) Ltd t/a Days Fleet
Brighton & Hove City Council,http://statistics.data.gov.uk/id/local-authority/00ML,Public Health,BVAPHE,Public Health,PHE,Third Party Payments,F,Other Establishments,FH,26/10/2018,PAY01110372,PHCM,PH Commissioning,1667.03,Revenue,Carden Surgery
Brighton & Hove City Council,http://statistics.data.gov.uk/id/local-authority/00ML,Children`s & Education Serv,BVAEDU,Ed Ed Other LA Attrib Sch,ELA,Supplies and Services,E,Miscellaneous Expenses,EM,31/10/2018,PAY01111138,NQLT,Newly Qualified Teachers,385,Revenue,Cardinal Newman Catholic School
Brighton & Hove City Council,http://statistics.data.gov.uk/id/local-authority/00ML,Children`s & Education Serv,BVAEDU,Child Srvcs - Residential Svcs,FLR,Third Party Payments,F,Other Establishments,FH,10/10/2018,PAY01104960,AVFM,Agency Placements\VFM,17000,Revenue,Care 4 Children Residential Services Ltd
Brighton & Hove City Council,http://statistics.data.gov.uk/id/local-authority/00ML,Adult Social Care,BVASOC,ASC Mental Health Support,MHP,Third Party Payments,F,Other Establishments,FH,10/10/2018,PAY01104898,MENH,Mental Health Support,420,Revenue,Care Clean Clearance Ltd
Brighton & Hove City Council,http://statistics.data.gov.uk/id/local-authority/00ML,Adult Social Care,BVASOC,ASC Mental Health Support,MHP,Third Party Payments,F,Other Establishments,FH,12/10/2018,PAY01106211,MENH,Mental Health Support,420,Revenue,Care Clean Clearance Ltd
Brighton & Hove City Council,http://statistics.data.gov.uk/id/local-authority/00ML,Adult Social Care,BVASOC,ASC Mental Health Support,MHP,Third Party Payments,F,Other Establishments,FH,19/10/2018,PAY01108492,MENH,Mental Health Support,420,Revenue,Care Clean Clearance Ltd
Brighton & Hove City Council,http://statistics.data.gov.uk/id/local-authority/00ML,Adult Social Care,BVASOC,ASC Learning Disabilities,ALD,Customer n Client Receipts,M,Fees n Charges,MB,19/10/2018,PAY01108172,LDIS,Adults LD Community Care,-409,Revenue,Care for Veterans
Brighton & Hove City Council,http://statistics.data.gov.uk/id/local-authority/00ML,Adult Social Care,BVASOC,ASC Learning Disabilities,ALD,Third Party Payments,F,Other Establishments,FH,19/10/2018,PAY01108172,LDIS,Adults LD Community Care,6400,Revenue,Care for Veterans
Brighton & Hove City Council,http://statistics.data.gov.uk/id/local-authority/00ML,Adult Social Care,BVASOC,ASC Physical Support,PHY,Third Party Payments,F,Other Establishments,FH,19/10/2018,PAY01108172,PHYS,Physical Support,5336,Revenue,Care for Veterans
Brighton & Hove City Council,http://statistics.data.gov.uk/id/local-authority/00ML,Adult Social Care,BVASOC,ASC Memory Cognition Support,MEM,Third Party Payments,F,Other Establishments,FH,19/10/2018,PAY01108697,COGN,Memory Cognition Support,2758.92,Revenue,Care Homes (Scotland) Ltd
Brighton & Hove City Council,http://statistics.data.gov.uk/id/local-authority/00ML,Adult Social Care,BVASOC,ASC Learning Disabilities,ALD,Third Party Payments,F,Other Establishments,FH,05/10/2018,PAY01103951,LDIS,Adults LD Community Care,4.31,Revenue,Care Outlook
Brighton & Hove City Council,http://statistics.data.gov.uk/id/local-authority/00ML,Adult Social Care,BVASOC,ASC Memory Cognition Support,MEM,Third Party Payments,F,Other Establishments,FH,05/10/2018,PAY01103951,COGN,Memory Cognition Support,1182.73,Revenue,Care Outlook
Brighton & Hove City Council,http://statistics.data.gov.uk/id/local-authority/00ML,Adult Social Care,BVASOC,ASC Mental Health Support,MHP,Third Party Payments,F,Other Establishments,FH,05/10/2018,PAY01103951,MENH,Mental Health Support,711.86,Revenue,Care Outlook
Brighton & Hove City Council,http://statistics.data.gov.uk/id/local-authority/00ML,Adult Social Care,BVASOC,ASC Physical Support,PHY,Third Party Payments,F,Other Establishments,FH,05/10/2018,PAY01103951,PHYS,Physical Support,9430.3,Revenue,Care Outlook
Brighton & Hove City Council,http://statistics.data.gov.uk/id/local-authority/00ML,Adult Social Care,BVASOC,ASC Sensory Support,AHV,Third Party Payments,F,Other Establishments,FH,05/10/2018,PAY01103951,SORY,Sensory Support,51.1,Revenue,Care Outlook
Brighton & Hove City Council,http://statistics.data.gov.uk/id/local-authority/00ML,Adult Social Care,BVASOC,ASC Learning Disabilities,ALD,Third Party Payments,F,Other Establishments,FH,10/10/2018,PAY01104772,LDIS,Adults LD Community Care,4.38,Revenue,Care Outlook
Brighton & Hove City Council,http://statistics.data.gov.uk/id/local-authority/00ML,Adult Social Care,BVASOC,ASC Memory Cognition Support,MEM,Third Party Payments,F,Other Establishments,FH,10/10/2018,PAY01104772,COGN,Memory Cognition Support,1138,Revenue,Care Outlook
Brighton & Hove City Council,http://statistics.data.gov.uk/id/local-authority/00ML,Adult Social Care,BVASOC,ASC Mental Health Support,MHP,Third Party Payments,F,Other Establishments,FH,10/10/2018,PAY01104772,MENH,Mental Health Support,680.49,Revenue,Care Outlook
Brighton & Hove City Council,http://statistics.data.gov.uk/id/local-authority/00ML,Adult Social Care,BVASOC,ASC Physical Support,PHY,Third Party Payments,F,Other Establishments,FH,10/10/2018,PAY01104772,PHYS,Physical Support,16248.53,Revenue,Care Outlook
Brighton & Hove City Council,http://statistics.data.gov.uk/id/local-authority/00ML,Adult Social Care,BVASOC,ASC Sensory Support,AHV,Third Party Payments,F,Other Establishments,FH,10/10/2018,PAY01104772,SORY,Sensory Support,27.35,Revenue,Care Outlook
Brighton & Hove City Council,http://statistics.data.gov.uk/id/local-authority/00ML,Adult Social Care,BVASOC,ASC Learning Disabilities,ALD,Third Party Payments,F,Other Establishments,FH,17/10/2018,PAY01107234,LDIS,Adults LD Community Care,4.38,Revenue,Care Outlook
Brighton & Hove City Council,http://statistics.data.gov.uk/id/local-authority/00ML,Adult Social Care,BVASOC,ASC Memory Cognition Support,MEM,Third Party Payments,F,Other Establishments,FH,17/10/2018,PAY01107234,COGN,Memory Cognition Support,2820.47,Revenue,Care Outlook
Brighton & Hove City Council,http://statistics.data.gov.uk/id/local-authority/00ML,Adult Social Care,BVASOC,ASC Mental Health Support,MHP,Third Party Payments,F,Other Establishments,FH,17/10/2018,PAY01107234,MENH,Mental Health Support,2193.09,Revenue,Care Outlook
Brighton & Hove City Council,http://statistics.data.gov.uk/id/local-authority/00ML,Adult Social Care,BVASOC,ASC Physical Support,PHY,Third Party Payments,F,Other Establishments,FH,17/10/2018,PAY01107234,PHYS,Physical Support,20459.15,Revenue,Care Outlook
Brighton & Hove City Council,http://statistics.data.gov.uk/id/local-authority/00ML,Public Health,BVAPHE,Public Health,PHE,Third Party Payments,F,Other Establishments,FH,26/10/2018,PAY01110384,PHCM,PH Commissioning,1000.31,Revenue,Care UK Brighton Station Health Centre
Brighton & Hove City Council,http://statistics.data.gov.uk/id/local-authority/00ML,Adult Social Care,BVASOC,ASC Memory Cognition Support,MEM,Customer n Client Receipts,M,Fees n Charges,MB,12/10/2018,PAY01105421,COGN,Memory Cognition Support,7069.2,Revenue,Care UK Community Partnerships Ltd
Brighton & Hove City Council,http://statistics.data.gov.uk/id/local-authority/00ML,Adult Social Care,BVASOC,ASC Mental Health Support,MHP,Third Party Payments,F,Other Establishments,FH,12/10/2018,PAY01105421,MENH,Mental Health Support,-3102.68,Revenue,Care UK Community Partnerships Ltd
Brighton & Hove City Council,http://statistics.data.gov.uk/id/local-authority/00ML,Adult Social Care,BVASOC,ASC Memory Cognition Support,MEM,Customer n Client Receipts,M,Fees n Charges,MB,19/10/2018,PAY01107900,COGN,Memory Cognition Support,-1145.4,Revenue,Care UK Community Partnerships Ltd
